Local authority department which incurred the expenditure,Service Division,Cost Centre,Summary of the Purpose of Expenditure,Expense Type,Expense Code,Detailed Expense Type,Date of Transaction,Transaction Number,Beneficiary,Merchant Category Number,Merchant Category,Gross Amount,VAT,Net Amount
Children and Young Peoples Services,Head of Education,071801,Selby Cottage Childcare Centre,Supplies and Services,324117,Provisions,01-Dec-2017,000006770250605,ALDI 32 774,5411,Catering costs - provisions,160.03,0.00,160.03
Children and Young Peoples Services,Head of Education,071801,Selby Cottage Childcare Centre,Supplies and Services,304259,Equipment and Materials,01-Dec-2017,000006770250607,WILKO RETAIL LIMIT,5722,Equipment-purchase and rental,16.65,0.00,16.65
Children and Young Peoples Services,Head of Education,071801,Selby Cottage Childcare Centre,Supplies and Services,324117,Provisions,01-Dec-2017,000006770250609,TESCO STORES 2278,5411,Catering costs - provisions,20.10,0.00,20.10
Children and Young Peoples Services,Head of Education,071801,Selby Cottage Childcare Centre,Supplies and Services,324117,Provisions,01-Dec-2017,000006770250611,TESCO STORES 2278,5411,Catering costs - provisions,11.39,0.00,11.39
Children and Young Peoples Services,Head of Education,054640,Durham Learning Resources,Supplies and Services,304403,Equipment and Materials,01-Dec-2017,000006770250617,PAYPAL MINISTRYMAS,5999,Other consumables,55.00,0.00,55.00
Children and Young Peoples Services,Head of Education,054640,Durham Learning Resources,Supplies and Services,304403,Equipment and Materials,01-Dec-2017,000006770250619,WWW.PUCKATOR.CO.UK,5947,Other consumables,151.32,25.22,126.10
Regeneration and Local Services,Economic Development and Housing,031576,B& B - Temp Accom,Supplies and Services,364320,Grants to Voluntary Organisations,01-Dec-2017,000006770250621,TRAVELODGE,3615,Accommodation assistance,138.00,23.00,115.00
Regeneration and Local Services,Economic Development and Housing,031576,B& B - Temp Accom,Supplies and Services,364320,Grants to Voluntary Organisations,01-Dec-2017,000006770250623,TRAVELODGE,3615,Accommodation assistance,189.00,31.50,157.50
Regeneration and Local Services,Economic Development and Housing,031576,B& B - Temp Accom,Supplies and Services,364320,Grants to Voluntary Organisations,01-Dec-2017,000006770250625,TRAVELODGE,3615,Accommodation assistance,189.00,31.50,157.50
Regeneration and Local Services,Economic Development and Housing,031576,B& B - Temp Accom,Supplies and Services,364320,Grants to Voluntary Organisations,01-Dec-2017,000006770250627,TRAVELODGE,3615,Accommodation assistance,130.00,21.67,108.33
Regeneration and Local Services,Economic Development and Housing,031576,B& B - Temp Accom,Supplies and Services,364320,Grants to Voluntary Organisations,01-Dec-2017,000006770250629,PREMIER INN,3811,Accommodation assistance,184.50,30.75,153.75
Regeneration and Local Services,Transport and Contracted Services,031701,Care Connect All Localities,Supplies and Services,304335,Equipment and Materials,01-Dec-2017,000006770250633,AMAZON.CO.UK,5942,ICT supplies etc,92.00,0.00,92.00
Regeneration and Local Services,Economic Development and Housing,030732,Rural Employability Project - South Durham,Supplies and Services,304259,Equipment and Materials,01-Dec-2017,000006770250655,WWW.DURHAM.GOV.UK,9399,Equipment-purchase and rental,12.00,0.00,12.00
Adult and Health Services,Head of Adults,055302,Durham Pathways,Supplies and Services,340001,Postages,01-Dec-2017,000006770250667,POST OFFICE COUNTER,9402,Postages,2.08,0.00,2.08
Regeneration and Local Services,Economic Development and Housing,030737,Durham Works Flexible Fund,Transport,230031,Contract Hire,01-Dec-2017,000006770250753,WWW.SIMPLYGO.COM,4131,Pupils-transport to play fields etc,92.00,0.00,92.00
Regeneration and Local Services,Economic Development and Housing,030737,Durham Works Flexible Fund,Transport,230031,Contract Hire,01-Dec-2017,000006770250755,ARRIVA NORTH EAST,4131,Pupils-transport to play fields etc,23.00,0.00,23.00
Regeneration and Local Services,Economic Development and Housing,030737,Durham Works Flexible Fund,Transport,230031,Contract Hire,01-Dec-2017,000006770250757,ARRIVA NORTH EAST,4131,Pupils-transport to play fields etc,95.00,0.00,95.00
Regeneration and Local Services,Direct Services,021242,Catering - County Hall,Supplies and Services,324117,Provisions,01-Dec-2017,000006770250759,WWW.ADELIEFOODS.CO.UK,5499,Catering costs - provisions,72.66,0.00,72.66
Children and Young Peoples Services,Head of Education,070169,Durham SSP,Supplies and Services,384199,Miscellaneous Expenses,01-Dec-2017,000006770250773,Amazon UK Marketplace,5942,Other hired and contracted services,39.96,0.00,39.96
Children and Young Peoples Services,Head of Education,070169,Durham SSP,Supplies and Services,384199,Miscellaneous Expenses,01-Dec-2017,000006770250775,Amazon UK Marketplace,5942,Other hired and contracted services,53.88,0.00,53.88
Regeneration and Local Services,Economic Development and Housing,030737,Durham Works Flexible Fund,Supplies and Services,332047,Printing Stationery and Gen Off Exps,01-Dec-2017,000006770250791,AMAZON.CO.UK,5942,Stationery,4.48,0.00,4.48
Children and Young Peoples Services,Head of Looked After Provision Permanence and Care Leavers,085333,Coxhoe Satelite Home,Supplies and Services,304259,Equipment and Materials,01-Dec-2017,000006770250823,PAYPAL LILIJIANG,5732,Equipment-purchase and rental,2.89,0.00,2.89
Children and Young Peoples Services,Head of Looked After Provision Permanence and Care Leavers,085333,Coxhoe Satelite Home,Supplies and Services,344033,Telephones,01-Dec-2017,000006770250825,E E BROADBAND,4812,Telephones general-all costs,35.00,0.00,35.00
Resources,Legal & Democratic Services,067910,Democratic Representation,Supplies and Services,384965,Miscellaneous Expenses,01-Dec-2017,000006770250907,MARKS&SPENCER PLC,5411,Civic Functions,10.00,0.00,10.00
Resources,Legal & Democratic Services,067910,Democratic Representation,Supplies and Services,384965,Miscellaneous Expenses,01-Dec-2017,000006770250909,THORNTONS LTD,5441,Civic Functions,12.10,0.00,12.10
Regeneration and Local Services,Economic Development and Housing,030737,Durham Works Flexible Fund,Supplies and Services,348037,Subsistence,01-Dec-2017,000006770250927,WWW.SIMPLYGO.COM,4131,Subsistence,27.00,0.00,27.00
Children and Young Peoples Services,Head of Looked After Provision Permanence and Care Leavers,085957,Secure Management,Supplies and Services,312011,Newspapers Books and Periodicals,01-Dec-2017,000006770250939,Amazon UK Marketplace,5942,Books-school library,11.97,0.00,11.97
Children and Young Peoples Services,Head of Looked After Provision Permanence and Care Leavers,085957,Secure Management,Supplies and Services,312011,Newspapers Books and Periodicals,01-Dec-2017,000006770250941,Amazon UK Marketplace,5942,Books-school library,8.42,0.00,8.42
Children and Young Peoples Services,Head of Looked After Provision Permanence and Care Leavers,085957,Secure Management,Supplies and Services,324117,Provisions,01-Dec-2017,000006770250943,TESCO STORES 6329,5411,Catering costs - provisions,89.36,0.00,89.36
Children and Young Peoples Services,Head of Looked After Provision Permanence and Care Leavers,085957,Secure Management,Supplies and Services,312011,Newspapers Books and Periodicals,01-Dec-2017,000006770250945,AMAZON.CO.UK,5942,Books-school library,4.99,0.00,4.99
Children and Young Peoples Services,Head of Looked After Provision Permanence and Care Leavers,085957,Secure Management,Supplies and Services,312011,Newspapers Books and Periodicals,01-Dec-2017,000006770250949,AMAZON.CO.UK,5942,Books-school library,4.94,0.00,4.94
Children and Young Peoples Services,Head of Looked After Provision Permanence and Care Leavers,085957,Secure Management,Supplies and Services,312011,Newspapers Books and Periodicals,01-Dec-2017,000006770250951,AMAZON.CO.UK,5942,Books-school library,11.35,0.00,11.35
Children and Young Peoples Services,Head of Looked After Provision Permanence and Care Leavers,085957,Secure Management,Supplies and Services,328041,Clothing Uniforms and Laundry,01-Dec-2017,000006770250953,WWW.ARGOS.CO.UK,5310,Clothing uniforms and laundry,43.94,0.00,43.94
Children and Young Peoples Services,Head of Looked After Provision Permanence and Care Leavers,085957,Secure Management,Supplies and Services,328041,Clothing Uniforms and Laundry,01-Dec-2017,000006770250955,WWW.ARGOS.CO.UK,5310,Clothing uniforms and laundry,39.96,6.66,33.30
Children and Young Peoples Services,Head of Looked After Provision Permanence and Care Leavers,085957,Secure Management,Supplies and Services,328041,Clothing Uniforms and Laundry,01-Dec-2017,000006770250957,WWW.ARGOS.CO.UK,5310,Clothing uniforms and laundry,55.91,9.32,46.59
Regeneration and Local Services,Technical Services,010984,Training and Development,Employees,040149,Recruitment Instruction and Training,01-Dec-2017,000006770250975,NCS VUE WAMITAB TEST,8299,Training-all costs,130.00,0.00,130.00
Regeneration and Local Services,Culture & Sport,054815,Gala Theatre Stage School,Employees,040149,Recruitment Instruction and Training,01-Dec-2017,000006770250985,THE ACTORS CENTRE,8220,Training-all costs,135.00,0.00,135.00
Regeneration and Local Services,Culture & Sport,054815,Gala Theatre Stage School,Supplies and Services,304403,Equipment and Materials,01-Dec-2017,000006770250987,TIMPSON LTD,7251,Other consumables,18.95,0.00,18.95
Regeneration and Local Services,Culture & Sport,054815,Gala Theatre Stage School,Employees,040149,Recruitment Instruction and Training,01-Dec-2017,000006770250989,WWW.FILMBANK.CO.UK,7829,Training-all costs,150.00,0.00,150.00
Regeneration and Local Services,Economic Development and Housing,031576,B& B - Temp Accom,Supplies and Services,364320,Grants to Voluntary Organisations,01-Dec-2017,000006770251005,TRAVELODGE,3615,Accommodation assistance,134.00,22.33,111.67
Regeneration and Local Services,Economic Development and Housing,031581,Prevention Fund,Supplies and Services,338048,Services,01-Dec-2017,000006770251033,WWW.HMCOURT-SERVIC,9222,Court Costs,50.00,0.00,50.00
Regeneration and Local Services,Direct Services,010367,C&G - South Grounds Maintenance,Transport,215995,Running Costs of Vehicles,01-Dec-2017,000006770251051,SNOWBALLS (RAILWAY,5533,Vehicle running expenses,30.00,5.00,25.00
Regeneration and Local Services,Economic Development and Housing,030737,Durham Works Flexible Fund,Transport,230031,Contract Hire,01-Dec-2017,000006770251075,WWW.SIMPLYGO.COM,4131,Pupils-transport to play fields etc,21.00,0.00,21.00
Regeneration and Local Services,Culture & Sport,011060,Hardwick Park Catering,Supplies and Services,304245,Equipment and Materials,01-Dec-2017,000006770251099,AMAZON.CO.UK,5942,Materials,9.38,0.00,9.38
Regeneration and Local Services,Culture & Sport,026591,Hardwick Park,Supplies and Services,312009,Newspapers Books and Periodicals,01-Dec-2017,000006770251101,AMAZON UK RETAIL AMAZO,5999,Newspapers books and periodicals,13.74,0.00,13.74
Regeneration and Local Services,Spatial Policy Planning Assets & Environment,031200,North Pennines Core,Supplies and Services,304221,Equipment and Materials,01-Dec-2017,000006770251137,YORKSURVEY.CO.UK,8911,Direct materials,85.26,0.00,85.26
Regeneration and Local Services,Spatial Policy Planning Assets & Environment,031200,North Pennines Core,Supplies and Services,324117,Provisions,01-Dec-2017,000006770251139,ZAZZLE GBP,5399,Catering costs - provisions,49.93,0.00,49.93
Children and Young Peoples Services,Head of Looked After Provision Permanence and Care Leavers,085372,Young People Services - North,Supplies and Services,338048,Services,01-Dec-2017,000006770251173,HMCOURTS-SERVICE.G,9222,Court Costs,20.00,0.00,20.00
Regeneration and Local Services,Economic Development and Housing,030737,Durham Works Flexible Fund,Supplies and Services,384999,Miscellaneous Expenses,01-Dec-2017,000006770251273,NEWS ON THE STREET,5411,Other expenses,86.00,0.00,86.00
Regeneration and Local Services,Economic Development and Housing,030737,Durham Works Flexible Fund,Supplies and Services,328041,Clothing Uniforms and Laundry,01-Dec-2017,000006770251275,SPORTSDIRECT 368,5941,Clothing uniforms and laundry,72.03,0.00,72.03
Regeneration and Local Services,Culture & Sport,010608,Teesdale Leisure Centre,Supplies and Services,312011,Newspapers Books and Periodicals,01-Dec-2017,000006770251305,AMAZON.CO.UK,5942,Books-school library,16.99,0.00,16.99
Regeneration and Local Services,Economic Development and Housing,030737,Durham Works Flexible Fund,Supplies and Services,304259,Equipment and Materials,01-Dec-2017,000006770251311,SCREWFIX CHESTER L,5211,Equipment-purchase and rental,115.68,19.28,96.40
Regeneration and Local Services,Economic Development and Housing,030737,Durham Works Flexible Fund,Supplies and Services,304259,Equipment and Materials,01-Dec-2017,000006770251311 - 1,SCREWFIX CHESTER L,5211,Equipment-purchase and rental,30.24,,30.24
Children and Young Peoples Services,Head of Early Help Assessment and Safeguarding,085801,CDYOS - Support,Employees,040149,Recruitment Instruction and Training,01-Dec-2017,000006770251339,VUE NCS CITB HS&E TEST,8299,Training-all costs,19.50,0.00,19.50
Regeneration and Local Services,Direct Services,010525,Catering - Green Lane,Supplies and Services,324117,Provisions,01-Dec-2017,000006781781907,JR HOLLAND FOODSERVICE,5422,Catering costs - provisions,40.69,0.00,40.69
Regeneration and Local Services,Direct Services,021324,Catering - Meadowfield,Supplies and Services,324117,Provisions,01-Dec-2017,000006781782069,JR HOLLAND FOODSERVICE,5422,Catering costs - provisions,27.11,0.00,27.11
Regeneration and Local Services,Direct Services,021324,Catering - Meadowfield,Supplies and Services,324117,Provisions,01-Dec-2017,000006781782071,JR HOLLAND FOODSERVICE,5422,Catering costs - provisions,9.90,0.00,9.90
Regeneration and Local Services,Direct Services,021235,Catering - Wharton Park,Supplies and Services,324117,Provisions,01-Dec-2017,000006781782209,JR HOLLAND FOODSERVICE,5422,Catering costs - provisions,17.74,0.00,17.74
Regeneration and Local Services,Direct Services,021235,Catering - Wharton Park,Supplies and Services,324117,Provisions,01-Dec-2017,000006781782213,JR HOLLAND FOODSERVICE,5422,Catering costs - provisions,7.23,0.00,7.23
Regeneration and Local Services,Direct Services,021242,Catering - County Hall,Supplies and Services,324117,Provisions,01-Dec-2017,000006791770487,BATLEYS PERTH,5300,Catering costs - provisions,629.34,104.89,524.45
Regeneration and Local Services,Direct Services,021242,Catering - County Hall,Supplies and Services,324117,Provisions,01-Dec-2017,000006791770487 - 1,BATLEYS PERTH,5300,Catering costs - provisions,239.70,,239.70
Regeneration and Local Services,Culture & Sport,011060,Hardwick Park Catering,Supplies and Services,324117,Provisions,01-Dec-2017,000006791770709,BATLEYS PERTH,5300,Catering costs - provisions,64.80,10.80,54.00
Regeneration and Local Services,Culture & Sport,011060,Hardwick Park Catering,Supplies and Services,324117,Provisions,01-Dec-2017,000006791770709 - 1,BATLEYS PERTH,5300,Catering costs - provisions,67.41,,67.41
Regeneration and Local Services,Direct Services,010525,Catering - Green Lane,Supplies and Services,324117,Provisions,01-Dec-2017,000006791770773,BATLEYS PERTH,5300,Catering costs - provisions,200.34,33.39,166.95
Regeneration and Local Services,Direct Services,010525,Catering - Green Lane,Supplies and Services,324117,Provisions,01-Dec-2017,000006791770773 - 1,BATLEYS PERTH,5300,Catering costs - provisions,63.40,,63.40
Regeneration and Local Services,Culture & Sport,010605,Woodhouse Close Leisure Complex,Supplies and Services,324117,Provisions,01-Dec-2017,000006791771181,BATLEYS PERTH,5300,Catering costs - provisions,47.46,7.91,39.55
Regeneration and Local Services,Culture & Sport,010605,Woodhouse Close Leisure Complex,Supplies and Services,324117,Provisions,01-Dec-2017,000006791771181 - 1,BATLEYS PERTH,5300,Catering costs - provisions,26.91,,26.91
Resources,Digital and Customer Services,065481,Technical Services,Supplies and Services,304403,Equipment and Materials,02-Dec-2017,000006770250635,AMAZON.CO.UK,5942,Other consumables,29.99,5.00,24.99
Adult and Health Services,Head of Adults,051630,OP/PD Occupational Therapy,Supplies and Services,304335,Equipment and Materials,02-Dec-2017,000006770250637,AMAZON.CO.UK,5942,ICT supplies etc,33.91,0.00,33.91
Resources,Digital and Customer Services,065481,Technical Services,Supplies and Services,304403,Equipment and Materials,02-Dec-2017,000006770250639,AMAZON.CO.UK,5942,Other consumables,8.12,1.35,6.77
Children and Young Peoples Services,Head of Looked After Provision Permanence and Care Leavers,085962,Durham,Supplies and Services,312011,Newspapers Books and Periodicals,02-Dec-2017,000006770250679,AMAZON.CO.UK,5942,Books-school library,14.95,0.00,14.95
Regeneration and Local Services,Economic Development and Housing,030699,Business Growth and Innovation General,Supplies and Services,312011,Newspapers Books and Periodicals,02-Dec-2017,000006770250687,FASTHOSTS INTERNET,4816,Books-school library,59.99,10.00,49.99
Children and Young Peoples Services,Head of Education,070169,Durham SSP,Supplies and Services,384199,Miscellaneous Expenses,02-Dec-2017,000006770250777,Amazon UK Marketplace,5942,Other hired and contracted services,23.58,0.00,23.58
Regeneration and Local Services,Economic Development and Housing,030737,Durham Works Flexible Fund,Supplies and Services,332047,Printing Stationery and Gen Off Exps,02-Dec-2017,000006770250793,AMAZON UK RETAIL AMAZO,5999,Stationery,13.17,0.00,13.17
Regeneration and Local Services,Spatial Policy Planning Assets & Environment,030051,Strategy and Project Development,Transport,235057,Public Transport,02-Dec-2017,000006770250837,DB BAHN REISEZENTRUM,4112,Staff travelling,56.57,0.00,56.57
Children and Young Peoples Services,Head of Education,071732,Dean Bank Childcare,Supplies and Services,304403,Equipment and Materials,02-Dec-2017,000006770250881,AMAZON UK RETAIL AMAZO,5999,Other consumables,25.37,0.00,25.37
Children and Young Peoples Services,Head of Education,071732,Dean Bank Childcare,Supplies and Services,312011,Newspapers Books and Periodicals,02-Dec-2017,000006770250883,AMAZON.CO.UK,5942,Books-school library,6.42,0.00,6.42
Children and Young Peoples Services,Head of Education,071732,Dean Bank Childcare,Supplies and Services,312011,Newspapers Books and Periodicals,02-Dec-2017,000006770250885,AMAZON.CO.UK,5942,Books-school library,4.70,0.00,4.70
Children and Young Peoples Services,Head of Education,071732,Dean Bank Childcare,Supplies and Services,312011,Newspapers Books and Periodicals,02-Dec-2017,000006770250887,AMAZON.CO.UK,5942,Books-school library,5.95,0.00,5.95
Regeneration and Local Services,Spatial Policy Planning Assets & Environment,031204,North Pennines Nectarworks,Supplies and Services,312011,Newspapers Books and Periodicals,02-Dec-2017,000006770250893,AMAZON.CO.UK,5942,Books-school library,7.77,0.00,7.77
Regeneration and Local Services,Spatial Policy Planning Assets & Environment,031204,North Pennines Nectarworks,Supplies and Services,312011,Newspapers Books and Periodicals,02-Dec-2017,000006770250895,AMAZON.CO.UK,5942,Books-school library,1.15,0.00,1.15
Regeneration and Local Services,Spatial Policy Planning Assets & Environment,031204,North Pennines Nectarworks,Supplies and Services,312011,Newspapers Books and Periodicals,02-Dec-2017,000006770250897,AMAZON.CO.UK,5942,Books-school library,11.99,0.00,11.99
Regeneration and Local Services,Spatial Policy Planning Assets & Environment,031204,North Pennines Nectarworks,Supplies and Services,312011,Newspapers Books and Periodicals,02-Dec-2017,000006770250899,AMAZON.CO.UK,5942,Books-school library,2.91,0.00,2.91
Regeneration and Local Services,Spatial Policy Planning Assets & Environment,031204,North Pennines Nectarworks,Supplies and Services,312011,Newspapers Books and Periodicals,02-Dec-2017,000006770250901,AMAZON.CO.UK,5942,Books-school library,7.34,0.00,7.34
Regeneration and Local Services,Spatial Policy Planning Assets & Environment,031204,North Pennines Nectarworks,Supplies and Services,312011,Newspapers Books and Periodicals,02-Dec-2017,000006770250903,AMAZON.CO.UK,5942,Books-school library,6.33,0.00,6.33
Regeneration and Local Services,Spatial Policy Planning Assets & Environment,031204,North Pennines Nectarworks,Supplies and Services,304403,Equipment and Materials,02-Dec-2017,000006770250905,AMAZON UK RETAIL AMAZO,5999,Other consumables,8.49,0.00,8.49
Children and Young Peoples Services,Head of Looked After Provision Permanence and Care Leavers,085957,Secure Management,Supplies and Services,324117,Provisions,02-Dec-2017,000006770250959,TESCO STORES 6329,5411,Catering costs - provisions,86.33,0.00,86.33
Children and Young Peoples Services,Head of Looked After Provision Permanence and Care Leavers,085957,Secure Management,Supplies and Services,312011,Newspapers Books and Periodicals,02-Dec-2017,000006770250963,AMAZON.CO.UK,5942,Books-school library,11.23,0.00,11.23
Children and Young Peoples Services,Head of Looked After Provision Permanence and Care Leavers,085957,Secure Management,Supplies and Services,312011,Newspapers Books and Periodicals,02-Dec-2017,000006770250965,AMAZON.CO.UK,5942,Books-school library,5.00,0.00,5.00
Children and Young Peoples Services,Head of Looked After Provision Permanence and Care Leavers,085957,Secure Management,Supplies and Services,312011,Newspapers Books and Periodicals,02-Dec-2017,000006770250969,AMAZON.CO.UK,5942,Books-school library,11.68,0.00,11.68
Resources,Digital and Customer Services,065335,School Services - Implementations,Supplies and Services,304639,Equipment and Materials,02-Dec-2017,000006770250977,AMAZON.CO.UK,5942,Technicians-supplies,210.36,0.00,210.36
Regeneration and Local Services,Culture & Sport,054815,Gala Theatre Stage School,Supplies and Services,324117,Provisions,02-Dec-2017,000006770250991,SAINSBURYS SACAT 0776,5411,Catering costs - provisions,45.95,0.00,45.95
Regeneration and Local Services,Culture & Sport,054815,Gala Theatre Stage School,Supplies and Services,312011,Newspapers Books and Periodicals,02-Dec-2017,000006770250993,Amazon UK Marketplace,5942,Books-school library,17.28,0.00,17.28
Regeneration and Local Services,Culture & Sport,054815,Gala Theatre Stage School,Supplies and Services,312011,Newspapers Books and Periodicals,02-Dec-2017,000006770250995,AMAZON.CO.UK,5942,Books-school library,29.99,0.00,29.99
Regeneration and Local Services,Economic Development and Housing,031576,B& B - Temp Accom,Supplies and Services,364320,Grants to Voluntary Organisations,02-Dec-2017,000006770251007,TRAVELODGE,3615,Accommodation assistance,101.00,16.83,84.17
Resources,Resources Management,069000,Resources Management,Supplies and Services,324117,Provisions,02-Dec-2017,000006770251097,TESCO STORES 2371,5411,Catering costs - provisions,4.46,0.00,4.46
Regeneration and Local Services,Economic Development and Housing,030694,Netpark Incubator 2,Supplies and Services,332047,Printing Stationery and Gen Off Exps,02-Dec-2017,000006770251239,AMAZON.CO.UK,5942,Stationery,19.74,0.00,19.74
Regeneration and Local Services,Economic Development and Housing,030699,Business Growth and Innovation General,Supplies and Services,304403,Equipment and Materials,03-Dec-2017,000006770250685,ADOBE CREATIVE CLOUD,5734,Other consumables,50.57,8.43,42.14
Children and Young Peoples Services,Head of Education,070169,Durham SSP,Supplies and Services,384199,Miscellaneous Expenses,03-Dec-2017,000006770250779,AMAZON.CO.UK,5942,Other hired and contracted services,34.95,0.00,34.95
Children and Young Peoples Services,Head of Looked After Provision Permanence and Care Leavers,085957,Secure Management,Supplies and Services,312011,Newspapers Books and Periodicals,03-Dec-2017,000006770250967,Amazon UK Marketplace,5942,Books-school library,14.88,0.00,14.88
Children and Young Peoples Services,Head of Early Help Assessment and Safeguarding,071443,Stanley One Point Hub,Supplies and Services,312011,Newspapers Books and Periodicals,03-Dec-2017,000006770251023,AMAZON.CO.UK,5942,Books-school library,36.99,0.00,36.99
Regeneration and Local Services,Economic Development and Housing,030749,Employability - Youth Contract,Transport,235057,Public Transport,03-Dec-2017,000006770251343,ARRIVA NORTH EAST,4131,Staff travelling,25.00,0.00,25.00
Regeneration and Local Services,Spatial Policy Planning Assets & Environment,030051,Strategy and Project Development,Transport,235057,Public Transport,04-Dec-2017,000006770250839,DB BAHN REISEZENTRUM,4112,Staff travelling,1.56,0.00,1.56
Children and Young Peoples Services,Head of Education,071801,Selby Cottage Childcare Centre,Supplies and Services,324117,Provisions,04-Dec-2017,000006778142303,TESCO STORES 2278,5411,Catering costs - provisions,19.13,0.00,19.13
Children and Young Peoples Services,Head of Education,071801,Selby Cottage Childcare Centre,Supplies and Services,324117,Provisions,04-Dec-2017,000006778142305,ALDI 32 774,5411,Catering costs - provisions,52.14,0.00,52.14
Adult and Health Services,EnvironmentHealth & Consumer Protection,010934,Works in Default Holding Code,Income,720130,Fees and Charges,04-Dec-2017,000006778142311,WWW.MONEYCLAIM.GOV,9399,Fees-legal,60.00,0.00,60.00
Adult and Health Services,Head of Adults,055302,Durham Pathways,Supplies and Services,324117,Provisions,04-Dec-2017,000006778142347,SAINSBURYS SACAT 0776,5411,Catering costs - provisions,18.00,0.00,18.00
Children and Young Peoples Services,Head of Looked After Provision Permanence and Care Leavers,085962,Durham,Supplies and Services,304649,Equipment and Materials,04-Dec-2017,000006778142353,Amazon EU,5969,Toys,10.71,0.00,10.71
Regeneration and Local Services,Economic Development and Housing,030699,Business Growth and Innovation General,Supplies and Services,312011,Newspapers Books and Periodicals,04-Dec-2017,000006778142359,FASTHOSTS INTERNET,4816,Books-school library,6.34,1.06,5.28
Regeneration and Local Services,Direct Services,021242,Catering - County Hall,Supplies and Services,324117,Provisions,04-Dec-2017,000006778142405,WWW.ADELIEFOODS.CO.UK,5499,Catering costs - provisions,175.45,0.00,175.45
Regeneration and Local Services,Direct Services,021242,Catering - County Hall,Supplies and Services,324117,Provisions,04-Dec-2017,000006778142409,WWW.ADELIEFOODS.CO.UK,5499,Catering costs - provisions,143.76,0.00,143.76
Regeneration and Local Services,Direct Services,021242,Catering - County Hall,Supplies and Services,324117,Provisions,04-Dec-2017,000006778142413,WWW.ADELIEFOODS.CO.UK,5499,Catering costs - provisions,133.22,0.00,133.22
Regeneration and Local Services,Direct Services,021242,Catering - County Hall,Supplies and Services,324117,Provisions,04-Dec-2017,000006778142417,WWW.ADELIEFOODS.CO.UK,5499,Catering costs - provisions,115.62,0.00,115.62
Regeneration and Local Services,Direct Services,021242,Catering - County Hall,Supplies and Services,324117,Provisions,04-Dec-2017,000006778142421,WWW.ADELIEFOODS.CO.UK,5499,Catering costs - provisions,76.86,0.00,76.86
Regeneration and Local Services,Direct Services,021242,Catering - County Hall,Supplies and Services,324117,Provisions,04-Dec-2017,000006778142425,FREEMAN CATERING BUTCH,5422,Catering costs - provisions,146.63,0.00,146.63
Regeneration and Local Services,Direct Services,021242,Catering - County Hall,Supplies and Services,324117,Provisions,04-Dec-2017,000006778142427,FREEMAN CATERING BUTCH,5422,Catering costs - provisions,43.99,0.00,43.99
Regeneration and Local Services,Direct Services,021242,Catering - County Hall,Supplies and Services,324117,Provisions,04-Dec-2017,000006778142431,JR HOLLAND FOODSERVICE,5422,Catering costs - provisions,100.90,0.00,100.90
Regeneration and Local Services,Direct Services,021242,Catering - County Hall,Supplies and Services,324117,Provisions,04-Dec-2017,000006778142437,JR HOLLAND FOODSERVICE,5422,Catering costs - provisions,6.94,0.00,6.94
Regeneration and Local Services,Culture & Sport,054233,Bishop Auckland Town Hall Library,Supplies and Services,324117,Provisions,04-Dec-2017,000006778142439,ASDA STORES,5411,Catering costs - provisions,81.68,0.00,81.68
Children and Young Peoples Services,Head of Education,070169,Durham SSP,Supplies and Services,384199,Miscellaneous Expenses,04-Dec-2017,000006778142443,Amazon UK Marketplace,5942,Other hired and contracted services,26.99,0.00,26.99
Children and Young Peoples Services,Head of Education,070169,Durham SSP,Supplies and Services,384199,Miscellaneous Expenses,04-Dec-2017,000006778142447,AMAZON.CO.UK,5942,Other hired and contracted services,13.99,0.00,13.99
Regeneration and Local Services,Economic Development and Housing,030737,Durham Works Flexible Fund,Transport,235057,Public Transport,04-Dec-2017,000006778142465,ARRIVA NORTH EAST,4131,Staff travelling,25.00,0.00,25.00
Regeneration and Local Services,Direct Services,021242,Catering - County Hall,Supplies and Services,324117,Provisions,04-Dec-2017,000006778142481,CO-OP GROUP FOOD,5411,Catering costs - provisions,4.35,0.00,4.35
Regeneration and Local Services,Direct Services,021242,Catering - County Hall,Supplies and Services,324117,Provisions,04-Dec-2017,000006778142485,CO-OP GROUP FOOD,5411,Catering costs - provisions,15.19,0.00,15.19
Regeneration and Local Services,Economic Development and Housing,030735,Economic Development - Employability,Transport,235057,Public Transport,04-Dec-2017,000006778142501,ARRIVA NORTH EAST,4131,Staff travelling,25.00,0.00,25.00
Regeneration and Local Services,Culture & Sport,011217,Commercial Management,Supplies and Services,336005,Advertising,04-Dec-2017,000006778142505,LOVE2SHOP.CO.UK,8641,Advertising other than for staff,127.05,0.00,127.05
Children and Young Peoples Services,Head of Education,071732,Dean Bank Childcare,Supplies and Services,324117,Provisions,04-Dec-2017,000006778142541,SAINSBURYS SACAT (2303,5411,Catering costs - provisions,9.90,0.00,9.90
Children and Young Peoples Services,Head of Education,071732,Dean Bank Childcare,Supplies and Services,324117,Provisions,04-Dec-2017,000006778142549,COMPLETE CARE SHOP,5399,Catering costs - provisions,265.92,0.00,265.92
Children and Young Peoples Services,Head of Education,071732,Dean Bank Childcare,Supplies and Services,328041,Clothing Uniforms and Laundry,04-Dec-2017,000006778142551,ARGOS SEDGEFIELD,5310,Clothing uniforms and laundry,32.99,0.00,32.99
Children and Young Peoples Services,Head of Education,071732,Dean Bank Childcare,Supplies and Services,324117,Provisions,04-Dec-2017,000006778142555,ASDA HOME SHOPPING,5411,Catering costs - provisions,91.01,0.00,91.01
Children and Young Peoples Services,Head of Education,071732,Dean Bank Childcare,Supplies and Services,324117,Provisions,04-Dec-2017,000006778142557,ASDA HOME SHOPPING,5411,Catering costs - provisions,44.85,0.00,44.85
Regeneration and Local Services,Economic Development and Housing,030737,Durham Works Flexible Fund,Transport,235057,Public Transport,04-Dec-2017,000006778142595,WWW.SIMPLYGO.COM,4131,Staff travelling,6.50,0.00,6.50
Regeneration and Local Services,Economic Development and Housing,030737,Durham Works Flexible Fund,Supplies and Services,328041,Clothing Uniforms and Laundry,04-Dec-2017,000006778142599,PEACOCK STORES LTD,5331,Clothing uniforms and laundry,28.05,0.00,28.05
Regeneration and Local Services,Economic Development and Housing,030737,Durham Works Flexible Fund,Supplies and Services,328041,Clothing Uniforms and Laundry,04-Dec-2017,000006778142601,THE CLARKS SHOP,5661,Clothing uniforms and laundry,39.05,0.00,39.05
Children and Young Peoples Services,Head of Looked After Provision Permanence and Care Leavers,085957,Secure Management,Supplies and Services,342033,Computers and Communications,04-Dec-2017,000006778142605,VERY.CO.UK,5964,Computer hardware,-32.00,0.00,-32.00
Children and Young Peoples Services,Head of Early Help Assessment and Safeguarding,071746,Newton Aycliffe Childrens Centre,Supplies and Services,324117,Provisions,04-Dec-2017,000006778142615,TESCO STORES 2916,5411,Catering costs - provisions,19.00,0.00,19.00
Regeneration and Local Services,Spatial Policy Planning Assets & Environment,031222,North Pennines Allen Valleys Landscape Partnership,Supplies and Services,324117,Provisions,04-Dec-2017,000006778142621,ALLENDALE CO-OPERATIVE,5499,Catering costs - provisions,1.50,0.00,1.50
Regeneration and Local Services,Culture & Sport,011060,Hardwick Park Catering,Supplies and Services,324117,Provisions,04-Dec-2017,000006778142627,FREEMAN CATERING BUTCH,5422,Catering costs - provisions,37.64,0.00,37.64
Regeneration and Local Services,Culture & Sport,011060,Hardwick Park Catering,Supplies and Services,324117,Provisions,04-Dec-2017,000006778142629,FREEMAN CATERING BUTCH,5422,Catering costs - provisions,20.83,0.00,20.83
Regeneration and Local Services,Culture & Sport,011060,Hardwick Park Catering,Supplies and Services,324117,Provisions,04-Dec-2017,000006778142633,FREEMAN CATERING BUTCH,5422,Catering costs - provisions,14.35,0.00,14.35
Regeneration and Local Services,Culture & Sport,011060,Hardwick Park Catering,Supplies and Services,324117,Provisions,04-Dec-2017,000006778142637,JR HOLLAND FOODSERVICE,5422,Catering costs - provisions,9.94,0.00,9.94
Regeneration and Local Services,Direct Services,021234,Catering - Locomotion,Supplies and Services,324117,Provisions,04-Dec-2017,000006778142657,WWW.ADELIEFOODS.CO.UK,5499,Catering costs - provisions,184.53,0.00,184.53
Regeneration and Local Services,Direct Services,021234,Catering - Locomotion,Supplies and Services,324117,Provisions,04-Dec-2017,000006778142661,WWW.ADELIEFOODS.CO.UK,5499,Catering costs - provisions,86.30,0.00,86.30
Regeneration and Local Services,Direct Services,021234,Catering - Locomotion,Supplies and Services,324117,Provisions,04-Dec-2017,000006778142665,WWW.ADELIEFOODS.CO.UK,5499,Catering costs - provisions,84.76,0.00,84.76
Regeneration and Local Services,Direct Services,021234,Catering - Locomotion,Supplies and Services,324117,Provisions,04-Dec-2017,000006778142667,WWW.ADELIEFOODS.CO.UK,5499,Catering costs - provisions,60.35,0.00,60.35
Regeneration and Local Services,Direct Services,021234,Catering - Locomotion,Supplies and Services,324117,Provisions,04-Dec-2017,000006778142671,FREEMAN CATERING BUTCH,5422,Catering costs - provisions,92.37,0.00,92.37
Regeneration and Local Services,Economic Development and Housing,031576,B& B - Temp Accom,Supplies and Services,364320,Grants to Voluntary Organisations,04-Dec-2017,000006778142675,TRAVELODGE,3615,Accommodation assistance,48.00,8.00,40.00
Regeneration and Local Services,Economic Development and Housing,031576,B& B - Temp Accom,Supplies and Services,364320,Grants to Voluntary Organisations,04-Dec-2017,000006778142679,TRAVELODGE,3615,Accommodation assistance,44.00,0.00,44.00
Regeneration and Local Services,Economic Development and Housing,031576,B& B - Temp Accom,Supplies and Services,364320,Grants to Voluntary Organisations,04-Dec-2017,000006778142683,TRAVELODGE,3615,Accommodation assistance,36.00,6.00,30.00
Regeneration and Local Services,Economic Development and Housing,031576,B& B - Temp Accom,Supplies and Services,364320,Grants to Voluntary Organisations,04-Dec-2017,000006778142685,TRAVELODGE,3615,Accommodation assistance,36.00,6.00,30.00
Regeneration and Local Services,Economic Development and Housing,031576,B& B - Temp Accom,Supplies and Services,364320,Grants to Voluntary Organisations,04-Dec-2017,000006778142689,TRAVELODGE,3615,Accommodation assistance,37.00,0.00,37.00
Regeneration and Local Services,Direct Services,010525,Catering - Green Lane,Supplies and Services,324117,Provisions,04-Dec-2017,000006778142693,WWW.ADELIEFOODS.CO.UK,5499,Catering costs - provisions,65.68,0.00,65.68
Regeneration and Local Services,Direct Services,010525,Catering - Green Lane,Supplies and Services,324117,Provisions,04-Dec-2017,000006778142697,WWW.ADELIEFOODS.CO.UK,5499,Catering costs - provisions,38.88,0.00,38.88
Regeneration and Local Services,Direct Services,010525,Catering - Green Lane,Supplies and Services,324117,Provisions,04-Dec-2017,000006778142699,FREEMAN CATERING BUTCH,5422,Catering costs - provisions,58.42,0.00,58.42
Regeneration and Local Services,Direct Services,010525,Catering - Green Lane,Supplies and Services,324117,Provisions,04-Dec-2017,000006778142703,FREEMAN CATERING BUTCH,5422,Catering costs - provisions,44.65,0.00,44.65
Regeneration and Local Services,Direct Services,010367,C&G - South Grounds Maintenance,Supplies and Services,304259,Equipment and Materials,04-Dec-2017,000006778142749,SCREWFIX DIRECT LT,5211,Equipment-purchase and rental,83.95,0.00,83.95
Regeneration and Local Services,Economic Development and Housing,030749,Employability - Youth Contract,Supplies and Services,332047,Printing Stationery and Gen Off Exps,04-Dec-2017,000006778142777,LOVE2SHOP.CO.UK,8641,Stationery,4.26,0.71,3.55
Regeneration and Local Services,Economic Development and Housing,030737,Durham Works Flexible Fund,Supplies and Services,384700,Miscellaneous Expenses,04-Dec-2017,000006778142777 - 1,LOVE2SHOP.CO.UK,8641,Miscellaneous grants,489.99,,489.99
Children and Young Peoples Services,Head of Looked After Provision Permanence and Care Leavers,085333,Coxhoe Satelite Home,Supplies and Services,312011,Newspapers Books and Periodicals,04-Dec-2017,000006778142783,HOME BARGAINS,5251,Books-school library,51.54,8.59,42.95
Children and Young Peoples Services,Head of Looked After Provision Permanence and Care Leavers,085333,Coxhoe Satelite Home,Supplies and Services,312011,Newspapers Books and Periodicals,04-Dec-2017,000006778142783 - 1,HOME BARGAINS,5251,Books-school library,3.30,,3.30
Children and Young Peoples Services,Head of Looked After Provision Permanence and Care Leavers,085333,Coxhoe Satelite Home,Supplies and Services,324117,Provisions,04-Dec-2017,000006778142785,TESCO STORES 2371,5411,Catering costs - provisions,83.28,0.00,83.28
Children and Young Peoples Services,Head of Looked After Provision Permanence and Care Leavers,085333,Coxhoe Satelite Home,Supplies and Services,324117,Provisions,04-Dec-2017,000006778142787,TESCO STORES 2371,5411,Catering costs - provisions,29.00,0.00,29.00
Regeneration and Local Services,Direct Services,010367,C&G - South Grounds Maintenance,Supplies and Services,304259,Equipment and Materials,04-Dec-2017,000006778142791,RICHMOND TURF GROW,5261,Equipment-purchase and rental,139.20,0.00,139.20
Adult and Health Services,Head of Adults,055301,Stanley Pathways,Supplies and Services,324117,Provisions,04-Dec-2017,000006778142795,ASDA SUPERSTORE,5411,Catering costs - provisions,2.18,0.00,2.18
Regeneration and Local Services,Culture & Sport,026591,Hardwick Park,Supplies and Services,304259,Equipment and Materials,04-Dec-2017,000006778142799,GBP NatureSpy,5946,Equipment-purchase and rental,197.99,33.00,164.99
Regeneration and Local Services,Spatial Policy Planning Assets & Environment,036000,Asset Management,Employees,040149,Recruitment Instruction and Training,04-Dec-2017,000006778142877,RICS COM GBP CYBS,8699,Training-all costs,42.00,7.00,35.00
Regeneration and Local Services,Transport and Contracted Services,031701,Care Connect All Localities,Supplies and Services,344033,Telephones,04-Dec-2017,000006778142885,CBF/MBLOX LTD.,4812,Telephones general-all costs,432.60,72.10,360.50
Regeneration and Local Services,Direct Services,021324,Catering - Meadowfield,Supplies and Services,324117,Provisions,04-Dec-2017,000006778142895,FREEMAN CATERING BUTCH,5422,Catering costs - provisions,64.40,0.00,64.40
Regeneration and Local Services,Direct Services,021324,Catering - Meadowfield,Supplies and Services,324117,Provisions,04-Dec-2017,000006778142899,FREEMAN CATERING BUTCH,5422,Catering costs - provisions,50.38,0.00,50.38
Children and Young Peoples Services,Head of Looked After Provision Permanence and Care Leavers,085333,Coxhoe Satelite Home,Supplies and Services,328041,Clothing Uniforms and Laundry,04-Dec-2017,000006778142905,MATALAN,5691,Clothing uniforms and laundry,22.50,0.00,22.50
Children and Young Peoples Services,Head of Looked After Provision Permanence and Care Leavers,085333,Coxhoe Satelite Home,Supplies and Services,304259,Equipment and Materials,04-Dec-2017,000006778142907,THATS ENTERTAINMENT,5735,Equipment-purchase and rental,57.02,0.00,57.02
Children and Young Peoples Services,Head of Looked After Provision Permanence and Care Leavers,085333,Coxhoe Satelite Home,Supplies and Services,324117,Provisions,04-Dec-2017,000006778142911,TESCO STORES 2371,5411,Catering costs - provisions,44.50,0.00,44.50
Children and Young Peoples Services,Head of Looked After Provision Permanence and Care Leavers,085333,Coxhoe Satelite Home,Supplies and Services,328041,Clothing Uniforms and Laundry,04-Dec-2017,000006778142913,B & M RETAIL,5310,Clothing uniforms and laundry,22.46,0.00,22.46
Children and Young Peoples Services,Head of Looked After Provision Permanence and Care Leavers,085331,New Lea Childrens Home,Supplies and Services,384999,Miscellaneous Expenses,04-Dec-2017,000006778143001,TICKETS COM,7922,Other expenses,86.50,0.00,86.50
Regeneration and Local Services,Direct Services,021235,Catering - Wharton Park,Supplies and Services,324117,Provisions,04-Dec-2017,000006778143009,WWW.ADELIEFOODS.CO.UK,5499,Catering costs - provisions,48.14,0.00,48.14
Regeneration and Local Services,Culture & Sport,010605,Woodhouse Close Leisure Complex,Supplies and Services,324117,Provisions,04-Dec-2017,000006778143025,FREEMAN CATERING BUTCH,5422,Catering costs - provisions,51.78,0.00,51.78
Regeneration and Local Services,Culture & Sport,010605,Woodhouse Close Leisure Complex,Supplies and Services,324117,Provisions,04-Dec-2017,000006778143029,JR HOLLAND FOODSERVICE,5422,Catering costs - provisions,44.09,0.00,44.09
Resources,Finance & Transactional Services,065180,Collections,Employees,040149,Recruitment Instruction and Training,04-Dec-2017,000006778143037,CHARTERED INST OF LEGA,8699,Training-all costs,128.00,0.00,128.00
Regeneration and Local Services,Culture & Sport,011230,Operations Locality 2,Supplies and Services,304259,Equipment and Materials,04-Dec-2017,000006778143045,HOMEPLAN DIY,5211,Equipment-purchase and rental,111.96,0.00,111.96
Regeneration and Local Services,Culture & Sport,011230,Operations Locality 2,Supplies and Services,328041,Clothing Uniforms and Laundry,04-Dec-2017,000006778143049,WWW.ARGOS.CO.UK,5310,Clothing uniforms and laundry,93.99,0.00,93.99
Regeneration and Local Services,Culture & Sport,011230,Operations Locality 2,Supplies and Services,304259,Equipment and Materials,04-Dec-2017,000006778143051,WILKO RETAIL LIMIT,5722,Equipment-purchase and rental,67.05,0.00,67.05
Children and Young Peoples Services,Head of Early Help Assessment and Safeguarding,088003,Peterlee 0 - 5,Supplies and Services,308011,Furniture,04-Dec-2017,000006778143065,J DODDS CARPETS LTD,5713,Furniture repair and replacement,60.00,0.00,60.00
Regeneration and Local Services,Economic Development and Housing,030699,Business Growth and Innovation General,Supplies and Services,304403,Equipment and Materials,04-Dec-2017,000006781781635,MEETEDGAR MONTHLY,5734,Other consumables,36.50,0.00,36.50
Regeneration and Local Services,Economic Development and Housing,030737,Durham Works Flexible Fund,Supplies and Services,328041,Clothing Uniforms and Laundry,04-Dec-2017,000006781781697,NEW LOOK INTERNET,5621,Clothing uniforms and laundry,23.98,0.00,23.98
Regeneration and Local Services,Economic Development and Housing,031576,B& B - Temp Accom,Supplies and Services,364320,Grants to Voluntary Organisations,04-Dec-2017,000006781781877,PREMIER INN,3811,Accommodation assistance,67.00,0.00,67.00
Regeneration and Local Services,Culture & Sport,054812,Gala Theatre - Catering etc,Supplies and Services,324117,Provisions,04-Dec-2017,000006791770549,BATLEYS PERTH,5300,Catering costs - provisions,32.70,5.45,27.25
Regeneration and Local Services,Culture & Sport,054812,Gala Theatre - Catering etc,Supplies and Services,324117,Provisions,04-Dec-2017,000006791770549 - 1,BATLEYS PERTH,5300,Catering costs - provisions,52.41,,52.41
Regeneration and Local Services,Culture & Sport,011060,Hardwick Park Catering,Supplies and Services,324117,Provisions,04-Dec-2017,000006791770713,BATLEYS PERTH,5300,Catering costs - provisions,-39.78,0.00,-39.78
Regeneration and Local Services,Direct Services,021235,Catering - Wharton Park,Supplies and Services,324117,Provisions,04-Dec-2017,000006791771173,BATLEYS PERTH,5300,Catering costs - provisions,39.60,6.60,33.00
Regeneration and Local Services,Direct Services,021235,Catering - Wharton Park,Supplies and Services,324117,Provisions,04-Dec-2017,000006791771173 - 1,BATLEYS PERTH,5300,Catering costs - provisions,8.73,,8.73
Regeneration and Local Services,Economic Development and Housing,030737,Durham Works Flexible Fund,Supplies and Services,342033,Computers and Communications,05-Dec-2017,000006778142455,DELL PRODUCT,7372,Computer hardware,37.43,6.24,31.19
Regeneration and Local Services,Economic Development and Housing,030737,Durham Works Flexible Fund,Supplies and Services,342033,Computers and Communications,05-Dec-2017,000006778142459,DELL PRODUCT,7372,Computer hardware,37.43,6.24,31.19
Children and Young Peoples Services,Head of Education,071801,Selby Cottage Childcare Centre,Supplies and Services,324117,Provisions,05-Dec-2017,000006781781587,TESCO STORES 2278,5411,Catering costs - provisions,28.32,0.00,28.32
Children and Young Peoples Services,Head of Education,071903,EYDCP-Sustainability EDS,Income,720130,Fees and Charges,05-Dec-2017,000006781781603,WWW.MONEYCLAIM.GOV,9399,Fees-legal,60.00,0.00,60.00
Regeneration and Local Services,Direct Services,010909,C&G - Technical & Service Development Team,Supplies and Services,304335,Equipment and Materials,05-Dec-2017,000006781781607,PAYPAL ADAPTERSSHO,5732,ICT supplies etc,27.98,0.00,27.98
Adult and Health Services,Head of Adults,055302,Durham Pathways,Supplies and Services,324117,Provisions,05-Dec-2017,000006781781619,SAINSBURYS SACAT 0776,5411,Catering costs - provisions,15.50,0.00,15.50
Children and Young Peoples Services,Head of Looked After Provision Permanence and Care Leavers,085955,Auckland,Supplies and Services,304252,Equipment and Materials,05-Dec-2017,000006781781627,JAMES ARMSTRONG & CO L,7216,Equipment-repairsserviceinsurance,198.38,33.06,165.32
Children and Young Peoples Services,Head of Looked After Provision Permanence and Care Leavers,085342,9 Cedar Drive Aycliffe,Supplies and Services,324117,Provisions,05-Dec-2017,000006781781655,TESCO STORES 2916,5411,Catering costs - provisions,230.58,0.00,230.58
Regeneration and Local Services,Direct Services,021242,Catering - County Hall,Supplies and Services,324117,Provisions,05-Dec-2017,000006781781677,JR HOLLAND FOODSERVICE,5422,Catering costs - provisions,51.66,0.00,51.66
Regeneration and Local Services,Direct Services,021242,Catering - County Hall,Supplies and Services,324117,Provisions,05-Dec-2017,000006781781681,JR HOLLAND FOODSERVICE,5422,Catering costs - provisions,6.60,0.00,6.60
Resources,Digital and Customer Services,065461,Business Support,Supplies and Services,304999,Equipment and Materials,05-Dec-2017,000006781781685,WEB NETWORKSOLUTIONS,5968,Misc equipment tools and materials,103.14,0.00,103.14
Regeneration and Local Services,Economic Development and Housing,030737,Durham Works Flexible Fund,Transport,235057,Public Transport,05-Dec-2017,000006781781691,ARRIVA NORTH EAST,4131,Staff travelling,7.00,0.00,7.00
Regeneration and Local Services,Economic Development and Housing,030737,Durham Works Flexible Fund,Supplies and Services,328041,Clothing Uniforms and Laundry,05-Dec-2017,000006781781695,H & M ONLINE,5691,Clothing uniforms and laundry,25.98,0.00,25.98
Regeneration and Local Services,Culture & Sport,054812,Gala Theatre - Catering etc,Supplies and Services,324117,Provisions,05-Dec-2017,000006781781701,JR HOLLAND FOODSERVICE,5422,Catering costs - provisions,48.15,0.00,48.15
Children and Young Peoples Services,Head of Looked After Provision Permanence and Care Leavers,085351,Framwellgate Moor CU,Supplies and Services,324117,Provisions,05-Dec-2017,000006781781731,ASDA HOME SHOPPING,5411,Catering costs - provisions,269.57,0.00,269.57
Children and Young Peoples Services,Head of Looked After Provision Permanence and Care Leavers,085333,Coxhoe Satelite Home,Supplies and Services,328041,Clothing Uniforms and Laundry,05-Dec-2017,000006781781735,PAYPAL HONGKONGBAI,5331,Clothing uniforms and laundry,29.85,0.00,29.85
Children and Young Peoples Services,Head of Education,071732,Dean Bank Childcare,Supplies and Services,304259,Equipment and Materials,05-Dec-2017,000006781781767,WILKO RETAIL LIMIT,5722,Equipment-purchase and rental,10.90,0.00,10.90
Resources,Legal & Democratic Services,067910,Democratic Representation,Supplies and Services,384965,Miscellaneous Expenses,05-Dec-2017,000006781781775,CO-OP GROUP 310015,5411,Civic Functions,18.00,0.00,18.00
Regeneration and Local Services,Direct Services,010301,C&G - North Grounds Maintenance,Supplies and Services,304403,Equipment and Materials,05-Dec-2017,000006781781807,BESCOL,5231,Other consumables,30.52,0.00,30.52
Children and Young Peoples Services,Head of Looked After Provision Permanence and Care Leavers,085957,Secure Management,Supplies and Services,304259,Equipment and Materials,05-Dec-2017,000006781781823,M and M Direct Ltd,5941,Equipment-purchase and rental,90.96,0.00,90.96
Children and Young Peoples Services,Head of Looked After Provision Permanence and Care Leavers,085957,Secure Management,Supplies and Services,328041,Clothing Uniforms and Laundry,05-Dec-2017,000006781781825,SELECT,5691,Clothing uniforms and laundry,25.97,0.00,25.97
Children and Young Peoples Services,Head of Looked After Provision Permanence and Care Leavers,085957,Secure Management,Supplies and Services,324117,Provisions,05-Dec-2017,000006781781827,TESCO STORES 6329,5411,Catering costs - provisions,79.09,0.00,79.09
Children and Young Peoples Services,Head of Looked After Provision Permanence and Care Leavers,085957,Secure Management,Supplies and Services,342033,Computers and Communications,05-Dec-2017,000006781781831,VERY.CO.UK,5964,Computer hardware,82.99,0.00,82.99
Regeneration and Local Services,Culture & Sport,011060,Hardwick Park Catering,Supplies and Services,324117,Provisions,05-Dec-2017,000006781781843,JR HOLLAND FOODSERVICE,5422,Catering costs - provisions,50.80,0.00,50.80
Regeneration and Local Services,Culture & Sport,011060,Hardwick Park Catering,Supplies and Services,324117,Provisions,05-Dec-2017,000006781781847,JR HOLLAND FOODSERVICE,5422,Catering costs - provisions,17.92,0.00,17.92
Resources,Digital and Customer Services,065335,School Services - Implementations,Supplies and Services,304639,Equipment and Materials,05-Dec-2017,000006781781861,AMZ replacebase,4816,Technicians-supplies,124.80,20.80,104.00
Resources,Digital and Customer Services,065335,School Services - Implementations,Supplies and Services,304639,Equipment and Materials,05-Dec-2017,000006781781861 - 1,AMZ replacebase,4816,Technicians-supplies,4.81,,4.81
Regeneration and Local Services,Direct Services,021234,Catering - Locomotion,Supplies and Services,324117,Provisions,05-Dec-2017,000006781781865,JR HOLLAND FOODSERVICE,5422,Catering costs - provisions,80.23,0.00,80.23
Regeneration and Local Services,Direct Services,010525,Catering - Green Lane,Supplies and Services,324117,Provisions,05-Dec-2017,000006781781911,JR HOLLAND FOODSERVICE,5422,Catering costs - provisions,75.20,0.00,75.20
Children and Young Peoples Services,Head of Looked After Provision Permanence and Care Leavers,085334,West Rainton Satelite Home,Supplies and Services,312011,Newspapers Books and Periodicals,05-Dec-2017,000006781781921,Amazon UK Marketplace,5942,Books-school library,23.78,0.00,23.78
Children and Young Peoples Services,Head of Looked After Provision Permanence and Care Leavers,085334,West Rainton Satelite Home,Supplies and Services,312011,Newspapers Books and Periodicals,05-Dec-2017,000006781781923,Amazon UK Marketplace,5942,Books-school library,62.40,0.00,62.40
Children and Young Peoples Services,Head of Looked After Provision Permanence and Care Leavers,085334,West Rainton Satelite Home,Supplies and Services,312011,Newspapers Books and Periodicals,05-Dec-2017,000006781781925,AMAZON.CO.UK,5942,Books-school library,9.99,0.00,9.99
Children and Young Peoples Services,Head of Looked After Provision Permanence and Care Leavers,085334,West Rainton Satelite Home,Supplies and Services,312011,Newspapers Books and Periodicals,05-Dec-2017,000006781781927,AMAZON.CO.UK,5942,Books-school library,44.95,0.00,44.95
Children and Young Peoples Services,Head of Looked After Provision Permanence and Care Leavers,085334,West Rainton Satelite Home,Supplies and Services,312011,Newspapers Books and Periodicals,05-Dec-2017,000006781781929,Amazon UK Marketplace,5942,Books-school library,5.88,0.00,5.88
Children and Young Peoples Services,Head of Looked After Provision Permanence and Care Leavers,085334,West Rainton Satelite Home,Supplies and Services,308011,Furniture,05-Dec-2017,000006781781933,DUNELM (SOFT FURNISHIN,5714,Furniture repair and replacement,271.99,0.00,271.99
Resources,Resources Management,069000,Resources Management,Supplies and Services,324117,Provisions,05-Dec-2017,000006781781995,CO-OP GROUP 010830,5411,Catering costs - provisions,10.00,0.00,10.00
Regeneration and Local Services,Economic Development and Housing,030737,Durham Works Flexible Fund,Transport,235057,Public Transport,05-Dec-2017,000006781782013,WWW.SIMPLYGO.COM,4131,Staff travelling,5.10,0.00,5.10
Children and Young Peoples Services,Head of Education,078100,Curric and Professional Development,Supplies and Services,312011,Newspapers Books and Periodicals,05-Dec-2017,000006781782019,HOME BARGAINS SPENNYMO,5251,Books-school library,5.98,0.00,5.98
Children and Young Peoples Services,Head of Education,078100,Curric and Professional Development,Supplies and Services,324117,Provisions,05-Dec-2017,000006781782021,ASDA SUPERSTORE 4987,5411,Catering costs - provisions,8.00,0.00,8.00
Children and Young Peoples Services,Head of Early Help Assessment and Safeguarding,088001,Peterlee Locality,Supplies and Services,304403,Equipment and Materials,05-Dec-2017,000006781782055,TESCO - Childrens Room,5999,Other consumables,14.99,0.00,14.99
Children and Young Peoples Services,Head of Early Help Assessment and Safeguarding,088001,Peterlee Locality,Supplies and Services,304403,Equipment and Materials,05-Dec-2017,000006781782057,TESCO - Tescopay,5999,Other consumables,83.68,0.00,83.68
Children and Young Peoples Services,Head of Looked After Provision Permanence and Care Leavers,085333,Coxhoe Satelite Home,Supplies and Services,328041,Clothing Uniforms and Laundry,05-Dec-2017,000006781782083,B&M RETAIL,5310,Clothing uniforms and laundry,31.92,0.00,31.92
Regeneration and Local Services,Economic Development and Housing,031576,B& B - Temp Accom,Supplies and Services,364320,Grants to Voluntary Organisations,05-Dec-2017,000006781782119,TRAVELODGE,3615,Accommodation assistance,51.00,8.50,42.50
Regeneration and Local Services,Economic Development and Housing,031576,B& B - Temp Accom,Supplies and Services,364320,Grants to Voluntary Organisations,05-Dec-2017,000006781782121,TRAVELODGE,3615,Accommodation assistance,47.00,7.83,39.17
Regeneration and Local Services,Economic Development and Housing,031576,B& B - Temp Accom,Supplies and Services,364320,Grants to Voluntary Organisations,05-Dec-2017,000006781782123,TRAVELODGE,3615,Accommodation assistance,51.00,8.50,42.50
Regeneration and Local Services,Economic Development and Housing,031576,B& B - Temp Accom,Supplies and Services,364320,Grants to Voluntary Organisations,05-Dec-2017,000006781782125,TRAVELODGE,3615,Accommodation assistance,36.00,6.00,30.00
Children and Young Peoples Services,Head of Early Help Assessment and Safeguarding,088083,Ferryhill 0 - 5,Supplies and Services,324117,Provisions,05-Dec-2017,000006781782159,ALDI 59 774,5411,Catering costs - provisions,5.68,0.00,5.68
Children and Young Peoples Services,Head of Looked After Provision Permanence and Care Leavers,085331,New Lea Childrens Home,Supplies and Services,308011,Furniture,05-Dec-2017,000006781782175,EDS BEDS LTD,5712,Furniture repair and replacement,261.00,0.00,261.00
Children and Young Peoples Services,Head of Early Help Assessment and Safeguarding,074000,TTF-Attachment and Results,Supplies and Services,304403,Equipment and Materials,05-Dec-2017,000006781782179,TESCO - EDPA,5999,Other consumables,37.98,0.00,37.98
Children and Young Peoples Services,Head of Early Help Assessment and Safeguarding,074000,TTF-Attachment and Results,Supplies and Services,304403,Equipment and Materials,05-Dec-2017,000006781782183,TESCO - EDPA,5999,Other consumables,17.97,0.00,17.97
Children and Young Peoples Services,Head of Early Help Assessment and Safeguarding,074000,TTF-Attachment and Results,Supplies and Services,304403,Equipment and Materials,05-Dec-2017,000006781782185,TESCO - Safetots Limit,5999,Other consumables,15.40,2.57,12.83
Children and Young Peoples Services,Head of Early Help Assessment and Safeguarding,074000,TTF-Attachment and Results,Supplies and Services,304403,Equipment and Materials,05-Dec-2017,000006781782187,TESCO DIRECT,5999,Other consumables,67.00,0.00,67.00
Children and Young Peoples Services,Head of Early Help Assessment and Safeguarding,074000,TTF-Attachment and Results,Supplies and Services,304403,Equipment and Materials,05-Dec-2017,000006781782189,TESCO DIRECT,5999,Other consumables,33.00,0.00,33.00
Children and Young Peoples Services,Head of Early Help Assessment and Safeguarding,074000,TTF-Attachment and Results,Supplies and Services,304403,Equipment and Materials,05-Dec-2017,000006781782191,TESCO-Seller_IST_1_240,5999,Other consumables,29.99,0.00,29.99
Children and Young Peoples Services,Head of Early Help Assessment and Safeguarding,074000,TTF-Attachment and Results,Supplies and Services,304403,Equipment and Materials,05-Dec-2017,000006781782193,TESCO-Seller_IST_1_240,5999,Other consumables,23.48,0.00,23.48
Children and Young Peoples Services,Head of Early Help Assessment and Safeguarding,074000,TTF-Attachment and Results,Supplies and Services,304403,Equipment and Materials,05-Dec-2017,000006781782195,TESCO-Seller_IST_1_240,5999,Other consumables,17.99,0.00,17.99
Regeneration and Local Services,Economic Development and Housing,030737,Durham Works Flexible Fund,Supplies and Services,384999,Miscellaneous Expenses,05-Dec-2017,000006781782217,WWW.SALLYEXPRESS.COM,7230,Other expenses,34.99,5.83,29.16
Regeneration and Local Services,Economic Development and Housing,030737,Durham Works Flexible Fund,Transport,235057,Public Transport,05-Dec-2017,000006781782253,WWW.SIMPLYGO.COM,4131,Staff travelling,6.50,0.00,6.50
Regeneration and Local Services,Spatial Policy Planning Assets & Environment,031200,North Pennines Core,Supplies and Services,340001,Postages,05-Dec-2017,000006781782255,THE POST OFFICE,9402,Postages,2.55,0.00,2.55
Regeneration and Local Services,Direct Services,010915,Morrison Busty,Supplies and Services,384956,Miscellaneous Expenses,05-Dec-2017,000006786763061,TVLICENSING.CO.UK,7392,Licences,147.00,0.00,147.00
Children and Young Peoples Services,Head of Looked After Provision Permanence and Care Leavers,085957,Secure Management,Supplies and Services,328041,Clothing Uniforms and Laundry,05-Dec-2017,000006786763547,21THREE CLOTHING COMPA,5691,Clothing uniforms and laundry,88.99,0.00,88.99
Children and Young Peoples Services,Head of Looked After Provision Permanence and Care Leavers,085957,Secure Management,Supplies and Services,328041,Clothing Uniforms and Laundry,05-Dec-2017,000006786763565,NEW LOOK INTERNET,5621,Clothing uniforms and laundry,17.95,0.00,17.95
Children and Young Peoples Services,Head of Looked After Provision Permanence and Care Leavers,085957,Secure Management,Supplies and Services,304259,Equipment and Materials,05-Dec-2017,000006786763579,SPORTSDIRECT.COM,5941,Equipment-purchase and rental,39.99,0.00,39.99
Children and Young Peoples Services,Head of Early Help Assessment and Safeguarding,088001,Peterlee Locality,Supplies and Services,304259,Equipment and Materials,05-Dec-2017,000006786764223,HARTLEPOOL BC CNP,9399,Equipment-purchase and rental,14.21,0.00,14.21
Regeneration and Local Services,Economic Development and Housing,031576,B& B - Temp Accom,Supplies and Services,364320,Grants to Voluntary Organisations,05-Dec-2017,000006786764311,PREMIER INN,3811,Accommodation assistance,78.00,13.00,65.00
Regeneration and Local Services,Direct Services,021242,Catering - County Hall,Supplies and Services,324117,Provisions,05-Dec-2017,000006791770495,BATLEYS PERTH,5300,Catering costs - provisions,223.98,37.33,186.65
Regeneration and Local Services,Direct Services,021242,Catering - County Hall,Supplies and Services,324117,Provisions,05-Dec-2017,000006791770495 - 1,BATLEYS PERTH,5300,Catering costs - provisions,101.60,,101.60
Children and Young Peoples Services,Head of Early Help Assessment and Safeguarding,071746,Newton Aycliffe Childrens Centre,Supplies and Services,324117,Provisions,05-Dec-2017,000006791770663,BATLEYS PERTH,5300,Catering costs - provisions,31.61,0.00,31.61
Regeneration and Local Services,Culture & Sport,011060,Hardwick Park Catering,Supplies and Services,324117,Provisions,05-Dec-2017,000006791770711,BATLEYS PERTH,5300,Catering costs - provisions,197.64,32.94,164.70
Regeneration and Local Services,Culture & Sport,011060,Hardwick Park Catering,Supplies and Services,324117,Provisions,05-Dec-2017,000006791770711 - 1,BATLEYS PERTH,5300,Catering costs - provisions,130.25,,130.25
Regeneration and Local Services,Direct Services,021234,Catering - Locomotion,Supplies and Services,324117,Provisions,05-Dec-2017,000006791770747,BATLEYS PERTH,5300,Catering costs - provisions,87.60,14.60,73.00
Regeneration and Local Services,Direct Services,021234,Catering - Locomotion,Supplies and Services,324117,Provisions,05-Dec-2017,000006791770747 - 1,BATLEYS PERTH,5300,Catering costs - provisions,37.87,,37.87
Regeneration and Local Services,Direct Services,021234,Catering - Locomotion,Supplies and Services,324117,Provisions,05-Dec-2017,000006791770749,BATLEYS PERTH,5300,Catering costs - provisions,88.80,14.80,74.00
Regeneration and Local Services,Direct Services,021234,Catering - Locomotion,Supplies and Services,324117,Provisions,05-Dec-2017,000006791770749 - 1,BATLEYS PERTH,5300,Catering costs - provisions,8.67,,8.67
Regeneration and Local Services,Culture & Sport,054235,Bishop Auckland Town Hall Cafe,Supplies and Services,324117,Provisions,05-Dec-2017,000006791771031,BATLEYS PERTH,5300,Catering costs - provisions,300.90,50.15,250.75
Regeneration and Local Services,Culture & Sport,054235,Bishop Auckland Town Hall Cafe,Supplies and Services,324117,Provisions,05-Dec-2017,000006791771031 - 1,BATLEYS PERTH,5300,Catering costs - provisions,60.83,,60.83
Regeneration and Local Services,Culture & Sport,054235,Bishop Auckland Town Hall Cafe,Supplies and Services,324117,Provisions,05-Dec-2017,000006791771039,BATLEYS PERTH,5300,Catering costs - provisions,105.42,17.57,87.85
Regeneration and Local Services,Culture & Sport,054235,Bishop Auckland Town Hall Cafe,Supplies and Services,324117,Provisions,05-Dec-2017,000006791771039 - 1,BATLEYS PERTH,5300,Catering costs - provisions,96.68,,96.68
Regeneration and Local Services,Direct Services,021324,Catering - Meadowfield,Supplies and Services,324117,Provisions,05-Dec-2017,000006791771047,BATLEYS PERTH,5300,Catering costs - provisions,63.78,10.63,53.15
Regeneration and Local Services,Direct Services,021324,Catering - Meadowfield,Supplies and Services,324117,Provisions,05-Dec-2017,000006791771047 - 1,BATLEYS PERTH,5300,Catering costs - provisions,97.54,,97.54
Children and Young Peoples Services,Head of Looked After Provision Permanence and Care Leavers,085957,Secure Management,Supplies and Services,328041,Clothing Uniforms and Laundry,05-Dec-2017,000006826004201,21THREE CLOTHING COMPA,5691,Clothing uniforms and laundry,-85.00,0.00,-85.00
Regeneration and Local Services,Economic Development and Housing,030699,Business Growth and Innovation General,Supplies and Services,304403,Equipment and Materials,06-Dec-2017,000006781781639,MEETEDGAR MONTHLY,5734,Other consumables,1.00,0.00,1.00
Resources,Digital and Customer Services,065461,Business Support,Supplies and Services,304999,Equipment and Materials,06-Dec-2017,000006781781689,WEB NETWORKSOLUTIONS,5968,Misc equipment tools and materials,2.84,0.00,2.84
Children and Young Peoples Services,Head of Looked After Provision Permanence and Care Leavers,085957,Secure Management,Supplies and Services,312011,Newspapers Books and Periodicals,06-Dec-2017,000006781781833,Amazon UK Marketplace,5942,Books-school library,3.47,0.00,3.47
Children and Young Peoples Services,Head of Looked After Provision Permanence and Care Leavers,085341,High Etherley Satelite Home,Supplies and Services,324117,Provisions,06-Dec-2017,000006786762863,TESCO STORES 6329,5411,Catering costs - provisions,146.80,0.00,146.80
Children and Young Peoples Services,Head of Looked After Provision Permanence and Care Leavers,085341,High Etherley Satelite Home,Supplies and Services,324117,Provisions,06-Dec-2017,000006786762869,TESCO STORES 6329,5411,Catering costs - provisions,3.20,0.00,3.20
Children and Young Peoples Services,Head of Education,071801,Selby Cottage Childcare Centre,Supplies and Services,324117,Provisions,06-Dec-2017,000006786762895,TESCO STORES 2278,5411,Catering costs - provisions,25.80,0.00,25.80
Children and Young Peoples Services,Head of Education,071801,Selby Cottage Childcare Centre,Supplies and Services,304259,Equipment and Materials,06-Dec-2017,000006786762901,WILKO RETAIL LIMIT,5722,Equipment-purchase and rental,8.00,0.00,8.00
Regeneration and Local Services,Direct Services,010301,C&G - North Grounds Maintenance,Supplies and Services,304403,Equipment and Materials,06-Dec-2017,000006786762911,BESCOL,5231,Other consumables,16.98,0.00,16.98
Adult and Health Services,Head of Adults,055302,Durham Pathways,Supplies and Services,324117,Provisions,06-Dec-2017,000006786762991,SAINSBURYS SACAT 0776,5411,Catering costs - provisions,3.00,0.00,3.00
Adult and Health Services,Head of Adults,055302,Durham Pathways,Supplies and Services,324117,Provisions,06-Dec-2017,000006786762995,SAINSBURYS 0776,5411,Catering costs - provisions,7.80,0.00,7.80
Adult and Health Services,Head of Adults,055302,Durham Pathways,Supplies and Services,304259,Equipment and Materials,06-Dec-2017,000006786762997,CURRYS ONLINE,5732,Equipment-purchase and rental,99.96,16.66,83.30
Adult and Health Services,Head of Adults,055302,Durham Pathways,Supplies and Services,304259,Equipment and Materials,06-Dec-2017,000006786762997 - 1,CURRYS ONLINE,5732,Equipment-purchase and rental,0.03,,0.03
Children and Young Peoples Services,Head of Looked After Provision Permanence and Care Leavers,085342,9 Cedar Drive Aycliffe,Transport,215995,Running Costs of Vehicles,06-Dec-2017,000006786763007,TESCO PFS 4088,5541,Vehicle running expenses,63.01,10.50,52.51
Regeneration and Local Services,Direct Services,010383,C&G - South Street Cleansing,Supplies and Services,304403,Equipment and Materials,06-Dec-2017,000006786763031,MAXWELLS DIY,5231,Other consumables,74.93,12.49,62.44
Regeneration and Local Services,Direct Services,010367,C&G - South Grounds Maintenance,Supplies and Services,304259,Equipment and Materials,06-Dec-2017,000006786763037,HARELAW SAWMILL,5211,Equipment-purchase and rental,28.80,0.00,28.80
Regeneration and Local Services,Economic Development and Housing,030737,Durham Works Flexible Fund,Supplies and Services,328041,Clothing Uniforms and Laundry,06-Dec-2017,000006786763065,WWW.KITLOCKER.COM,5655,Clothing uniforms and laundry,191.40,0.00,191.40
Regeneration and Local Services,Direct Services,021242,Catering - County Hall,Supplies and Services,324117,Provisions,06-Dec-2017,000006786763073,HOPWELLS LTD,5811,Catering costs - provisions,390.31,0.00,390.31
Regeneration and Local Services,Direct Services,021242,Catering - County Hall,Supplies and Services,324117,Provisions,06-Dec-2017,000006786763089,HOPWELLS LTD,5811,Catering costs - provisions,293.48,0.00,293.48
Regeneration and Local Services,Direct Services,021242,Catering - County Hall,Supplies and Services,324117,Provisions,06-Dec-2017,000006786763093,HOPWELLS LTD,5811,Catering costs - provisions,293.10,0.00,293.10
Regeneration and Local Services,Direct Services,021242,Catering - County Hall,Supplies and Services,324117,Provisions,06-Dec-2017,000006786763103,HOPWELLS LTD,5811,Catering costs - provisions,240.04,0.00,240.04
Regeneration and Local Services,Direct Services,021242,Catering - County Hall,Supplies and Services,324117,Provisions,06-Dec-2017,000006786763119,JR HOLLAND FOODSERVICE,5422,Catering costs - provisions,177.63,0.00,177.63
Regeneration and Local Services,Direct Services,021242,Catering - County Hall,Supplies and Services,324117,Provisions,06-Dec-2017,000006786763131,JR HOLLAND FOODSERVICE,5422,Catering costs - provisions,30.14,0.00,30.14
Regeneration and Local Services,Direct Services,021242,Catering - County Hall,Supplies and Services,324117,Provisions,06-Dec-2017,000006786763133,HOPWELLS LTD,5811,Catering costs - provisions,-3.05,0.00,-3.05
Regeneration and Local Services,Direct Services,021242,Catering - County Hall,Supplies and Services,324117,Provisions,06-Dec-2017,000006786763137,HOPWELLS LTD,5811,Catering costs - provisions,-10.98,0.00,-10.98
Regeneration and Local Services,Economic Development and Housing,030544,Rural Employability - Client Engagement,Employees,040149,Recruitment Instruction and Training,06-Dec-2017,000006786763143,WWW.HIGHSPEEDTRAINING.,8244,Training-all costs,24.00,4.00,20.00
Regeneration and Local Services,Direct Services,010367,C&G - South Grounds Maintenance,Supplies and Services,304221,Equipment and Materials,06-Dec-2017,000006786763169,R DEFTY,5200,Direct materials,33.80,5.63,28.17
Regeneration and Local Services,Direct Services,010367,C&G - South Grounds Maintenance,Third Party Payments,430100,Rendered by Private Contractors,06-Dec-2017,000006786763173,DUNHOUSE QUARRY CO,1740,Payments to sub-contractors,48.00,8.00,40.00
Regeneration and Local Services,Economic Development and Housing,030737,Durham Works Flexible Fund,Transport,235057,Public Transport,06-Dec-2017,000006786763187,ARRIVA NORTH EAST,4131,Staff travelling,85.50,0.00,85.50
Regeneration and Local Services,Culture & Sport,054812,Gala Theatre - Catering etc,Supplies and Services,324117,Provisions,06-Dec-2017,000006786763195,HOPWELLS LTD,5811,Catering costs - provisions,48.80,0.00,48.80
Regeneration and Local Services,Culture & Sport,054812,Gala Theatre - Catering etc,Supplies and Services,324117,Provisions,06-Dec-2017,000006786763203,HOPWELLS LTD,5811,Catering costs - provisions,16.92,0.00,16.92
Regeneration and Local Services,Spatial Policy Planning Assets & Environment,030051,Strategy and Project Development,Supplies and Services,348037,Subsistence,06-Dec-2017,000006786763315,FISCHERS BRAUHAUS,5812,Subsistence,74.35,0.00,74.35
Regeneration and Local Services,Spatial Policy Planning Assets & Environment,031204,North Pennines Nectarworks,Supplies and Services,324117,Provisions,06-Dec-2017,000006786763423,TESCO STORES 4358,5411,Catering costs - provisions,9.50,0.00,9.50
Regeneration and Local Services,Spatial Policy Planning Assets & Environment,031204,North Pennines Nectarworks,Supplies and Services,328041,Clothing Uniforms and Laundry,06-Dec-2017,000006786763427,B&M RETAIL,5310,Clothing uniforms and laundry,41.80,0.00,41.80
Regeneration and Local Services,Direct Services,010301,C&G - North Grounds Maintenance,Supplies and Services,324117,Provisions,06-Dec-2017,000006786763493,J VAN VLIET GATESHEAD,5399,Catering costs - provisions,490.20,0.00,490.20
Regeneration and Local Services,Direct Services,010301,C&G - North Grounds Maintenance,Supplies and Services,324117,Provisions,06-Dec-2017,000006786763499,J VAN VLIET GATESHEAD,5399,Catering costs - provisions,396.00,0.00,396.00
Regeneration and Local Services,Economic Development and Housing,030737,Durham Works Flexible Fund,Supplies and Services,348037,Subsistence,06-Dec-2017,000006786763509,ARRIVA NORTH EAST,4131,Subsistence,4.20,0.00,4.20
Children and Young Peoples Services,Head of Early Help Assessment and Safeguarding,088023,Chester Le Street 0 - 5,Supplies and Services,324117,Provisions,06-Dec-2017,000006786763531,JR HOLLAND FOODSERVICE,5422,Catering costs - provisions,7.04,0.00,7.04
Children and Young Peoples Services,Head of Early Help Assessment and Safeguarding,071445,Chester le Street One Point Hub,Supplies and Services,324117,Provisions,06-Dec-2017,000006786763537,JR HOLLAND FOODSERVICE,5422,Catering costs - provisions,6.16,0.00,6.16
Children and Young Peoples Services,Head of Early Help Assessment and Safeguarding,088026,Chester Le Street Teenage Parent Programme,Supplies and Services,304403,Equipment and Materials,06-Dec-2017,000006786763539,BEAMISH MUSEUM LTD,5947,Other consumables,566.00,0.00,566.00
Children and Young Peoples Services,Head of Looked After Provision Permanence and Care Leavers,085957,Secure Management,Supplies and Services,304259,Equipment and Materials,06-Dec-2017,000006786763551,WINDLESTONE,5261,Equipment-purchase and rental,70.00,0.00,70.00
Children and Young Peoples Services,Head of Looked After Provision Permanence and Care Leavers,085957,Secure Management,Supplies and Services,312011,Newspapers Books and Periodicals,06-Dec-2017,000006786763557,Amazon UK Marketplace,5942,Books-school library,9.89,0.00,9.89
Children and Young Peoples Services,Head of Looked After Provision Permanence and Care Leavers,085957,Secure Management,Supplies and Services,312011,Newspapers Books and Periodicals,06-Dec-2017,000006786763561,Amazon UK Marketplace,5942,Books-school library,9.98,0.00,9.98
Children and Young Peoples Services,Head of Looked After Provision Permanence and Care Leavers,085957,Secure Management,Supplies and Services,324117,Provisions,06-Dec-2017,000006786763571,TESCO STORES 6329,5411,Catering costs - provisions,110.46,0.00,110.46
Children and Young Peoples Services,Head of Looked After Provision Permanence and Care Leavers,085957,Secure Management,Supplies and Services,328041,Clothing Uniforms and Laundry,06-Dec-2017,000006786763575,ARGOS RETAIL GROUP,5310,Clothing uniforms and laundry,193.92,0.00,193.92
Regeneration and Local Services,Direct Services,010367,C&G - South Grounds Maintenance,Supplies and Services,304259,Equipment and Materials,06-Dec-2017,000006786763595,SCREWFIX,5211,Equipment-purchase and rental,15.26,2.54,12.72
Regeneration and Local Services,Culture & Sport,011060,Hardwick Park Catering,Supplies and Services,324117,Provisions,06-Dec-2017,000006786763617,HOPWELLS LTD,5811,Catering costs - provisions,67.70,0.00,67.70
Regeneration and Local Services,Culture & Sport,011060,Hardwick Park Catering,Supplies and Services,324117,Provisions,06-Dec-2017,000006786763625,HOPWELLS LTD,5811,Catering costs - provisions,44.91,0.00,44.91
Regeneration and Local Services,Culture & Sport,011060,Hardwick Park Catering,Supplies and Services,324117,Provisions,06-Dec-2017,000006786763631,HOPWELLS LTD,5811,Catering costs - provisions,43.66,0.00,43.66
Regeneration and Local Services,Culture & Sport,011060,Hardwick Park Catering,Supplies and Services,324117,Provisions,06-Dec-2017,000006786763633,JR HOLLAND FOODSERVICE,5422,Catering costs - provisions,22.25,0.00,22.25
Regeneration and Local Services,Economic Development and Housing,030755,Durham Employment & Skills - Other Training,Employees,040149,Recruitment Instruction and Training,06-Dec-2017,000006786763671,CITB,8220,Training-all costs,30.00,0.00,30.00
Regeneration and Local Services,Direct Services,021234,Catering - Locomotion,Supplies and Services,324117,Provisions,06-Dec-2017,000006786763693,HOPWELLS LTD,5811,Catering costs - provisions,121.08,20.18,100.90
Regeneration and Local Services,Direct Services,021234,Catering - Locomotion,Supplies and Services,324117,Provisions,06-Dec-2017,000006786763693 - 1,HOPWELLS LTD,5811,Catering costs - provisions,135.24,,135.24
Regeneration and Local Services,Direct Services,021234,Catering - Locomotion,Supplies and Services,324117,Provisions,06-Dec-2017,000006786763705,HOPWELLS LTD,5811,Catering costs - provisions,29.04,4.84,24.20
Regeneration and Local Services,Direct Services,021234,Catering - Locomotion,Supplies and Services,324117,Provisions,06-Dec-2017,000006786763705 - 1,HOPWELLS LTD,5811,Catering costs - provisions,202.78,,202.78
Regeneration and Local Services,Direct Services,021234,Catering - Locomotion,Supplies and Services,324117,Provisions,06-Dec-2017,000006786763711,HOPWELLS LTD,5811,Catering costs - provisions,73.38,12.23,61.15
Regeneration and Local Services,Direct Services,021234,Catering - Locomotion,Supplies and Services,324117,Provisions,06-Dec-2017,000006786763711 - 1,HOPWELLS LTD,5811,Catering costs - provisions,143.78,,143.78
Regeneration and Local Services,Direct Services,021234,Catering - Locomotion,Supplies and Services,324117,Provisions,06-Dec-2017,000006786763723,HOPWELLS LTD,5811,Catering costs - provisions,-27.81,0.00,-27.81
Regeneration and Local Services,Direct Services,010525,Catering - Green Lane,Supplies and Services,324117,Provisions,06-Dec-2017,000006786763751,HOPWELLS LTD,5811,Catering costs - provisions,89.32,0.00,89.32
Regeneration and Local Services,Direct Services,010525,Catering - Green Lane,Supplies and Services,324117,Provisions,06-Dec-2017,000006786763765,HOPWELLS LTD,5811,Catering costs - provisions,61.45,0.00,61.45
Regeneration and Local Services,Direct Services,010525,Catering - Green Lane,Supplies and Services,324117,Provisions,06-Dec-2017,000006786763773,JR HOLLAND FOODSERVICE,5422,Catering costs - provisions,12.00,0.00,12.00
Children and Young Peoples Services,Head of Looked After Provision Permanence and Care Leavers,085352,Tow Law CU,Supplies and Services,308011,Furniture,06-Dec-2017,000006786763811,POUNDSTRETCHER 692,5714,Furniture repair and replacement,26.43,0.00,26.43
Children and Young Peoples Services,Head of Looked After Provision Permanence and Care Leavers,085352,Tow Law CU,Supplies and Services,348037,Subsistence,06-Dec-2017,000006786763815,BREWERS FAYRE 41517810,5812,Subsistence,89.96,0.00,89.96
Children and Young Peoples Services,Head of Looked After Provision Permanence and Care Leavers,085352,Tow Law CU,Supplies and Services,312011,Newspapers Books and Periodicals,06-Dec-2017,000006786763821,HOME BARGAINS,5251,Books-school library,225.71,0.00,225.71
Children and Young Peoples Services,Head of Looked After Provision Permanence and Care Leavers,085352,Tow Law CU,Supplies and Services,312011,Newspapers Books and Periodicals,06-Dec-2017,000006786763825,HOME BARGAINS,5251,Books-school library,29.99,0.00,29.99
Children and Young Peoples Services,Head of Looked After Provision Permanence and Care Leavers,085352,Tow Law CU,Supplies and Services,324117,Provisions,06-Dec-2017,000006786763833,TESCO STORES 2371,5411,Catering costs - provisions,259.62,0.00,259.62
Children and Young Peoples Services,Head of Looked After Provision Permanence and Care Leavers,085334,West Rainton Satelite Home,Supplies and Services,312011,Newspapers Books and Periodicals,06-Dec-2017,000006786763891,Amazon UK Marketplace,5942,Books-school library,1.21,0.00,1.21
Children and Young Peoples Services,Head of Looked After Provision Permanence and Care Leavers,085334,West Rainton Satelite Home,Supplies and Services,312011,Newspapers Books and Periodicals,06-Dec-2017,000006786763909,Amazon UK Marketplace,5942,Books-school library,11.95,0.00,11.95
Children and Young Peoples Services,Head of Looked After Provision Permanence and Care Leavers,085334,West Rainton Satelite Home,Supplies and Services,312011,Newspapers Books and Periodicals,06-Dec-2017,000006786763917,Amazon UK Marketplace,5942,Books-school library,28.90,0.00,28.90
Adult and Health Services,Head of Adults,055301,Stanley Pathways,Supplies and Services,324117,Provisions,06-Dec-2017,000006786764019,ASDA SUPERSTORE,5411,Catering costs - provisions,3.27,0.00,3.27
Adult and Health Services,Head of Adults,055301,Stanley Pathways,Supplies and Services,324117,Provisions,06-Dec-2017,000006786764025,ASDA SUPERSTORE,5411,Catering costs - provisions,0.79,0.00,0.79
Regeneration and Local Services,Culture & Sport,011214,Volunteer & Skills,Supplies and Services,324117,Provisions,06-Dec-2017,000006786764039,STARBUCKS THINFORD,5499,Catering costs - provisions,6.55,1.09,5.46
Regeneration and Local Services,Economic Development and Housing,030737,Durham Works Flexible Fund,Transport,235057,Public Transport,06-Dec-2017,000006786764113,WWW.SIMPLYGO.COM,4131,Staff travelling,5.10,0.00,5.10
Regeneration and Local Services,Economic Development and Housing,031576,B& B - Temp Accom,Supplies and Services,352001,Conference Expenses,06-Dec-2017,000006786764117,TRAVELODGE,3615,Conferencesseminars fees etc,47.00,7.83,39.17
Regeneration and Local Services,Economic Development and Housing,031576,B& B - Temp Accom,Supplies and Services,352001,Conference Expenses,06-Dec-2017,000006786764125,TRAVELODGE,3615,Conferencesseminars fees etc,51.00,8.50,42.50
Regeneration and Local Services,Economic Development and Housing,031576,B& B - Temp Accom,Supplies and Services,352001,Conference Expenses,06-Dec-2017,000006786764127,TRAVELODGE,3615,Conferencesseminars fees etc,51.00,8.50,42.50
Regeneration and Local Services,Direct Services,010301,C&G - North Grounds Maintenance,Supplies and Services,324117,Provisions,06-Dec-2017,000006786764163,J VAN VLIET GATESHEAD,5399,Catering costs - provisions,481.44,0.00,481.44
Children and Young Peoples Services,Head of Early Help Assessment and Safeguarding,085100,Strategic Manager Families First Area South,Supplies and Services,384199,Miscellaneous Expenses,06-Dec-2017,000006786764211,NEWCASTLE CITY COUNCIL,4789,Other hired and contracted services,12.24,0.00,12.24
Children and Young Peoples Services,Head of Early Help Assessment and Safeguarding,088001,Peterlee Locality,Supplies and Services,304403,Equipment and Materials,06-Dec-2017,000006786764227,TESCO - Childrens Room,5999,Other consumables,15.00,0.00,15.00
Regeneration and Local Services,Culture & Sport,054235,Bishop Auckland Town Hall Cafe,Supplies and Services,324117,Provisions,06-Dec-2017,000006786764239,HOPWELLS LTD,5811,Catering costs - provisions,137.52,0.00,137.52
Regeneration and Local Services,Culture & Sport,054235,Bishop Auckland Town Hall Cafe,Supplies and Services,324117,Provisions,06-Dec-2017,000006786764245,HOPWELLS LTD,5811,Catering costs - provisions,33.36,0.00,33.36
Regeneration and Local Services,Culture & Sport,054235,Bishop Auckland Town Hall Cafe,Supplies and Services,324117,Provisions,06-Dec-2017,000006786764251,JR HOLLAND FOODSERVICE,5422,Catering costs - provisions,67.07,0.00,67.07
Regeneration and Local Services,Direct Services,021324,Catering - Meadowfield,Supplies and Services,324117,Provisions,06-Dec-2017,000006786764259,HOPWELLS LTD,5811,Catering costs - provisions,65.92,0.00,65.92
Regeneration and Local Services,Direct Services,021324,Catering - Meadowfield,Supplies and Services,324117,Provisions,06-Dec-2017,000006786764263,HOPWELLS LTD,5811,Catering costs - provisions,55.19,0.00,55.19
Regeneration and Local Services,Direct Services,021324,Catering - Meadowfield,Supplies and Services,324117,Provisions,06-Dec-2017,000006786764267,JR HOLLAND FOODSERVICE,5422,Catering costs - provisions,13.89,0.00,13.89
Regeneration and Local Services,Direct Services,021324,Catering - Meadowfield,Supplies and Services,324117,Provisions,06-Dec-2017,000006786764273,HOPWELLS LTD,5811,Catering costs - provisions,-1.40,0.00,-1.40
Children and Young Peoples Services,Head of Looked After Provision Permanence and Care Leavers,085333,Coxhoe Satelite Home,Supplies and Services,312011,Newspapers Books and Periodicals,06-Dec-2017,000006786764283,Amazon UK Marketplace,5942,Books-school library,6.99,0.00,6.99
Children and Young Peoples Services,Head of Looked After Provision Permanence and Care Leavers,085333,Coxhoe Satelite Home,Supplies and Services,324117,Provisions,06-Dec-2017,000006786764289,TESCO STORES 2371,5411,Catering costs - provisions,68.95,0.00,68.95
Children and Young Peoples Services,Head of Looked After Provision Permanence and Care Leavers,085333,Coxhoe Satelite Home,Supplies and Services,328041,Clothing Uniforms and Laundry,06-Dec-2017,000006786764293,POUNDWORLD RETAIL,5310,Clothing uniforms and laundry,8.00,0.00,8.00
Children and Young Peoples Services,Head of Early Help Assessment and Safeguarding,074000,TTF-Attachment and Results,Supplies and Services,304403,Equipment and Materials,06-Dec-2017,000006786764439,TESCO - Safetots Limit,5999,Other consumables,15.40,0.00,15.40
Children and Young Peoples Services,Head of Early Help Assessment and Safeguarding,074000,TTF-Attachment and Results,Supplies and Services,304403,Equipment and Materials,06-Dec-2017,000006786764445,TESCO DIRECT,5999,Other consumables,33.00,0.00,33.00
Resources,Digital and Customer Services,065303,Design & Print - Design,Supplies and Services,372009,Subscriptions,06-Dec-2017,000006786764451,APPY PIE,5734,Subscriptions,48.00,0.00,48.00
Regeneration and Local Services,Direct Services,021235,Catering - Wharton Park,Supplies and Services,324117,Provisions,06-Dec-2017,000006786764471,HOPWELLS LTD,5811,Catering costs - provisions,71.16,0.00,71.16
Regeneration and Local Services,Culture & Sport,010605,Woodhouse Close Leisure Complex,Supplies and Services,324117,Provisions,06-Dec-2017,000006786764489,HOPWELLS LTD,5811,Catering costs - provisions,103.10,0.00,103.10
Regeneration and Local Services,Culture & Sport,010605,Woodhouse Close Leisure Complex,Supplies and Services,324117,Provisions,06-Dec-2017,000006786764493,JR HOLLAND FOODSERVICE,5422,Catering costs - provisions,13.91,0.00,13.91
Regeneration and Local Services,Culture & Sport,011230,Operations Locality 2,Supplies and Services,324117,Provisions,06-Dec-2017,000006786764543,ASDA SUPERSTORE 4987,5411,Catering costs - provisions,12.50,0.00,12.50
Regeneration and Local Services,Economic Development and Housing,030692,Durham Dales Centre - Management and Admin,Supplies and Services,324117,Provisions,06-Dec-2017,000006786764559,SCOTMID CO-OP STANHOPE,5411,Catering costs - provisions,11.99,0.00,11.99
Children and Young Peoples Services,Head of Early Help Assessment and Safeguarding,088003,Peterlee 0 - 5,Supplies and Services,304259,Equipment and Materials,06-Dec-2017,000006786764569,WWW.DURHAM.GOV.UK,9399,Equipment-purchase and rental,12.00,0.00,12.00
Dedicated Schools Grant,Dedicated Schools Grant,079052,Part Sighted-Belmont Comp,Supplies and Services,312011,Newspapers Books and Periodicals,06-Dec-2017,000006791770423,AMAZON.CO.UK,5942,Books-school library,12.50,0.00,12.50
Regeneration and Local Services,Economic Development and Housing,030737,Durham Works Flexible Fund,Supplies and Services,328041,Clothing Uniforms and Laundry,06-Dec-2017,000006791770475,SPORTSDIRECT.COM,5941,Clothing uniforms and laundry,54.99,0.00,54.99
Children and Young Peoples Services,Head of Looked After Provision Permanence and Care Leavers,085957,Secure Management,Supplies and Services,304259,Equipment and Materials,06-Dec-2017,000006791770683,WWW.MUSICROOM.COM,5733,Equipment-purchase and rental,12.50,0.00,12.50
Children and Young Peoples Services,Head of Looked After Provision Permanence and Care Leavers,085957,Secure Management,Supplies and Services,332047,Printing Stationery and Gen Off Exps,06-Dec-2017,000006791770685,TRADEINN RETAIL SERVIC,7832,Stationery,61.40,0.00,61.40
Regeneration and Local Services,Economic Development and Housing,031576,B& B - Temp Accom,Employees,040149,Recruitment Instruction and Training,06-Dec-2017,000006791770913,PREMIER INN,3811,Training-all costs,73.00,12.17,60.83
Regeneration and Local Services,Economic Development and Housing,030690,Durham Dales Centre - Tourist Information Centre,Supplies and Services,328041,Clothing Uniforms and Laundry,06-Dec-2017,000006791771023,WWW.AKHOSIERY.CO.UK,5621,Clothing uniforms and laundry,448.80,0.00,448.80
Regeneration and Local Services,Direct Services,010367,C&G - South Grounds Maintenance,Transport,215995,Running Costs of Vehicles,06-Dec-2017,000006798292731,SNOWBALLS (RAILWAY,5533,Vehicle running expenses,76.32,12.72,63.60
Resources,Digital and Customer Services,069010,Administration,Supplies and Services,344033,Telephones,07-Dec-2017,000006786762923,Amazon UK Marketplace,5942,Telephones general-all costs,199.00,0.00,199.00
Regeneration and Local Services,Economic Development and Housing,030737,Durham Works Flexible Fund,Supplies and Services,342033,Computers and Communications,07-Dec-2017,000006786763177,DELL PRODUCT,7372,Computer hardware,229.00,38.17,190.83
Regeneration and Local Services,Economic Development and Housing,030737,Durham Works Flexible Fund,Supplies and Services,342033,Computers and Communications,07-Dec-2017,000006786763183,DELL PRODUCT,7372,Computer hardware,229.00,38.17,190.83
Regeneration and Local Services,Spatial Policy Planning Assets & Environment,030051,Strategy and Project Development,Supplies and Services,348037,Subsistence,07-Dec-2017,000006786763319,FISCHERS BRAUHAUS,5812,Subsistence,2.04,0.00,2.04
Resources,Digital and Customer Services,069010,Administration,Supplies and Services,344033,Telephones,07-Dec-2017,000006791770383,Amazon UK Marketplace,5942,Telephones general-all costs,199.00,0.00,199.00
Dedicated Schools Grant,Dedicated Schools Grant,079052,Part Sighted-Belmont Comp,Supplies and Services,312011,Newspapers Books and Periodicals,07-Dec-2017,000006791770415,Amazon UK Marketplace,5942,Books-school library,34.42,0.00,34.42
Dedicated Schools Grant,Dedicated Schools Grant,079052,Part Sighted-Belmont Comp,Supplies and Services,312011,Newspapers Books and Periodicals,07-Dec-2017,000006791770419,Amazon UK Marketplace,5942,Books-school library,14.98,0.00,14.98
Regeneration and Local Services,Direct Services,021242,Catering - County Hall,Supplies and Services,324117,Provisions,07-Dec-2017,000006791770481,JR HOLLAND FOODSERVICE,5422,Catering costs - provisions,135.11,0.00,135.11
Resources,Digital and Customer Services,065461,Business Support,Supplies and Services,304999,Equipment and Materials,07-Dec-2017,000006791770509,WEB NETWORKSOLUTIONS,5968,Misc equipment tools and materials,31.47,0.00,31.47
Resources,Digital and Customer Services,065461,Business Support,Supplies and Services,304999,Equipment and Materials,07-Dec-2017,000006791770513,WEB NETWORKSOLUTIONS,5968,Misc equipment tools and materials,102.63,0.00,102.63
Resources,Digital and Customer Services,065461,Business Support,Supplies and Services,304999,Equipment and Materials,07-Dec-2017,000006791770517,WEB NETWORKSOLUTIONS,5968,Misc equipment tools and materials,103.51,0.00,103.51
Regeneration and Local Services,Economic Development and Housing,030737,Durham Works Flexible Fund,Supplies and Services,332047,Printing Stationery and Gen Off Exps,07-Dec-2017,000006791770533,Amazon UK Marketplace,5942,Stationery,13.34,0.00,13.34
Regeneration and Local Services,Economic Development and Housing,030737,Durham Works Flexible Fund,Supplies and Services,328041,Clothing Uniforms and Laundry,07-Dec-2017,000006791770537,Amazon UK Marketplace,5942,Clothing uniforms and laundry,27.78,0.00,27.78
Regeneration and Local Services,Economic Development and Housing,030737,Durham Works Flexible Fund,Transport,235057,Public Transport,07-Dec-2017,000006791770539,ARRIVA NORTH EAST,4131,Staff travelling,85.50,0.00,85.50
Regeneration and Local Services,Culture & Sport,054812,Gala Theatre - Catering etc,Supplies and Services,324117,Provisions,07-Dec-2017,000006791770543,JR HOLLAND FOODSERVICE,5422,Catering costs - provisions,56.24,0.00,56.24
Children and Young Peoples Services,Head of Early Help Assessment and Safeguarding,088033,Durham 0 - 5,Supplies and Services,324117,Provisions,07-Dec-2017,000006791770597,ASDA HOME SHOPPING,5411,Catering costs - provisions,47.14,0.00,47.14
Regeneration and Local Services,Economic Development and Housing,030737,Durham Works Flexible Fund,Supplies and Services,348037,Subsistence,07-Dec-2017,000006791770655,WWW.SIMPLYGO.COM,4131,Subsistence,6.50,0.00,6.50
Regeneration and Local Services,Economic Development and Housing,030737,Durham Works Flexible Fund,Transport,235057,Public Transport,07-Dec-2017,000006791770677,GO NORTH EAST - V/T,4131,Staff travelling,15.50,0.00,15.50
Regeneration and Local Services,Economic Development and Housing,030737,Durham Works Flexible Fund,Transport,235057,Public Transport,07-Dec-2017,000006791770679,WWW.SIMPLYGO.COM,4131,Staff travelling,15.50,0.00,15.50
Regeneration and Local Services,Economic Development and Housing,030737,Durham Works Flexible Fund,Transport,235057,Public Transport,07-Dec-2017,000006791770681,WWW.SIMPLYGO.COM,4131,Staff travelling,15.50,0.00,15.50
Children and Young Peoples Services,Head of Looked After Provision Permanence and Care Leavers,085957,Secure Management,Supplies and Services,324117,Provisions,07-Dec-2017,000006791770689,TESCO STORES 6329,5411,Catering costs - provisions,97.34,0.00,97.34
Children and Young Peoples Services,Head of Looked After Provision Permanence and Care Leavers,085957,Secure Management,Supplies and Services,342033,Computers and Communications,07-Dec-2017,000006791770693,VERY.CO.UK,5964,Computer hardware,-28.00,0.00,-28.00
Children and Young Peoples Services,Head of Early Help Assessment and Safeguarding,071746,Newton Aycliffe Childrens Centre,Supplies and Services,328041,Clothing Uniforms and Laundry,07-Dec-2017,000006791770699,POUNDWORLD,5310,Clothing uniforms and laundry,5.00,0.00,5.00
Children and Young Peoples Services,Head of Early Help Assessment and Safeguarding,071746,Newton Aycliffe Childrens Centre,Supplies and Services,324117,Provisions,07-Dec-2017,000006791770701,TESCO STORES 2916,5411,Catering costs - provisions,14.36,0.00,14.36
Regeneration and Local Services,Culture & Sport,011060,Hardwick Park Catering,Supplies and Services,324117,Provisions,07-Dec-2017,000006791770705,JR HOLLAND FOODSERVICE,5422,Catering costs - provisions,59.65,0.00,59.65
Regeneration and Local Services,Culture & Sport,011060,Hardwick Park Catering,Supplies and Services,324117,Provisions,07-Dec-2017,000006791770707,JR HOLLAND FOODSERVICE,5422,Catering costs - provisions,2.87,0.00,2.87
Resources,Digital and Customer Services,065335,School Services - Implementations,Supplies and Services,304639,Equipment and Materials,07-Dec-2017,000006791770723,WWW.ALIEXPRESS.COM,5964,Technicians-supplies,37.43,0.00,37.43
Resources,Digital and Customer Services,065335,School Services - Implementations,Supplies and Services,304639,Equipment and Materials,07-Dec-2017,000006791770725,Amazon UK Marketplace,5942,Technicians-supplies,32.98,0.00,32.98
Resources,Digital and Customer Services,065335,School Services - Implementations,Supplies and Services,304639,Equipment and Materials,07-Dec-2017,000006791770727,Amazon UK Marketplace,5942,Technicians-supplies,26.44,0.00,26.44
Children and Young Peoples Services,Head of Looked After Provision Permanence and Care Leavers,085332,Middlestone Moor CU,Supplies and Services,340001,Postages,07-Dec-2017,000006791770739,POST OFFICE COUNTER,9402,Postages,10.64,0.00,10.64
Children and Young Peoples Services,Head of Looked After Provision Permanence and Care Leavers,085332,Middlestone Moor CU,Supplies and Services,324117,Provisions,07-Dec-2017,000006791770741,LIDL UK,5411,Catering costs - provisions,7.03,0.00,7.03
Children and Young Peoples Services,Head of Looked After Provision Permanence and Care Leavers,085332,Middlestone Moor CU,Supplies and Services,324117,Provisions,07-Dec-2017,000006791770743,ALDI 59 774,5411,Catering costs - provisions,6.72,1.12,5.60
Children and Young Peoples Services,Head of Looked After Provision Permanence and Care Leavers,085332,Middlestone Moor CU,Supplies and Services,324117,Provisions,07-Dec-2017,000006791770743 - 1,ALDI 59 774,5411,Catering costs - provisions,63.34,,63.34
Regeneration and Local Services,Direct Services,021234,Catering - Locomotion,Supplies and Services,324117,Provisions,07-Dec-2017,000006791770745,JR HOLLAND FOODSERVICE,5422,Catering costs - provisions,51.62,0.00,51.62
Regeneration and Local Services,Economic Development and Housing,031576,B& B - Temp Accom,Supplies and Services,364320,Grants to Voluntary Organisations,07-Dec-2017,000006791770751,TRAVELODGE,3615,Accommodation assistance,44.00,7.33,36.67
Regeneration and Local Services,Economic Development and Housing,031576,B& B - Temp Accom,Supplies and Services,364320,Grants to Voluntary Organisations,07-Dec-2017,000006791770755,TRAVELODGE,3615,Accommodation assistance,48.00,8.00,40.00
Regeneration and Local Services,Economic Development and Housing,031576,B& B - Temp Accom,Supplies and Services,364320,Grants to Voluntary Organisations,07-Dec-2017,000006791770759,TRAVELODGE,3615,Accommodation assistance,48.00,8.00,40.00
Children and Young Peoples Services,Head of Looked After Provision Permanence and Care Leavers,085334,West Rainton Satelite Home,Supplies and Services,312011,Newspapers Books and Periodicals,07-Dec-2017,000006791770811,Amazon UK Marketplace,5942,Books-school library,16.45,0.00,16.45
Children and Young Peoples Services,Head of Looked After Provision Permanence and Care Leavers,085334,West Rainton Satelite Home,Supplies and Services,312011,Newspapers Books and Periodicals,07-Dec-2017,000006791770815,Amazon UK Marketplace,5942,Books-school library,7.83,0.00,7.83
Children and Young Peoples Services,Head of Looked After Provision Permanence and Care Leavers,085334,West Rainton Satelite Home,Supplies and Services,312011,Newspapers Books and Periodicals,07-Dec-2017,000006791770819,Amazon EU,5969,Books-school library,31.69,0.00,31.69
Children and Young Peoples Services,Head of Looked After Provision Permanence and Care Leavers,085334,West Rainton Satelite Home,Supplies and Services,312011,Newspapers Books and Periodicals,07-Dec-2017,000006791770821,Amazon EU,5969,Books-school library,12.00,0.00,12.00
Regeneration and Local Services,Direct Services,010367,C&G - South Grounds Maintenance,Supplies and Services,324117,Provisions,07-Dec-2017,000006791770839,J M RAINE,5399,Catering costs - provisions,95.84,15.97,79.87
Children and Young Peoples Services,Head of Looked After Provision Permanence and Care Leavers,085334,West Rainton Satelite Home,Supplies and Services,312011,Newspapers Books and Periodicals,07-Dec-2017,000006791770849,Amazon UK Marketplace,5942,Books-school library,15.94,0.00,15.94
Children and Young Peoples Services,Head of Looked After Provision Permanence and Care Leavers,085334,West Rainton Satelite Home,Supplies and Services,312011,Newspapers Books and Periodicals,07-Dec-2017,000006791770853,Amazon UK Marketplace,5942,Books-school library,14.99,0.00,14.99
Regeneration and Local Services,Culture & Sport,026591,Hardwick Park,Supplies and Services,304245,Equipment and Materials,07-Dec-2017,000006791770875,WWW.SYSTEMHYGIENE.CO.U,5399,Materials,38.82,6.47,32.35
Regeneration and Local Services,Business Support,010832,Business Support,Supplies and Services,304259,Equipment and Materials,07-Dec-2017,000006791770879,DSA,9399,Equipment-purchase and rental,300.00,0.00,300.00
Children and Young Peoples Services,Head of Early Help Assessment and Safeguarding,085100,Strategic Manager Families First Area South,Supplies and Services,384199,Miscellaneous Expenses,07-Dec-2017,000006791771009,STOCKTON BOROUGH COUNC,9399,Other hired and contracted services,11.00,0.00,11.00
Children and Young Peoples Services,Head of Early Help Assessment and Safeguarding,088001,Peterlee Locality,Transport,235057,Public Transport,07-Dec-2017,000006791771017,ARRIVA NORTH EAST,4131,Staff travelling,17.00,0.00,17.00
Children and Young Peoples Services,Head of Early Help Assessment and Safeguarding,088001,Peterlee Locality,Transport,235057,Public Transport,07-Dec-2017,000006791771019,ARRIVA NORTH EAST,4131,Staff travelling,17.00,0.00,17.00
Regeneration and Local Services,Direct Services,021324,Catering - Meadowfield,Supplies and Services,324117,Provisions,07-Dec-2017,000006791771045,JR HOLLAND FOODSERVICE,5422,Catering costs - provisions,37.57,0.00,37.57
Children and Young Peoples Services,Head of Looked After Provision Permanence and Care Leavers,085333,Coxhoe Satelite Home,Supplies and Services,328041,Clothing Uniforms and Laundry,07-Dec-2017,000006791771049,ARGOS LTD,5310,Clothing uniforms and laundry,7.99,0.00,7.99
Children and Young Peoples Services,Head of Looked After Provision Permanence and Care Leavers,085333,Coxhoe Satelite Home,Supplies and Services,304259,Equipment and Materials,07-Dec-2017,000006791771053,SPORTSDIRECT 264,5941,Equipment-purchase and rental,18.00,0.00,18.00
Regeneration and Local Services,Economic Development and Housing,030749,Employability - Youth Contract,Transport,215995,Running Costs of Vehicles,07-Dec-2017,000006791771075,ASDA PETROL 5115,5541,Vehicle running expenses,14.00,0.00,14.00
Adult and Health Services,Head of Adults,055807,Newton Aycliffe Pathways,Supplies and Services,304259,Equipment and Materials,07-Dec-2017,000006791771153,WWW.DURHAM.GOV.UK,9399,Equipment-purchase and rental,10.00,0.00,10.00
Regeneration and Local Services,Direct Services,021235,Catering - Wharton Park,Supplies and Services,324117,Provisions,07-Dec-2017,000006791771171,JR HOLLAND FOODSERVICE,5422,Catering costs - provisions,16.43,0.00,16.43
Children and Young Peoples Services,Head of Early Help Assessment and Safeguarding,071693,Brandon Childrens Centre,Supplies and Services,308011,Furniture,07-Dec-2017,000006791771221,IKEA ONLINE,5719,Furniture repair and replacement,28.50,4.75,23.75
Regeneration and Local Services,Spatial Policy Planning Assets & Environment,031200,North Pennines Core,Supplies and Services,340001,Postages,07-Dec-2017,000006791771243,THE POST OFFICE,9402,Postages,1.30,0.00,1.30
Children and Young Peoples Services,Head of Early Help Assessment and Safeguarding,088037,One Point YEI,Supplies and Services,304259,Equipment and Materials,07-Dec-2017,000006791771265,GRO HM PASSPORT OFFICE,9399,Equipment-purchase and rental,29.85,0.00,29.85
Regeneration and Local Services,Direct Services,021242,Catering - County Hall,Supplies and Services,324117,Provisions,07-Dec-2017,000006798292391,BATLEYS PERTH,5300,Catering costs - provisions,462.84,77.14,385.70
Regeneration and Local Services,Direct Services,021242,Catering - County Hall,Supplies and Services,324117,Provisions,07-Dec-2017,000006798292391 - 1,BATLEYS PERTH,5300,Catering costs - provisions,140.95,,140.95
Regeneration and Local Services,Culture & Sport,011060,Hardwick Park Catering,Supplies and Services,324117,Provisions,07-Dec-2017,000006798292605,BATLEYS PERTH,5300,Catering costs - provisions,364.56,60.76,303.80
Regeneration and Local Services,Culture & Sport,011060,Hardwick Park Catering,Supplies and Services,324117,Provisions,07-Dec-2017,000006798292605 - 1,BATLEYS PERTH,5300,Catering costs - provisions,186.53,,186.53
Regeneration and Local Services,Culture & Sport,011060,Hardwick Park Catering,Supplies and Services,324117,Provisions,07-Dec-2017,000006798292615,BATLEYS PERTH,5300,Catering costs - provisions,41.34,6.89,34.45
Regeneration and Local Services,Culture & Sport,011060,Hardwick Park Catering,Supplies and Services,324117,Provisions,07-Dec-2017,000006798292615 - 1,BATLEYS PERTH,5300,Catering costs - provisions,29.72,,29.72
Regeneration and Local Services,Culture & Sport,054815,Gala Theatre Stage School,Supplies and Services,304221,Equipment and Materials,07-Dec-2017,000006798292633,PAYPAL 191178SIMON,5169,Direct materials,485.85,0.00,485.85
Resources,Digital and Customer Services,065461,Business Support,Supplies and Services,304999,Equipment and Materials,08-Dec-2017,000006791770519,WEB NETWORKSOLUTIONS,5968,Misc equipment tools and materials,0.87,0.00,0.87
Resources,Digital and Customer Services,065461,Business Support,Supplies and Services,304999,Equipment and Materials,08-Dec-2017,000006791770521,WEB NETWORKSOLUTIONS,5968,Misc equipment tools and materials,2.82,0.00,2.82
Resources,Digital and Customer Services,065461,Business Support,Supplies and Services,304999,Equipment and Materials,08-Dec-2017,000006791770523,WEB NETWORKSOLUTIONS,5968,Misc equipment tools and materials,2.85,0.00,2.85
Resources,Digital and Customer Services,065335,School Services - Implementations,Supplies and Services,304639,Equipment and Materials,08-Dec-2017,000006791770729,Amazon UK Marketplace,5942,Technicians-supplies,3.41,0.00,3.41
Children and Young Peoples Services,Head of Looked After Provision Permanence and Care Leavers,085334,West Rainton Satelite Home,Supplies and Services,312011,Newspapers Books and Periodicals,08-Dec-2017,000006791770825,Amazon EU,5969,Books-school library,14.94,0.00,14.94
Regeneration and Local Services,Technical Services,010984,Training and Development,Supplies and Services,312011,Newspapers Books and Periodicals,08-Dec-2017,000006791771097,Amazon EU,5969,Books-school library,173.09,0.00,173.09
Children and Young Peoples Services,Head of Looked After Provision Permanence and Care Leavers,085341,High Etherley Satelite Home,Supplies and Services,324117,Provisions,08-Dec-2017,000006798292183,SAINSBURYS SACAT 2199,5411,Catering costs - provisions,55.58,0.00,55.58
Children and Young Peoples Services,Head of Looked After Provision Permanence and Care Leavers,085341,High Etherley Satelite Home,Supplies and Services,304259,Equipment and Materials,08-Dec-2017,000006798292187,HOMEBASE LTD 822,5211,Equipment-purchase and rental,27.00,0.00,27.00
Children and Young Peoples Services,Head of Looked After Provision Permanence and Care Leavers,085341,High Etherley Satelite Home,Supplies and Services,324117,Provisions,08-Dec-2017,000006798292189,TESCO STORES 6329,5411,Catering costs - provisions,23.73,0.00,23.73
Regeneration and Local Services,Economic Development and Housing,030699,Business Growth and Innovation General,Supplies and Services,304403,Equipment and Materials,08-Dec-2017,000006798292297,BLS MAGISTO,5734,Other consumables,109.15,18.19,90.96
Regeneration and Local Services,Economic Development and Housing,030699,Business Growth and Innovation General,Supplies and Services,324117,Provisions,08-Dec-2017,000006798292301,STFC-RIDGEWAY (BAXTERS,5811,Catering costs - provisions,150.00,25.00,125.00
Adult and Health Services,Head of Adults,052760,OP Management,Income,720130,Fees and Charges,08-Dec-2017,000006798292309,WWW.MONEYCLAIM.GOV,9399,Fees-legal,185.00,0.00,185.00
Regeneration and Local Services,Direct Services,010367,C&G - South Grounds Maintenance,Supplies and Services,304259,Equipment and Materials,08-Dec-2017,000006798292339,SCREWFIX,5211,Equipment-purchase and rental,37.99,0.00,37.99
Regeneration and Local Services,Economic Development and Housing,030737,Durham Works Flexible Fund,Supplies and Services,328041,Clothing Uniforms and Laundry,08-Dec-2017,000006798292367,JACAMO (INTERNET),5691,Clothing uniforms and laundry,3.99,0.00,3.99
Regeneration and Local Services,Economic Development and Housing,030737,Durham Works Flexible Fund,Supplies and Services,328041,Clothing Uniforms and Laundry,08-Dec-2017,000006798292369,JACAMO (INTERNET),5691,Clothing uniforms and laundry,20.00,0.00,20.00
Regeneration and Local Services,Economic Development and Housing,030737,Durham Works Flexible Fund,Supplies and Services,328041,Clothing Uniforms and Laundry,08-Dec-2017,000006798292371,JACAMO (INTERNET),5691,Clothing uniforms and laundry,20.00,0.00,20.00
Regeneration and Local Services,Direct Services,021242,Catering - County Hall,Supplies and Services,324117,Provisions,08-Dec-2017,000006798292377,JR HOLLAND FOODSERVICE,5422,Catering costs - provisions,120.22,0.00,120.22
Regeneration and Local Services,Direct Services,021242,Catering - County Hall,Supplies and Services,324117,Provisions,08-Dec-2017,000006798292383,JR HOLLAND FOODSERVICE,5422,Catering costs - provisions,22.93,0.00,22.93
Regeneration and Local Services,Direct Services,021242,Catering - County Hall,Supplies and Services,324117,Provisions,08-Dec-2017,000006798292387,JR HOLLAND FOODSERVICE,5422,Catering costs - provisions,13.20,0.00,13.20
Regeneration and Local Services,Economic Development and Housing,030544,Rural Employability - Client Engagement,Transport,235057,Public Transport,08-Dec-2017,000006798292397,WWW.SIMPLYGO.COM,4131,Staff travelling,70.00,0.00,70.00
Regeneration and Local Services,Economic Development and Housing,030544,Rural Employability - Client Engagement,Transport,235057,Public Transport,08-Dec-2017,000006798292401,WWW.SIMPLYGO.COM,4131,Staff travelling,92.00,0.00,92.00
Regeneration and Local Services,Economic Development and Housing,030544,Rural Employability - Client Engagement,Transport,235057,Public Transport,08-Dec-2017,000006798292403,ARRIVA NORTH EAST,4131,Staff travelling,80.00,0.00,80.00
Regeneration and Local Services,Economic Development and Housing,030544,Rural Employability - Client Engagement,Supplies and Services,324117,Provisions,08-Dec-2017,000006798292405,ASDA STORES LTD,5411,Catering costs - provisions,29.50,0.00,29.50
Regeneration and Local Services,Economic Development and Housing,030544,Rural Employability - Client Engagement,Employees,040149,Recruitment Instruction and Training,08-Dec-2017,000006798292409,SECURITY INDUSTRY,7393,Training-all costs,220.00,0.00,220.00
Resources,Digital and Customer Services,065461,Business Support,Supplies and Services,304403,Equipment and Materials,08-Dec-2017,000006798292413,NOMINET UK,5734,Other consumables,18.00,3.00,15.00
Resources,Digital and Customer Services,065461,Business Support,Supplies and Services,304403,Equipment and Materials,08-Dec-2017,000006798292417,NOMINET UK,5734,Other consumables,54.00,9.00,45.00
Regeneration and Local Services,Economic Development and Housing,030737,Durham Works Flexible Fund,Transport,235057,Public Transport,08-Dec-2017,000006798292421,ARRIVA NORTH EAST,4131,Staff travelling,85.50,0.00,85.50
Regeneration and Local Services,Economic Development and Housing,030737,Durham Works Flexible Fund,Transport,235057,Public Transport,08-Dec-2017,000006798292423,ARRIVA NORTH EAST,4131,Staff travelling,85.50,0.00,85.50
Regeneration and Local Services,Economic Development and Housing,030737,Durham Works Flexible Fund,Transport,235057,Public Transport,08-Dec-2017,000006798292425,ARRIVA NORTH EAST,4131,Staff travelling,7.00,0.00,7.00
Regeneration and Local Services,Economic Development and Housing,030737,Durham Works Flexible Fund,Supplies and Services,304259,Equipment and Materials,08-Dec-2017,000006798292431,AMAZON.CO.UK,5942,Equipment-purchase and rental,96.54,0.00,96.54
Regeneration and Local Services,Spatial Policy Planning Assets & Environment,030051,Strategy and Project Development,Transport,235057,Public Transport,08-Dec-2017,000006798292489,DB BAHN REISEZENTRUM,4112,Staff travelling,23.95,0.00,23.95
Resources,Legal & Democratic Services,067910,Democratic Representation,Supplies and Services,384965,Miscellaneous Expenses,08-Dec-2017,000006798292531,RYMAN,5943,Civic Functions,2.99,0.00,2.99
Children and Young Peoples Services,Head of Education,071903,EYDCP-Sustainability EDS,Third Party Payments,430100,Rendered by Private Contractors,08-Dec-2017,000006798292549,EB STATUTORY SRE GETT,7399,Payments to sub-contractors,199.00,0.00,199.00
Children and Young Peoples Services,Head of Looked After Provision Permanence and Care Leavers,085957,Secure Management,Supplies and Services,304259,Equipment and Materials,08-Dec-2017,000006798292565,M and M Direct Ltd,5941,Equipment-purchase and rental,102.95,0.00,102.95
Children and Young Peoples Services,Head of Looked After Provision Permanence and Care Leavers,085957,Secure Management,Supplies and Services,304259,Equipment and Materials,08-Dec-2017,000006798292569,FOOTASYLUM PLC,5941,Equipment-purchase and rental,159.99,0.00,159.99
Children and Young Peoples Services,Head of Looked After Provision Permanence and Care Leavers,085957,Secure Management,Supplies and Services,324117,Provisions,08-Dec-2017,000006798292571,TESCO STORES 6329,5411,Catering costs - provisions,93.25,0.00,93.25
Children and Young Peoples Services,Head of Looked After Provision Permanence and Care Leavers,085957,Secure Management,Supplies and Services,342033,Computers and Communications,08-Dec-2017,000006798292575,VERY.CO.UK,5964,Computer hardware,51.99,0.00,51.99
Children and Young Peoples Services,Head of Looked After Provision Permanence and Care Leavers,085957,Secure Management,Supplies and Services,328041,Clothing Uniforms and Laundry,08-Dec-2017,000006798292577,WWW.FOOTLOCKER.EU,5661,Clothing uniforms and laundry,99.99,0.00,99.99
Children and Young Peoples Services,Head of Looked After Provision Permanence and Care Leavers,085957,Secure Management,Supplies and Services,332047,Printing Stationery and Gen Off Exps,08-Dec-2017,000006798292581,TRADEINN RETAIL SERVIC,7832,Stationery,69.40,0.00,69.40
Children and Young Peoples Services,Head of Looked After Provision Permanence and Care Leavers,085957,Secure Management,Supplies and Services,328041,Clothing Uniforms and Laundry,08-Dec-2017,000006798292583,WWW.ARGOS.CO.UK,5310,Clothing uniforms and laundry,233.94,38.99,194.95
Regeneration and Local Services,Direct Services,010301,C&G - North Grounds Maintenance,Supplies and Services,304403,Equipment and Materials,08-Dec-2017,000006798292599,BESCOL,5231,Other consumables,26.40,0.00,26.40
Resources,Digital and Customer Services,065335,School Services - Implementations,Supplies and Services,304639,Equipment and Materials,08-Dec-2017,000006798292627,Amazon UK Marketplace,5942,Technicians-supplies,46.48,0.00,46.48
Resources,Digital and Customer Services,070204,School Services - Systems,Supplies and Services,304639,Equipment and Materials,08-Dec-2017,000006798292629,Amazon UK Marketplace,5942,Technicians-supplies,11.99,0.00,11.99
Regeneration and Local Services,Economic Development and Housing,030755,Durham Employment & Skills - Other Training,Employees,040149,Recruitment Instruction and Training,08-Dec-2017,000006798292635,CITB,8220,Training-all costs,30.00,0.00,30.00
Regeneration and Local Services,Economic Development and Housing,030755,Durham Employment & Skills - Other Training,Employees,040149,Recruitment Instruction and Training,08-Dec-2017,000006798292637,CITB,8220,Training-all costs,30.00,0.00,30.00
Regeneration and Local Services,Economic Development and Housing,030755,Durham Employment & Skills - Other Training,Employees,040149,Recruitment Instruction and Training,08-Dec-2017,000006798292639,CITB,8220,Training-all costs,30.00,0.00,30.00
Children and Young Peoples Services,Head of Looked After Provision Permanence and Care Leavers,085332,Middlestone Moor CU,Supplies and Services,312011,Newspapers Books and Periodicals,08-Dec-2017,000006798292651,HOME BARGAINS SPENNYMO,5251,Books-school library,15.42,2.57,12.85
Children and Young Peoples Services,Head of Looked After Provision Permanence and Care Leavers,085332,Middlestone Moor CU,Supplies and Services,312011,Newspapers Books and Periodicals,08-Dec-2017,000006798292651 - 1,HOME BARGAINS SPENNYMO,5251,Books-school library,4.25,,4.25
Children and Young Peoples Services,Head of Looked After Provision Permanence and Care Leavers,085332,Middlestone Moor CU,Supplies and Services,324117,Provisions,08-Dec-2017,000006798292655,ICELAND,5411,Catering costs - provisions,12.50,0.00,12.50
Regeneration and Local Services,Economic Development and Housing,031576,B& B - Temp Accom,Supplies and Services,364320,Grants to Voluntary Organisations,08-Dec-2017,000006798292659,AYCLIFFE BIZ,7011,Accommodation assistance,490.00,0.00,490.00
Regeneration and Local Services,Economic Development and Housing,031576,B& B - Temp Accom,Supplies and Services,364320,Grants to Voluntary Organisations,08-Dec-2017,000006798292661,AYCLIFFE BIZ,7011,Accommodation assistance,490.00,0.00,490.00
Regeneration and Local Services,Economic Development and Housing,031576,B& B - Temp Accom,Supplies and Services,364320,Grants to Voluntary Organisations,08-Dec-2017,000006798292673,TRAVELODGE,3615,Accommodation assistance,189.00,31.50,157.50
Regeneration and Local Services,Economic Development and Housing,031576,B& B - Temp Accom,Supplies and Services,364320,Grants to Voluntary Organisations,08-Dec-2017,000006798292677,TRAVELODGE,3615,Accommodation assistance,157.00,26.17,130.83
Regeneration and Local Services,Economic Development and Housing,031576,B& B - Temp Accom,Supplies and Services,364320,Grants to Voluntary Organisations,08-Dec-2017,000006798292679,TRAVELODGE,3615,Accommodation assistance,189.00,31.50,157.50
Regeneration and Local Services,Direct Services,010525,Catering - Green Lane,Supplies and Services,324117,Provisions,08-Dec-2017,000006798292683,JR HOLLAND FOODSERVICE,5422,Catering costs - provisions,31.77,0.00,31.77
Children and Young Peoples Services,Head of Looked After Provision Permanence and Care Leavers,085334,West Rainton Satelite Home,Supplies and Services,328041,Clothing Uniforms and Laundry,08-Dec-2017,000006798292705,POUNDWORLD RETAIL,5310,Clothing uniforms and laundry,19.60,0.00,19.60
Children and Young Peoples Services,Head of Looked After Provision Permanence and Care Leavers,085334,West Rainton Satelite Home,Supplies and Services,304403,Equipment and Materials,08-Dec-2017,000006798292759,TESCO DIRECT,5999,Other consumables,20.00,0.00,20.00
Regeneration and Local Services,Direct Services,010912,Bldg Serv - Business Development & Management,Supplies and Services,384999,Miscellaneous Expenses,08-Dec-2017,000006798292769,BRITISH STANDARDS,7399,Other expenses,314.40,52.40,262.00
Children and Young Peoples Services,Head of Looked After Provision Permanence and Care Leavers,085333,Coxhoe Satelite Home,Supplies and Services,324117,Provisions,08-Dec-2017,000006798292773,TESCO STORES 2371,5411,Catering costs - provisions,215.54,0.00,215.54
Children and Young Peoples Services,Head of Looked After Provision Permanence and Care Leavers,085333,Coxhoe Satelite Home,Supplies and Services,324117,Provisions,08-Dec-2017,000006798292777,TESCO STORES 2371,5411,Catering costs - provisions,13.04,0.00,13.04
Children and Young Peoples Services,Head of Looked After Provision Permanence and Care Leavers,085333,Coxhoe Satelite Home,Supplies and Services,304259,Equipment and Materials,08-Dec-2017,000006798292781,SPORTSDIRECT 264,5941,Equipment-purchase and rental,17.99,0.00,17.99
Children and Young Peoples Services,Head of Looked After Provision Permanence and Care Leavers,085333,Coxhoe Satelite Home,Supplies and Services,328041,Clothing Uniforms and Laundry,08-Dec-2017,000006798292785,B & M RETAIL,5310,Clothing uniforms and laundry,43.73,0.00,43.73
Regeneration and Local Services,Culture & Sport,026591,Hardwick Park,Supplies and Services,312009,Newspapers Books and Periodicals,08-Dec-2017,000006798292815,Amazon UK Marketplace,5942,Newspapers books and periodicals,93.77,0.00,93.77
Children and Young Peoples Services,Head of Looked After Provision Permanence and Care Leavers,085372,Young People Services - North,Supplies and Services,304259,Equipment and Materials,08-Dec-2017,000006798292949,MUSIC STORE profession,5733,Equipment-purchase and rental,179.00,29.83,149.17
Children and Young Peoples Services,Head of Looked After Provision Permanence and Care Leavers,085372,Young People Services - North,Supplies and Services,304259,Equipment and Materials,08-Dec-2017,000006798292953,PC WORLD ONLINE,5732,Equipment-purchase and rental,429.00,71.50,357.50
Children and Young Peoples Services,Head of Looked After Provision Permanence and Care Leavers,085372,Young People Services - North,Supplies and Services,304259,Equipment and Materials,08-Dec-2017,000006798292957,PC WORLD ONLINE,5732,Equipment-purchase and rental,398.98,66.50,332.48
Regeneration and Local Services,Culture & Sport,054235,Bishop Auckland Town Hall Cafe,Supplies and Services,324117,Provisions,08-Dec-2017,000006798292973,JR HOLLAND FOODSERVICE,5422,Catering costs - provisions,7.59,0.00,7.59
Regeneration and Local Services,Direct Services,021324,Catering - Meadowfield,Supplies and Services,324117,Provisions,08-Dec-2017,000006798292977,JR HOLLAND FOODSERVICE,5422,Catering costs - provisions,9.90,0.00,9.90
Adult and Health Services,Head of Adults,055301,Stanley Pathways,Supplies and Services,324117,Provisions,08-Dec-2017,000006798292995,ASDA SUPERSTORE,5411,Catering costs - provisions,10.16,0.00,10.16
Adult and Health Services,Head of Adults,055301,Stanley Pathways,Supplies and Services,324117,Provisions,08-Dec-2017,000006798292999,ICELAND,5411,Catering costs - provisions,7.98,0.00,7.98
Regeneration and Local Services,Culture & Sport,054820,Gala Theatre - Overheads,Supplies and Services,324117,Provisions,08-Dec-2017,000006798293035,TESCO STORES 6029,5411,Catering costs - provisions,4.00,0.00,4.00
Regeneration and Local Services,Economic Development and Housing,030737,Durham Works Flexible Fund,Supplies and Services,328041,Clothing Uniforms and Laundry,08-Dec-2017,000006798293073,BURTON RETAIL,5691,Clothing uniforms and laundry,76.00,0.00,76.00
Adult and Health Services,Head of Adults,055807,Newton Aycliffe Pathways,Supplies and Services,340001,Postages,08-Dec-2017,000006798293097,THE POST OFFICE,9402,Postages,7.80,0.00,7.80
Regeneration and Local Services,Economic Development and Housing,030678,Business Development - Night Time Economy Fund,Supplies and Services,308011,Furniture,08-Dec-2017,000006798293099,CONNECTIONFLOORINGLTD,5713,Furniture repair and replacement,249.71,41.62,208.09
Resources,Digital and Customer Services,069010,Administration,Supplies and Services,340001,Postages,08-Dec-2017,000006798293103,ROYAL MAIL FEES,9402,Postages,51.50,0.00,51.50
Adult and Health Services,Head of Adults,056601,Substance Misuse,Supplies and Services,328041,Clothing Uniforms and Laundry,08-Dec-2017,000006798293107,YOURSCLOTHING.CO.U,5621,Clothing uniforms and laundry,78.46,0.00,78.46
Adult and Health Services,Head of Adults,055306,Spennymoor Pathways,Supplies and Services,328041,Clothing Uniforms and Laundry,08-Dec-2017,000006798293113,POUNDLAND LTD 1554,5310,Clothing uniforms and laundry,17.05,2.84,14.21
Children and Young Peoples Services,Head of Looked After Provision Permanence and Care Leavers,085363,LAC & Permanence Team 3,Transport,235057,Public Transport,08-Dec-2017,000006798293131,NEWCASTLE CITY COUNCIL,4789,Staff travelling,23.46,0.00,23.46
Regeneration and Local Services,Economic Development and Housing,030737,Durham Works Flexible Fund,Transport,235057,Public Transport,08-Dec-2017,000006798293185,WWW.SIMPLYGO.COM,4131,Staff travelling,20.40,0.00,20.40
Regeneration and Local Services,Spatial Policy Planning Assets & Environment,031200,North Pennines Core,Supplies and Services,340001,Postages,08-Dec-2017,000006798293187,THE POST OFFICE,9402,Postages,2.90,0.00,2.90
Regeneration and Local Services,Culture & Sport,011060,Hardwick Park Catering,Supplies and Services,324117,Provisions,08-Dec-2017,000006806421747,BATLEYS PERTH,5300,Catering costs - provisions,93.30,15.55,77.75
Regeneration and Local Services,Culture & Sport,011060,Hardwick Park Catering,Supplies and Services,324117,Provisions,08-Dec-2017,000006806421747 - 1,BATLEYS PERTH,5300,Catering costs - provisions,96.65,,96.65
Regeneration and Local Services,Direct Services,021234,Catering - Locomotion,Supplies and Services,324117,Provisions,08-Dec-2017,000006806421809,BATLEYS PERTH,5300,Catering costs - provisions,-9.52,-1.59,-7.93
Regeneration and Local Services,Direct Services,010525,Catering - Green Lane,Supplies and Services,324117,Provisions,08-Dec-2017,000006806421839,BATLEYS PERTH,5300,Catering costs - provisions,93.24,15.54,77.70
Regeneration and Local Services,Direct Services,010525,Catering - Green Lane,Supplies and Services,324117,Provisions,08-Dec-2017,000006806421839 - 1,BATLEYS PERTH,5300,Catering costs - provisions,75.02,,75.02
Regeneration and Local Services,Direct Services,010525,Catering - Green Lane,Supplies and Services,324117,Provisions,08-Dec-2017,000006806421851,BATLEYS PERTH,5300,Catering costs - provisions,17.20,2.87,14.33
Regeneration and Local Services,Culture & Sport,010605,Woodhouse Close Leisure Complex,Supplies and Services,324117,Provisions,08-Dec-2017,000006806422299,BATLEYS PERTH,5300,Catering costs - provisions,46.98,7.83,39.15
Regeneration and Local Services,Culture & Sport,010605,Woodhouse Close Leisure Complex,Supplies and Services,324117,Provisions,08-Dec-2017,000006806422299 - 1,BATLEYS PERTH,5300,Catering costs - provisions,40.81,,40.81
Children and Young Peoples Services,Head of Looked After Provision Permanence and Care Leavers,085341,High Etherley Satelite Home,Supplies and Services,304259,Equipment and Materials,09-Dec-2017,000006798292193,DSA THEORY TEST,9399,Equipment-purchase and rental,23.00,0.00,23.00
Dedicated Schools Grant,Dedicated Schools Grant,079052,Part Sighted-Belmont Comp,Supplies and Services,312011,Newspapers Books and Periodicals,09-Dec-2017,000006798292291,AMAZON.CO.UK,5942,Books-school library,61.38,0.00,61.38
Regeneration and Local Services,Economic Development and Housing,030737,Durham Works Flexible Fund,Supplies and Services,304259,Equipment and Materials,09-Dec-2017,000006798292429,Amazon UK Marketplace,5942,Equipment-purchase and rental,70.82,0.00,70.82
Regeneration and Local Services,Culture & Sport,011217,Commercial Management,Supplies and Services,342033,Computers and Communications,09-Dec-2017,000006798292469,SendinBlue,7372,Computer hardware,85.48,0.00,85.48
Regeneration and Local Services,Spatial Policy Planning Assets & Environment,030051,Strategy and Project Development,Supplies and Services,348037,Subsistence,09-Dec-2017,000006798292493,THE GOLDEN ARCH (1203,5814,Subsistence,49.65,0.00,49.65
Regeneration and Local Services,Culture & Sport,054813,Gala Theatre - Technical,Supplies and Services,312011,Newspapers Books and Periodicals,09-Dec-2017,000006798292529,AMAZON SVCS EU-UK AMAZ,5942,Books-school library,20.88,0.00,20.88
Children and Young Peoples Services,Head of Looked After Provision Permanence and Care Leavers,085957,Secure Management,Supplies and Services,324117,Provisions,09-Dec-2017,000006798292587,TESCO STORES 6329,5411,Catering costs - provisions,75.62,0.00,75.62
Children and Young Peoples Services,Head of Looked After Provision Permanence and Care Leavers,085334,West Rainton Satelite Home,Supplies and Services,312011,Newspapers Books and Periodicals,09-Dec-2017,000006798292765,AMAZON.CO.UK,5942,Books-school library,68.84,0.00,68.84
Regeneration and Local Services,Economic Development and Housing,031576,B& B - Temp Accom,Supplies and Services,352001,Conference Expenses,09-Dec-2017,000006798292835,TRAVELODGE,3615,Conferencesseminars fees etc,76.00,12.67,63.33
Children and Young Peoples Services,Head of Looked After Provision Permanence and Care Leavers,085341,High Etherley Satelite Home,Supplies and Services,324117,Provisions,10-Dec-2017,000006798292195,SAINSBURYS SACAT 2199,5411,Catering costs - provisions,24.35,0.00,24.35
Children and Young Peoples Services,Head of Looked After Provision Permanence and Care Leavers,085341,High Etherley Satelite Home,Supplies and Services,304259,Equipment and Materials,10-Dec-2017,000006798292197,HOMEBASE LTD 822,5211,Equipment-purchase and rental,65.00,0.00,65.00
Regeneration and Local Services,Culture & Sport,010664,Freemans Quay Leisure Centre,Supplies and Services,324117,Provisions,10-Dec-2017,000006798292515,TESCO STORES 6334,5411,Catering costs - provisions,7.10,0.00,7.10
Children and Young Peoples Services,Head of Looked After Provision Permanence and Care Leavers,085334,West Rainton Satelite Home,Supplies and Services,324117,Provisions,10-Dec-2017,000006798292709,TESCO STORES 2371,5411,Catering costs - provisions,40.50,0.00,40.50
Resources,Resources Management,069000,Resources Management,Supplies and Services,324117,Provisions,10-Dec-2017,000006798292791,TESCO STORES 2371,5411,Catering costs - provisions,4.36,0.00,4.36
Regeneration and Local Services,Culture & Sport,026591,Hardwick Park,Supplies and Services,304245,Equipment and Materials,10-Dec-2017,000006798292819,AMAZON SVCS EU-UK AMAZ,5942,Materials,39.93,0.00,39.93
Regeneration and Local Services,Spatial Policy Planning Assets & Environment,030051,Strategy and Project Development,Transport,235057,Public Transport,11-Dec-2017,000006798292495,DB BAHN REISEZENTRUM,4112,Staff travelling,0.66,0.00,0.66
Regeneration and Local Services,Spatial Policy Planning Assets & Environment,030051,Strategy and Project Development,Supplies and Services,348037,Subsistence,11-Dec-2017,000006798292497,THE GOLDEN ARCH (1203,5814,Subsistence,1.37,0.00,1.37
Children and Young Peoples Services,Head of Education,071801,Selby Cottage Childcare Centre,Supplies and Services,324117,Provisions,11-Dec-2017,000006806421243,TESCO STORES 2278,5411,Catering costs - provisions,6.00,0.00,6.00
Children and Young Peoples Services,Head of Education,071801,Selby Cottage Childcare Centre,Income,720130,Fees and Charges,11-Dec-2017,000006806421249,WWW.MONEYCLAIM.GOV,9399,Fees-legal,105.00,0.00,105.00
Regeneration and Local Services,Direct Services,010383,C&G - South Street Cleansing,Supplies and Services,304259,Equipment and Materials,11-Dec-2017,000006806421315,SCREWFIX DIRECT,5211,Equipment-purchase and rental,59.94,9.99,49.95
Regeneration and Local Services,Direct Services,010383,C&G - South Street Cleansing,Supplies and Services,304259,Equipment and Materials,11-Dec-2017,000006806421315 - 1,SCREWFIX DIRECT,5211,Equipment-purchase and rental,0.03,,0.03
Children and Young Peoples Services,Head of Looked After Provision Permanence and Care Leavers,085342,9 Cedar Drive Aycliffe,Supplies and Services,304259,Equipment and Materials,11-Dec-2017,000006806421329,WILKO RETAIL LIMIT,5722,Equipment-purchase and rental,23.05,0.00,23.05
Children and Young Peoples Services,Head of Looked After Provision Permanence and Care Leavers,085342,9 Cedar Drive Aycliffe,Supplies and Services,324117,Provisions,11-Dec-2017,000006806421331,TESCO STORES 2916,5411,Catering costs - provisions,175.55,0.00,175.55
Children and Young Peoples Services,Head of Looked After Provision Permanence and Care Leavers,085342,9 Cedar Drive Aycliffe,Supplies and Services,324117,Provisions,11-Dec-2017,000006806421335,TESCO STORES 2916,5411,Catering costs - provisions,68.93,0.00,68.93
Regeneration and Local Services,Direct Services,021242,Catering - County Hall,Supplies and Services,324117,Provisions,11-Dec-2017,000006806421411,WWW.ADELIEFOODS.CO.UK,5499,Catering costs - provisions,248.18,0.00,248.18
Regeneration and Local Services,Direct Services,021242,Catering - County Hall,Supplies and Services,324117,Provisions,11-Dec-2017,000006806421415,WWW.ADELIEFOODS.CO.UK,5499,Catering costs - provisions,184.38,0.00,184.38
Regeneration and Local Services,Direct Services,021242,Catering - County Hall,Supplies and Services,324117,Provisions,11-Dec-2017,000006806421421,WWW.ADELIEFOODS.CO.UK,5499,Catering costs - provisions,181.37,0.00,181.37
Regeneration and Local Services,Direct Services,021242,Catering - County Hall,Supplies and Services,324117,Provisions,11-Dec-2017,000006806421423,WWW.ADELIEFOODS.CO.UK,5499,Catering costs - provisions,151.08,0.00,151.08
Regeneration and Local Services,Direct Services,021242,Catering - County Hall,Supplies and Services,324117,Provisions,11-Dec-2017,000006806421427,WWW.ADELIEFOODS.CO.UK,5499,Catering costs - provisions,72.84,0.00,72.84
Regeneration and Local Services,Direct Services,021242,Catering - County Hall,Supplies and Services,324117,Provisions,11-Dec-2017,000006806421429,FREEMAN CATERING BUTCH,5422,Catering costs - provisions,279.76,0.00,279.76
Regeneration and Local Services,Direct Services,021242,Catering - County Hall,Supplies and Services,324117,Provisions,11-Dec-2017,000006806421435,FREEMAN CATERING BUTCH,5422,Catering costs - provisions,146.80,0.00,146.80
Regeneration and Local Services,Direct Services,021242,Catering - County Hall,Supplies and Services,324117,Provisions,11-Dec-2017,000006806421439,JR HOLLAND FOODSERVICE,5422,Catering costs - provisions,56.70,0.00,56.70
Regeneration and Local Services,Direct Services,021242,Catering - County Hall,Supplies and Services,324117,Provisions,11-Dec-2017,000006806421445,JR HOLLAND FOODSERVICE,5422,Catering costs - provisions,16.80,0.00,16.80
Regeneration and Local Services,Direct Services,021242,Catering - County Hall,Supplies and Services,324117,Provisions,11-Dec-2017,000006806421451,JR HOLLAND FOODSERVICE,5422,Catering costs - provisions,13.54,0.00,13.54
Regeneration and Local Services,Economic Development and Housing,030737,Durham Works Flexible Fund,Transport,235057,Public Transport,11-Dec-2017,000006806421463,ARRIVA NORTH EAST,4131,Staff travelling,7.00,0.00,7.00
Regeneration and Local Services,Economic Development and Housing,030737,Durham Works Flexible Fund,Transport,235057,Public Transport,11-Dec-2017,000006806421467,ARRIVA NORTH EAST,4131,Staff travelling,7.00,0.00,7.00
Regeneration and Local Services,Economic Development and Housing,030737,Durham Works Flexible Fund,Transport,235057,Public Transport,11-Dec-2017,000006806421469,ARRIVA NORTH EAST,4131,Staff travelling,7.00,0.00,7.00
Regeneration and Local Services,Economic Development and Housing,030737,Durham Works Flexible Fund,Transport,235057,Public Transport,11-Dec-2017,000006806421473,ARRIVA NORTH EAST,4131,Staff travelling,25.00,0.00,25.00
Regeneration and Local Services,Culture & Sport,054812,Gala Theatre - Catering etc,Supplies and Services,324117,Provisions,11-Dec-2017,000006806421487,FREEMAN CATERING BUTCH,5422,Catering costs - provisions,24.30,0.00,24.30
Regeneration and Local Services,Direct Services,021242,Catering - County Hall,Supplies and Services,324117,Provisions,11-Dec-2017,000006806421519,TESCO STORES 2371,5411,Catering costs - provisions,49.20,0.00,49.20
Regeneration and Local Services,Culture & Sport,054820,Gala Theatre - Overheads,Supplies and Services,304259,Equipment and Materials,11-Dec-2017,000006806421607,ARGOS LTD,5310,Equipment-purchase and rental,19.96,0.00,19.96
Children and Young Peoples Services,Head of Education,071732,Dean Bank Childcare,Supplies and Services,324117,Provisions,11-Dec-2017,000006806421645,SAINSBURYS SACAT (2303,5411,Catering costs - provisions,31.95,0.00,31.95
Children and Young Peoples Services,Head of Education,071732,Dean Bank Childcare,Supplies and Services,324117,Provisions,11-Dec-2017,000006806421649,ASDA HOME SHOPPING,5411,Catering costs - provisions,70.11,0.00,70.11
Children and Young Peoples Services,Head of Education,071732,Dean Bank Childcare,Supplies and Services,324117,Provisions,11-Dec-2017,000006806421653,ASDA HOME SHOPPING,5411,Catering costs - provisions,-7.00,0.00,-7.00
Regeneration and Local Services,Culture & Sport,054813,Gala Theatre - Technical,Supplies and Services,312011,Newspapers Books and Periodicals,11-Dec-2017,000006806421675,AMAZON SVCS EU-UK AMAZ,5942,Books-school library,9.60,0.00,9.60
Children and Young Peoples Services,Head of Looked After Provision Permanence and Care Leavers,085957,Secure Management,Supplies and Services,328041,Clothing Uniforms and Laundry,11-Dec-2017,000006806421713,SELECT,5691,Clothing uniforms and laundry,32.97,0.00,32.97
Children and Young Peoples Services,Head of Looked After Provision Permanence and Care Leavers,085957,Secure Management,Supplies and Services,324117,Provisions,11-Dec-2017,000006806421717,TESCO STORES 6329,5411,Catering costs - provisions,235.86,0.00,235.86
Regeneration and Local Services,Culture & Sport,026591,Hardwick Park,Supplies and Services,304259,Equipment and Materials,11-Dec-2017,000006806421727,SCREWFIX DIRECT,5211,Equipment-purchase and rental,55.37,9.23,46.14
Regeneration and Local Services,Culture & Sport,011060,Hardwick Park Catering,Supplies and Services,324117,Provisions,11-Dec-2017,000006806421731,FREEMAN CATERING BUTCH,5422,Catering costs - provisions,29.07,0.00,29.07
Regeneration and Local Services,Culture & Sport,011060,Hardwick Park Catering,Supplies and Services,324117,Provisions,11-Dec-2017,000006806421737,FREEMAN CATERING BUTCH,5422,Catering costs - provisions,26.01,0.00,26.01
Regeneration and Local Services,Culture & Sport,011060,Hardwick Park Catering,Supplies and Services,324117,Provisions,11-Dec-2017,000006806421741,FREEMAN CATERING BUTCH,5422,Catering costs - provisions,10.00,0.00,10.00
Regeneration and Local Services,Culture & Sport,011060,Hardwick Park Catering,Supplies and Services,324117,Provisions,11-Dec-2017,000006806421745,JR HOLLAND FOODSERVICE,5422,Catering costs - provisions,43.98,0.00,43.98
Regeneration and Local Services,Culture & Sport,011060,Hardwick Park Catering,Supplies and Services,324117,Provisions,11-Dec-2017,000006806421751,JR HOLLAND FOODSERVICE,5422,Catering costs - provisions,-4.70,0.00,-4.70
Children and Young Peoples Services,Head of Looked After Provision Permanence and Care Leavers,085332,Middlestone Moor CU,Supplies and Services,324117,Provisions,11-Dec-2017,000006806421791,ALDI 74 774,5411,Catering costs - provisions,8.10,0.00,8.10
Regeneration and Local Services,Direct Services,021234,Catering - Locomotion,Supplies and Services,324117,Provisions,11-Dec-2017,000006806421797,WWW.ADELIEFOODS.CO.UK,5499,Catering costs - provisions,86.30,0.00,86.30
Regeneration and Local Services,Direct Services,021234,Catering - Locomotion,Supplies and Services,324117,Provisions,11-Dec-2017,000006806421801,WWW.ADELIEFOODS.CO.UK,5499,Catering costs - provisions,76.42,0.00,76.42
Regeneration and Local Services,Direct Services,021234,Catering - Locomotion,Supplies and Services,324117,Provisions,11-Dec-2017,000006806421805,WWW.ADELIEFOODS.CO.UK,5499,Catering costs - provisions,60.35,0.00,60.35
Regeneration and Local Services,Direct Services,021234,Catering - Locomotion,Supplies and Services,324117,Provisions,11-Dec-2017,000006806421807,FREEMAN CATERING BUTCH,5422,Catering costs - provisions,55.82,0.00,55.82
Regeneration and Local Services,Direct Services,010525,Catering - Green Lane,Supplies and Services,324117,Provisions,11-Dec-2017,000006806421825,WWW.ADELIEFOODS.CO.UK,5499,Catering costs - provisions,78.89,0.00,78.89
Regeneration and Local Services,Direct Services,010525,Catering - Green Lane,Supplies and Services,324117,Provisions,11-Dec-2017,000006806421829,WWW.ADELIEFOODS.CO.UK,5499,Catering costs - provisions,44.80,0.00,44.80
Regeneration and Local Services,Direct Services,010525,Catering - Green Lane,Supplies and Services,324117,Provisions,11-Dec-2017,000006806421837,FREEMAN CATERING BUTCH,5422,Catering costs - provisions,110.28,0.00,110.28
Children and Young Peoples Services,Head of Education,071733,Shildon Childcare,Supplies and Services,372009,Subscriptions,11-Dec-2017,000006806421885,WWW.ICO.GOV.UK,9399,Subscriptions,35.00,0.00,35.00
Children and Young Peoples Services,Head of Education,071801,Selby Cottage Childcare Centre,Supplies and Services,372009,Subscriptions,11-Dec-2017,000006806421889,WWW.ICO.GOV.UK,9399,Subscriptions,35.00,0.00,35.00
Regeneration and Local Services,Culture & Sport,026591,Hardwick Park,Supplies and Services,304245,Equipment and Materials,11-Dec-2017,000006806421973,AMAZON SVCS EU-UK AMAZ,5942,Materials,15.61,0.00,15.61
Children and Young Peoples Services,Head of Early Help Assessment and Safeguarding,085100,Strategic Manager Families First Area South,Supplies and Services,384199,Miscellaneous Expenses,11-Dec-2017,000006806422067,GRO HM PASSPORT OFFICE,9399,Other hired and contracted services,37.00,0.00,37.00
Regeneration and Local Services,Culture & Sport,054235,Bishop Auckland Town Hall Cafe,Supplies and Services,324117,Provisions,11-Dec-2017,000006806422087,JR HOLLAND FOODSERVICE,5422,Catering costs - provisions,12.41,0.00,12.41
Regeneration and Local Services,Direct Services,021324,Catering - Meadowfield,Supplies and Services,324117,Provisions,11-Dec-2017,000006806422091,FREEMAN CATERING BUTCH,5422,Catering costs - provisions,72.37,0.00,72.37
Regeneration and Local Services,Direct Services,021324,Catering - Meadowfield,Supplies and Services,324117,Provisions,11-Dec-2017,000006806422099,FREEMAN CATERING BUTCH,5422,Catering costs - provisions,54.34,0.00,54.34
Regeneration and Local Services,Direct Services,021324,Catering - Meadowfield,Supplies and Services,324117,Provisions,11-Dec-2017,000006806422105,FREEMAN CATERING BUTCH,5422,Catering costs - provisions,3.30,0.00,3.30
Regeneration and Local Services,Economic Development and Housing,031576,B& B - Temp Accom,Supplies and Services,364320,Grants to Voluntary Organisations,11-Dec-2017,000006806422107,TRAVELODGE,3615,Accommodation assistance,48.00,8.00,40.00
Regeneration and Local Services,Economic Development and Housing,031576,B& B - Temp Accom,Supplies and Services,364320,Grants to Voluntary Organisations,11-Dec-2017,000006806422113,TRAVELODGE,3615,Accommodation assistance,48.00,8.00,40.00
Regeneration and Local Services,Economic Development and Housing,031576,B& B - Temp Accom,Supplies and Services,364320,Grants to Voluntary Organisations,11-Dec-2017,000006806422119,TRAVELODGE,3615,Accommodation assistance,44.00,7.33,36.67
Children and Young Peoples Services,Head of Looked After Provision Permanence and Care Leavers,085363,LAC & Permanence Team 3,Supplies and Services,304259,Equipment and Materials,11-Dec-2017,000006806422149,WWW.DURHAM.GOV.UK,9399,Equipment-purchase and rental,-36.00,0.00,-36.00
Children and Young Peoples Services,Head of Early Help Assessment and Safeguarding,074000,TTF-Attachment and Results,Supplies and Services,304403,Equipment and Materials,11-Dec-2017,000006806422193,TESCO DIRECT,5999,Other consumables,-20.00,0.00,-20.00
Adult and Health Services,Head of Adults,055306,Spennymoor Pathways,Supplies and Services,324117,Provisions,11-Dec-2017,000006806422197,ASDA SUPERSTORE 4987,5411,Catering costs - provisions,6.29,0.00,6.29
Regeneration and Local Services,Economic Development and Housing,030737,Durham Works Flexible Fund,Transport,235057,Public Transport,11-Dec-2017,000006806422285,WWW.SIMPLYGO.COM,4131,Staff travelling,31.00,0.00,31.00
Regeneration and Local Services,Culture & Sport,010605,Woodhouse Close Leisure Complex,Supplies and Services,324117,Provisions,11-Dec-2017,000006806422295,JR HOLLAND FOODSERVICE,5422,Catering costs - provisions,34.34,0.00,34.34
Children and Young Peoples Services,Head of Looked After Provision Permanence and Care Leavers,085363,LAC & Permanence Team 3,Supplies and Services,304259,Equipment and Materials,11-Dec-2017,000006806422305,WWW.DURHAM.GOV.UK,9399,Equipment-purchase and rental,24.00,0.00,24.00
Adult and Health Services,Head of Adults,052269,Intermediate Care Plus - North,Supplies and Services,340001,Postages,11-Dec-2017,000006806422335,ROYAL MAIL ONLINE SHOP,9402,Postages,56.00,0.00,56.00
Children and Young Peoples Services,Head of Early Help Assessment and Safeguarding,085632,Families First Seaham,Supplies and Services,352001,Conference Expenses,11-Dec-2017,000006806422341,TRAVELODGE,3615,Conferencesseminars fees etc,46.02,7.67,38.35
Children and Young Peoples Services,Head of Early Help Assessment and Safeguarding,085632,Families First Seaham,Supplies and Services,352001,Conference Expenses,11-Dec-2017,000006806422341 - 1,TRAVELODGE,3615,Conferencesseminars fees etc,15.73,,15.73
Regeneration and Local Services,Economic Development and Housing,030737,Durham Works Flexible Fund,Supplies and Services,328041,Clothing Uniforms and Laundry,11-Dec-2017,000006810071741,NEW LOOK INTERNET,5621,Clothing uniforms and laundry,103.94,0.00,103.94
Regeneration and Local Services,Culture & Sport,054812,Gala Theatre - Catering etc,Supplies and Services,324117,Provisions,11-Dec-2017,000006810071745,BATLEYS PERTH,5300,Catering costs - provisions,337.38,56.24,281.14
Regeneration and Local Services,Culture & Sport,054812,Gala Theatre - Catering etc,Supplies and Services,324117,Provisions,11-Dec-2017,000006810071749,BATLEYS PERTH,5300,Catering costs - provisions,168.54,28.09,140.45
Regeneration and Local Services,Culture & Sport,054812,Gala Theatre - Catering etc,Supplies and Services,324117,Provisions,11-Dec-2017,000006810071749 - 1,BATLEYS PERTH,5300,Catering costs - provisions,100.75,,100.75
Regeneration and Local Services,Culture & Sport,054812,Gala Theatre - Catering etc,Supplies and Services,324117,Provisions,11-Dec-2017,000006810071753,BATLEYS PERTH,5300,Catering costs - provisions,218.01,36.34,181.67
Regeneration and Local Services,Culture & Sport,054812,Gala Theatre - Catering etc,Supplies and Services,324117,Provisions,11-Dec-2017,000006810071757,BATLEYS PERTH,5300,Catering costs - provisions,113.88,18.98,94.90
Regeneration and Local Services,Culture & Sport,011060,Hardwick Park Catering,Supplies and Services,324117,Provisions,11-Dec-2017,000006810072023,BATLEYS PERTH,5300,Catering costs - provisions,-9.83,-1.64,-8.19
Resources,Digital and Customer Services,065321,Operations - Digital & Customer Services,Supplies and Services,342033,Computers and Communications,11-Dec-2017,000006810072037,AMAZON.CO.UK,5942,Computer hardware,7.99,0.00,7.99
Regeneration and Local Services,Direct Services,021235,Catering - Wharton Park,Supplies and Services,324117,Provisions,11-Dec-2017,000006810072777,BATLEYS PERTH,5300,Catering costs - provisions,112.98,18.83,94.15
Regeneration and Local Services,Direct Services,021235,Catering - Wharton Park,Supplies and Services,324117,Provisions,11-Dec-2017,000006810072777 - 1,BATLEYS PERTH,5300,Catering costs - provisions,20.15,,20.15
Children and Young Peoples Services,Head of Education,071801,Selby Cottage Childcare Centre,Supplies and Services,324117,Provisions,12-Dec-2017,000006810071607,ASDA HOME SHOPPING,5411,Catering costs - provisions,50.54,0.00,50.54
Children and Young Peoples Services,Head of Education,071801,Selby Cottage Childcare Centre,Supplies and Services,324117,Provisions,12-Dec-2017,000006810071611,TESCO STORES 2278,5411,Catering costs - provisions,40.04,0.00,40.04
Children and Young Peoples Services,Head of Education,071801,Selby Cottage Childcare Centre,Supplies and Services,324117,Provisions,12-Dec-2017,000006810071613,ASDA HOME SHOPPING,5411,Catering costs - provisions,-0.05,0.00,-0.05
Regeneration and Local Services,Direct Services,010301,C&G - North Grounds Maintenance,Supplies and Services,304259,Equipment and Materials,12-Dec-2017,000006810071615,HARELAW SAWMILL,5211,Equipment-purchase and rental,441.15,0.00,441.15
Regeneration and Local Services,Business Support,010832,Business Support,Supplies and Services,304403,Equipment and Materials,12-Dec-2017,000006810071645,TESCO - Seller_IST_1_2,5999,Other consumables,209.99,0.00,209.99
Children and Young Peoples Services,Head of Education,078411,16-19 Education & Training,Supplies and Services,304403,Equipment and Materials,12-Dec-2017,000006810071655,AMAZON EU AMAZON.CO.UK,5999,Other consumables,10.99,0.00,10.99
Adult and Health Services,Head of Adults,055302,Durham Pathways,Supplies and Services,324117,Provisions,12-Dec-2017,000006810071659,LIDL UK,5411,Catering costs - provisions,1.77,0.00,1.77
Children and Young Peoples Services,Head of Looked After Provision Permanence and Care Leavers,085962,Durham,Supplies and Services,304649,Equipment and Materials,12-Dec-2017,000006810071663,TESCO DIRECT,5999,Toys,-229.99,0.00,-229.99
Regeneration and Local Services,Direct Services,021242,Catering - County Hall,Supplies and Services,324117,Provisions,12-Dec-2017,000006810071719,JR HOLLAND FOODSERVICE,5422,Catering costs - provisions,41.83,0.00,41.83
Regeneration and Local Services,Direct Services,021242,Catering - County Hall,Supplies and Services,324117,Provisions,12-Dec-2017,000006810071723,JR HOLLAND FOODSERVICE,5422,Catering costs - provisions,13.20,0.00,13.20
Regeneration and Local Services,Culture & Sport,054233,Bishop Auckland Town Hall Library,Supplies and Services,304403,Equipment and Materials,12-Dec-2017,000006810071727,AMAZON EU AMAZON.CO.UK,5999,Other consumables,13.30,0.00,13.30
Regeneration and Local Services,Economic Development and Housing,030737,Durham Works Flexible Fund,Supplies and Services,328041,Clothing Uniforms and Laundry,12-Dec-2017,000006810071733,SCREWFIX DIRECT,5211,Clothing uniforms and laundry,26.99,4.50,22.49
Regeneration and Local Services,Economic Development and Housing,030737,Durham Works Flexible Fund,Supplies and Services,328041,Clothing Uniforms and Laundry,12-Dec-2017,000006810071735,SCREWFIX DIRECT,5211,Clothing uniforms and laundry,26.99,4.50,22.49
Regeneration and Local Services,Economic Development and Housing,030737,Durham Works Flexible Fund,Supplies and Services,328041,Clothing Uniforms and Laundry,12-Dec-2017,000006810071737,WWW.ASOS.COM,5651,Clothing uniforms and laundry,43.98,0.00,43.98
Regeneration and Local Services,Economic Development and Housing,030737,Durham Works Flexible Fund,Supplies and Services,328041,Clothing Uniforms and Laundry,12-Dec-2017,000006810071739,JD SPORTS INTERNET,5941,Clothing uniforms and laundry,60.00,0.00,60.00
Children and Young Peoples Services,Head of Looked After Provision Permanence and Care Leavers,085351,Framwellgate Moor CU,Supplies and Services,308011,Furniture,12-Dec-2017,000006810071781,PAYPAL SHENZHENHAO,5719,Furniture repair and replacement,128.99,0.00,128.99
Children and Young Peoples Services,Head of Looked After Provision Permanence and Care Leavers,085351,Framwellgate Moor CU,Supplies and Services,304259,Equipment and Materials,12-Dec-2017,000006810071785,PAYPAL ZHU BI YU,5732,Equipment-purchase and rental,4.99,0.00,4.99
Children and Young Peoples Services,Head of Looked After Provision Permanence and Care Leavers,085351,Framwellgate Moor CU,Supplies and Services,308011,Furniture,12-Dec-2017,000006810071789,PAYPAL LUO HAIHUA,5932,Furniture repair and replacement,9.47,0.00,9.47
Children and Young Peoples Services,Head of Looked After Provision Permanence and Care Leavers,085351,Framwellgate Moor CU,Supplies and Services,308011,Furniture,12-Dec-2017,000006810071791,PAYPAL SHENZHENSHI,5932,Furniture repair and replacement,10.49,0.00,10.49
Children and Young Peoples Services,Head of Looked After Provision Permanence and Care Leavers,085351,Framwellgate Moor CU,Supplies and Services,384999,Miscellaneous Expenses,12-Dec-2017,000006810071795,PAYPAL INNOV8GBLTD,5946,Other expenses,7.48,0.00,7.48
Children and Young Peoples Services,Head of Looked After Provision Permanence and Care Leavers,085351,Framwellgate Moor CU,Supplies and Services,324117,Provisions,12-Dec-2017,000006810071799,ASDA HOME SHOPPING,5411,Catering costs - provisions,119.32,0.00,119.32
Regeneration and Local Services,Economic Development and Housing,031576,B& B - Temp Accom,Supplies and Services,364320,Grants to Voluntary Organisations,12-Dec-2017,000006810071817,TRAVELODGE,3615,Accommodation assistance,51.00,8.50,42.50
Regeneration and Local Services,Economic Development and Housing,031576,B& B - Temp Accom,Supplies and Services,364320,Grants to Voluntary Organisations,12-Dec-2017,000006810071819,TRAVELODGE,3615,Accommodation assistance,51.00,8.50,42.50
Regeneration and Local Services,Economic Development and Housing,031576,B& B - Temp Accom,Supplies and Services,364320,Grants to Voluntary Organisations,12-Dec-2017,000006810071823,TRAVELODGE,3615,Accommodation assistance,47.00,7.83,39.17
Children and Young Peoples Services,Head of Education,071732,Dean Bank Childcare,Supplies and Services,324117,Provisions,12-Dec-2017,000006810071855,ASDA SUPERSTORE 4987,5411,Catering costs - provisions,36.84,0.00,36.84
Regeneration and Local Services,Culture & Sport,054813,Gala Theatre - Technical,Supplies and Services,304403,Equipment and Materials,12-Dec-2017,000006810071861,MESSY SUPPLIES,5999,Other consumables,113.96,0.00,113.96
Regeneration and Local Services,Economic Development and Housing,030737,Durham Works Flexible Fund,Supplies and Services,348037,Subsistence,12-Dec-2017,000006810071905,WWW.SIMPLYGO.COM,4131,Subsistence,21.00,0.00,21.00
Children and Young Peoples Services,Head of Early Help Assessment and Safeguarding,071445,Chester le Street One Point Hub,Supplies and Services,324117,Provisions,12-Dec-2017,000006810071921,BESTWAY WHOLESALE,5451,Catering costs - provisions,24.14,0.00,24.14
Children and Young Peoples Services,Head of Early Help Assessment and Safeguarding,088023,Chester Le Street 0 - 5,Supplies and Services,324117,Provisions,12-Dec-2017,000006810071923,BESTWAY WHOLESALE,5451,Catering costs - provisions,45.96,0.00,45.96
Children and Young Peoples Services,Head of Looked After Provision Permanence and Care Leavers,085957,Secure Management,Supplies and Services,312011,Newspapers Books and Periodicals,12-Dec-2017,000006810071927,Amazon UK Marketplace,5942,Books-school library,15.98,0.00,15.98
Children and Young Peoples Services,Head of Looked After Provision Permanence and Care Leavers,085957,Secure Management,Supplies and Services,312011,Newspapers Books and Periodicals,12-Dec-2017,000006810071931,Amazon UK Marketplace,5942,Books-school library,14.98,0.00,14.98
Children and Young Peoples Services,Head of Looked After Provision Permanence and Care Leavers,085957,Secure Management,Supplies and Services,312011,Newspapers Books and Periodicals,12-Dec-2017,000006810071935,Amazon UK Marketplace,5942,Books-school library,13.92,0.00,13.92
Children and Young Peoples Services,Head of Looked After Provision Permanence and Care Leavers,085957,Secure Management,Supplies and Services,304259,Equipment and Materials,12-Dec-2017,000006810071939,M and M Direct Ltd,5941,Equipment-purchase and rental,228.40,0.00,228.40
Children and Young Peoples Services,Head of Looked After Provision Permanence and Care Leavers,085957,Secure Management,Supplies and Services,328041,Clothing Uniforms and Laundry,12-Dec-2017,000006810071943,WWW.BOOHOO.COM,5691,Clothing uniforms and laundry,13.99,0.00,13.99
Children and Young Peoples Services,Head of Looked After Provision Permanence and Care Leavers,085957,Secure Management,Supplies and Services,328041,Clothing Uniforms and Laundry,12-Dec-2017,000006810071945,21THREE CLOTHING COMPA,5691,Clothing uniforms and laundry,123.99,0.00,123.99
Children and Young Peoples Services,Head of Looked After Provision Permanence and Care Leavers,085957,Secure Management,Supplies and Services,328041,Clothing Uniforms and Laundry,12-Dec-2017,000006810071947,WWW.ARGOS.CO.UK,5310,Clothing uniforms and laundry,241.86,40.31,201.55
Children and Young Peoples Services,Head of Looked After Provision Permanence and Care Leavers,085957,Secure Management,Supplies and Services,328041,Clothing Uniforms and Laundry,12-Dec-2017,000006810071947 - 1,WWW.ARGOS.CO.UK,5310,Clothing uniforms and laundry,0.03,,0.03
Children and Young Peoples Services,Head of Looked After Provision Permanence and Care Leavers,085957,Secure Management,Supplies and Services,304259,Equipment and Materials,12-Dec-2017,000006810071951,FOOTASYLUM PLC,5941,Equipment-purchase and rental,79.98,0.00,79.98
Children and Young Peoples Services,Head of Looked After Provision Permanence and Care Leavers,085957,Secure Management,Supplies and Services,324117,Provisions,12-Dec-2017,000006810071953,TESCO STORES 6329,5411,Catering costs - provisions,86.25,0.00,86.25
Children and Young Peoples Services,Head of Looked After Provision Permanence and Care Leavers,085957,Secure Management,Supplies and Services,342033,Computers and Communications,12-Dec-2017,000006810071955,VERY.CO.UK,5964,Computer hardware,265.97,0.00,265.97
Regeneration and Local Services,Culture & Sport,026591,Hardwick Park,Supplies and Services,304259,Equipment and Materials,12-Dec-2017,000006810071981,SCREWFIX,5211,Equipment-purchase and rental,17.58,0.00,17.58
Children and Young Peoples Services,Head of Early Help Assessment and Safeguarding,071746,Newton Aycliffe Childrens Centre,Supplies and Services,324117,Provisions,12-Dec-2017,000006810071983,TESCO STORES 2916,5411,Catering costs - provisions,12.31,0.00,12.31
Regeneration and Local Services,Direct Services,010301,C&G - North Grounds Maintenance,Supplies and Services,304999,Equipment and Materials,12-Dec-2017,000006810072001,GUSTHARTS CHAINSAW CTR,7699,Misc equipment tools and materials,89.41,0.00,89.41
Regeneration and Local Services,Spatial Policy Planning Assets & Environment,031222,North Pennines Allen Valleys Landscape Partnership,Supplies and Services,324117,Provisions,12-Dec-2017,000006810072009,ALLENDALE CO-OPERATIVE,5499,Catering costs - provisions,5.99,0.00,5.99
Regeneration and Local Services,Culture & Sport,011060,Hardwick Park Catering,Supplies and Services,324117,Provisions,12-Dec-2017,000006810072019,JR HOLLAND FOODSERVICE,5422,Catering costs - provisions,8.34,0.00,8.34
Regeneration and Local Services,Culture & Sport,054815,Gala Theatre Stage School,Supplies and Services,312011,Newspapers Books and Periodicals,12-Dec-2017,000006810072039,Amazon UK Marketplace,5942,Books-school library,24.97,0.00,24.97
Regeneration and Local Services,Culture & Sport,054815,Gala Theatre Stage School,Supplies and Services,384999,Miscellaneous Expenses,12-Dec-2017,000006810072043,MAKING FACES,7230,Other expenses,7.97,0.00,7.97
Regeneration and Local Services,Culture & Sport,054815,Gala Theatre Stage School,Supplies and Services,332047,Printing Stationery and Gen Off Exps,12-Dec-2017,000006810072047,WWW.RYMAN.CO.UK,5943,Stationery,74.97,0.00,74.97
Regeneration and Local Services,Culture & Sport,026591,Hardwick Park,Supplies and Services,312011,Newspapers Books and Periodicals,12-Dec-2017,000006810072055,Amazon UK Marketplace,5942,Books-school library,99.95,0.00,99.95
Regeneration and Local Services,Culture & Sport,026591,Hardwick Park,Supplies and Services,312011,Newspapers Books and Periodicals,12-Dec-2017,000006810072061,Amazon UK Marketplace,5942,Books-school library,12.91,0.00,12.91
Children and Young Peoples Services,Head of Looked After Provision Permanence and Care Leavers,085332,Middlestone Moor CU,Supplies and Services,308011,Furniture,12-Dec-2017,000006810072063,FRANKS THE FLOORING ST,5713,Furniture repair and replacement,10.00,0.00,10.00
Children and Young Peoples Services,Head of Looked After Provision Permanence and Care Leavers,085332,Middlestone Moor CU,Supplies and Services,312011,Newspapers Books and Periodicals,12-Dec-2017,000006810072069,HOME BARGAINS SPENNYMO,5251,Books-school library,44.69,7.45,37.24
Children and Young Peoples Services,Head of Looked After Provision Permanence and Care Leavers,085332,Middlestone Moor CU,Supplies and Services,324117,Provisions,12-Dec-2017,000006810072071,ICELAND,5411,Catering costs - provisions,12.00,0.00,12.00
Children and Young Peoples Services,Head of Looked After Provision Permanence and Care Leavers,085332,Middlestone Moor CU,Supplies and Services,324117,Provisions,12-Dec-2017,000006810072073,TESCO STORES 2371,5411,Catering costs - provisions,70.52,0.00,70.52
Regeneration and Local Services,Direct Services,010525,Catering - Green Lane,Supplies and Services,324117,Provisions,12-Dec-2017,000006810072133,JR HOLLAND FOODSERVICE,5422,Catering costs - provisions,-12.00,0.00,-12.00
Children and Young Peoples Services,Head of Looked After Provision Permanence and Care Leavers,085352,Tow Law CU,Supplies and Services,328041,Clothing Uniforms and Laundry,12-Dec-2017,000006810072139,WWW.ARGOS.CO.UK,5310,Clothing uniforms and laundry,338.91,0.00,338.91
Regeneration and Local Services,Culture & Sport,011223,Operations Locality 1,Supplies and Services,304259,Equipment and Materials,12-Dec-2017,000006810072163,PC WORLD ONLINE,5732,Equipment-purchase and rental,133.94,22.32,111.62
Children and Young Peoples Services,Head of Looked After Provision Permanence and Care Leavers,085333,Coxhoe Satelite Home,Supplies and Services,324117,Provisions,12-Dec-2017,000006810072265,CO-OP GROUP 310016,5411,Catering costs - provisions,29.87,0.00,29.87
Regeneration and Local Services,Culture & Sport,026591,Hardwick Park,Supplies and Services,304245,Equipment and Materials,12-Dec-2017,000006810072309,SAINSBURYS SACAT (2303,5411,Materials,8.00,0.00,8.00
Regeneration and Local Services,Business Support,010832,Business Support,Supplies and Services,304259,Equipment and Materials,12-Dec-2017,000006810072317,DVLA VEHICLE TAX,9399,Equipment-purchase and rental,167.50,0.00,167.50
Regeneration and Local Services,Business Support,010832,Business Support,Supplies and Services,304259,Equipment and Materials,12-Dec-2017,000006810072325,DVLA VEHICLE TAX,9399,Equipment-purchase and rental,242.50,0.00,242.50
Regeneration and Local Services,Business Support,010832,Business Support,Supplies and Services,304259,Equipment and Materials,12-Dec-2017,000006810072329,DVLA VEHICLE TAX,9399,Equipment-purchase and rental,242.50,0.00,242.50
Regeneration and Local Services,Business Support,010832,Business Support,Supplies and Services,304259,Equipment and Materials,12-Dec-2017,000006810072331,DVLA VEHICLE TAX,9399,Equipment-purchase and rental,167.50,0.00,167.50
Regeneration and Local Services,Business Support,010832,Business Support,Supplies and Services,304259,Equipment and Materials,12-Dec-2017,000006810072337,DVLA VEHICLE TAX,9399,Equipment-purchase and rental,167.50,0.00,167.50
Regeneration and Local Services,Business Support,010832,Business Support,Supplies and Services,304259,Equipment and Materials,12-Dec-2017,000006810072339,DVLA VEHICLE TAX,9399,Equipment-purchase and rental,167.50,0.00,167.50
Regeneration and Local Services,Business Support,010832,Business Support,Supplies and Services,304259,Equipment and Materials,12-Dec-2017,000006810072341,DVLA VEHICLE TAX,9399,Equipment-purchase and rental,242.50,0.00,242.50
Regeneration and Local Services,Business Support,010832,Business Support,Supplies and Services,304259,Equipment and Materials,12-Dec-2017,000006810072349,DVLA VEHICLE TAX,9399,Equipment-purchase and rental,242.50,0.00,242.50
Regeneration and Local Services,Business Support,010832,Business Support,Supplies and Services,304259,Equipment and Materials,12-Dec-2017,000006810072353,DVLA VEHICLE TAX,9399,Equipment-purchase and rental,167.50,0.00,167.50
Regeneration and Local Services,Business Support,010832,Business Support,Supplies and Services,304259,Equipment and Materials,12-Dec-2017,000006810072357,DVLA VEHICLE TAX,9399,Equipment-purchase and rental,242.50,0.00,242.50
Regeneration and Local Services,Business Support,010832,Business Support,Supplies and Services,304259,Equipment and Materials,12-Dec-2017,000006810072365,DVLA VEHICLE TAX,9399,Equipment-purchase and rental,242.50,0.00,242.50
Regeneration and Local Services,Business Support,010832,Business Support,Supplies and Services,304259,Equipment and Materials,12-Dec-2017,000006810072371,DVLA VEHICLE TAX,9399,Equipment-purchase and rental,167.50,0.00,167.50
Regeneration and Local Services,Business Support,010832,Business Support,Supplies and Services,304259,Equipment and Materials,12-Dec-2017,000006810072375,DVLA VEHICLE TAX,9399,Equipment-purchase and rental,167.50,0.00,167.50
Regeneration and Local Services,Business Support,010832,Business Support,Supplies and Services,304259,Equipment and Materials,12-Dec-2017,000006810072381,DVLA VEHICLE TAX,9399,Equipment-purchase and rental,167.50,0.00,167.50
Regeneration and Local Services,Economic Development and Housing,030737,Durham Works Flexible Fund,Transport,235057,Public Transport,12-Dec-2017,000006810072431,WWW.SIMPLYGO.COM,4131,Staff travelling,5.10,0.00,5.10
Regeneration and Local Services,Spatial Policy Planning Assets & Environment,031222,North Pennines Allen Valleys Landscape Partnership,Supplies and Services,348037,Subsistence,12-Dec-2017,000006810072443,FETHERSTON ARMS,5813,Subsistence,33.40,0.00,33.40
Regeneration and Local Services,Direct Services,010301,C&G - North Grounds Maintenance,Supplies and Services,324117,Provisions,12-Dec-2017,000006810072519,J VAN VLIET GATESHEAD,5399,Catering costs - provisions,88.38,0.00,88.38
Regeneration and Local Services,Economic Development and Housing,030690,Durham Dales Centre - Tourist Information Centre,Supplies and Services,328041,Clothing Uniforms and Laundry,12-Dec-2017,000006810072555,ZELLY UK TRADING LTD,5651,Clothing uniforms and laundry,457.80,0.00,457.80
Regeneration and Local Services,Culture & Sport,054235,Bishop Auckland Town Hall Cafe,Supplies and Services,324117,Provisions,12-Dec-2017,000006810072565,JR HOLLAND FOODSERVICE,5422,Catering costs - provisions,-7.59,0.00,-7.59
Adult and Health Services,Head of Adults,055301,Stanley Pathways,Supplies and Services,324117,Provisions,12-Dec-2017,000006810072575,ICELAND,5411,Catering costs - provisions,4.97,0.00,4.97
Regeneration and Local Services,Economic Development and Housing,031576,B& B - Temp Accom,Transport,235073,Public Transport,12-Dec-2017,000006810072583,NATIONAL EXPRESS LIMIT,4131,Travel-clients/students/children,173.50,0.00,173.50
Regeneration and Local Services,Economic Development and Housing,031576,B& B - Temp Accom,Transport,235073,Public Transport,12-Dec-2017,000006810072589,NATIONAL EXPRESS LIMIT,4131,Travel-clients/students/children,5.00,0.00,5.00
Regeneration and Local Services,Economic Development and Housing,030723,NETPark - Explorer Village,Supplies and Services,384985,Miscellaneous Expenses,12-Dec-2017,000006810072693,WWW.ARGOS.CO.UK,5310,Miscellaneous-special facilities,113.93,18.99,94.94
Regeneration and Local Services,Economic Development and Housing,030723,NETPark - Explorer Village,Supplies and Services,384985,Miscellaneous Expenses,12-Dec-2017,000006810072697,WWW.ARGOS.CO.UK,5310,Miscellaneous-special facilities,113.93,18.99,94.94
Adult and Health Services,Head of Adults,055807,Newton Aycliffe Pathways,Supplies and Services,324117,Provisions,12-Dec-2017,000006810072747,TESCO STORES 2916,5411,Catering costs - provisions,8.00,0.00,8.00
Adult and Health Services,Head of Adults,051613,OP/PD Easington,Supplies and Services,338064,Services,12-Dec-2017,000006810072757,DISCLOSURE SCOT,9399,Disclosure & Barring (DBS) Fees,25.00,0.00,25.00
Children and Young Peoples Services,Head of Early Help Assessment and Safeguarding,071448,Newton Aycliffe One Point Hub,Supplies and Services,340001,Postages,12-Dec-2017,000006810072763,ROYAL MAIL ONLINE SHOP,9402,Postages,21.61,0.00,21.61
Regeneration and Local Services,Spatial Policy Planning Assets & Environment,031030,Development Management,Supplies and Services,304335,Equipment and Materials,12-Dec-2017,000006810072767,AMAZON EU AMAZON.CO.UK,5999,ICT supplies etc,11.99,2.00,9.99
Children and Young Peoples Services,Head of Looked After Provision Permanence and Care Leavers,085363,LAC & Permanence Team 3,Supplies and Services,304259,Equipment and Materials,12-Dec-2017,000006810072849,STOCKTON BOROUGH COUNC,9399,Equipment-purchase and rental,21.00,0.00,21.00
Adult and Health Services,EnvironmentHealth & Consumer Protection,010829,Environment Protection,Supplies and Services,338048,Services,12-Dec-2017,000006810072855,HMCOURTS-SERVICE.G,9222,Court Costs,20.00,0.00,20.00
Regeneration and Local Services,Economic Development and Housing,030737,Durham Works Flexible Fund,Transport,235057,Public Transport,12-Dec-2017,000006810072885,WWW.SIMPLYGO.COM,4131,Staff travelling,92.00,0.00,92.00
Children and Young Peoples Services,Head of Early Help Assessment and Safeguarding,088003,Peterlee 0 - 5,Supplies and Services,304259,Equipment and Materials,12-Dec-2017,000006810072891,HARTLEPOOL BC CNP,9399,Equipment-purchase and rental,14.21,0.00,14.21
Regeneration and Local Services,Economic Development and Housing,031500,Housing Solutions - Core Team,Employees,040149,Recruitment Instruction and Training,12-Dec-2017,000006814848701,PREMIER INN,3811,Training-all costs,92.98,15.50,77.48
Regeneration and Local Services,Culture & Sport,054813,Gala Theatre - Technical,Supplies and Services,328041,Clothing Uniforms and Laundry,12-Dec-2017,000006814848891,WWW.ARGOS.CO.UK,5310,Clothing uniforms and laundry,179.98,0.00,179.98
Children and Young Peoples Services,Head of Education,071903,EYDCP-Sustainability EDS,Supplies and Services,312011,Newspapers Books and Periodicals,12-Dec-2017,000006814848901,AMAZON SVCS EU-UK AMAZ,5942,Books-school library,13.98,0.00,13.98
Regeneration and Local Services,Direct Services,021242,Catering - County Hall,Supplies and Services,324117,Provisions,12-Dec-2017,000006819922635,BATLEYS PERTH,5300,Catering costs - provisions,511.98,85.33,426.65
Regeneration and Local Services,Direct Services,021242,Catering - County Hall,Supplies and Services,324117,Provisions,12-Dec-2017,000006819922635 - 1,BATLEYS PERTH,5300,Catering costs - provisions,183.57,,183.57
Regeneration and Local Services,Economic Development and Housing,030737,Durham Works Flexible Fund,Supplies and Services,328041,Clothing Uniforms and Laundry,12-Dec-2017,000006819922665,NEW LOOK INTERNET,5621,Clothing uniforms and laundry,57.27,0.00,57.27
Children and Young Peoples Services,Head of Looked After Provision Permanence and Care Leavers,085957,Secure Management,Supplies and Services,328041,Clothing Uniforms and Laundry,12-Dec-2017,000006819922825,WWW.TOPSHOP.COM,5691,Clothing uniforms and laundry,161.50,0.00,161.50
Regeneration and Local Services,Direct Services,021234,Catering - Locomotion,Supplies and Services,324117,Provisions,12-Dec-2017,000006819922847,BATLEYS PERTH,5300,Catering costs - provisions,428.10,71.35,356.75
Regeneration and Local Services,Direct Services,021234,Catering - Locomotion,Supplies and Services,324117,Provisions,12-Dec-2017,000006819922847 - 1,BATLEYS PERTH,5300,Catering costs - provisions,113.11,,113.11
Regeneration and Local Services,Direct Services,021324,Catering - Meadowfield,Supplies and Services,324117,Provisions,12-Dec-2017,000006819923013,BATLEYS PERTH,5300,Catering costs - provisions,37.74,6.29,31.45
Regeneration and Local Services,Direct Services,021324,Catering - Meadowfield,Supplies and Services,324117,Provisions,12-Dec-2017,000006819923013 - 1,BATLEYS PERTH,5300,Catering costs - provisions,123.04,,123.04
Children and Young Peoples Services,Head of Looked After Provision Permanence and Care Leavers,085957,Secure Management,Supplies and Services,328041,Clothing Uniforms and Laundry,12-Dec-2017,000006855625237,21THREE CLOTHING COMPA,5691,Clothing uniforms and laundry,-85.00,0.00,-85.00
Children and Young Peoples Services,Head of Looked After Provision Permanence and Care Leavers,085957,Secure Management,Supplies and Services,328041,Clothing Uniforms and Laundry,12-Dec-2017,000006861146273,21THREE CLOTHING COMPA,5691,Clothing uniforms and laundry,-35.00,0.00,-35.00
Children and Young Peoples Services,Head of Looked After Provision Permanence and Care Leavers,085957,Secure Management,Supplies and Services,328041,Clothing Uniforms and Laundry,12-Dec-2017,000006886626969,WWW.TOPSHOP.COM,5691,Clothing uniforms and laundry,-40.00,0.00,-40.00
Children and Young Peoples Services,Head of Looked After Provision Permanence and Care Leavers,085957,Secure Management,Supplies and Services,312011,Newspapers Books and Periodicals,13-Dec-2017,000006810071959,Amazon UK Marketplace,5942,Books-school library,3.79,0.00,3.79
Children and Young Peoples Services,Head of Education,071801,Selby Cottage Childcare Centre,Supplies and Services,324117,Provisions,13-Dec-2017,000006814848627,ALDI 32 774,5411,Catering costs - provisions,7.36,0.00,7.36
Adult and Health Services,Head of Adults,051630,OP/PD Occupational Therapy,Supplies and Services,344033,Telephones,13-Dec-2017,000006814848639,Amazon UK Marketplace,5942,Telephones general-all costs,6.78,0.00,6.78
Adult and Health Services,Head of Adults,051630,OP/PD Occupational Therapy,Supplies and Services,304335,Equipment and Materials,13-Dec-2017,000006814848645,Amazon UK Marketplace,5942,ICT supplies etc,3.39,0.00,3.39
Adult and Health Services,Head of Adults,051630,OP/PD Occupational Therapy,Supplies and Services,344033,Telephones,13-Dec-2017,000006814848647,Amazon UK Marketplace,5942,Telephones general-all costs,6.78,0.00,6.78
Adult and Health Services,Head of Adults,051630,OP/PD Occupational Therapy,Supplies and Services,344033,Telephones,13-Dec-2017,000006814848651,Amazon UK Marketplace,5942,Telephones general-all costs,6.78,0.00,6.78
Adult and Health Services,Head of Adults,051630,OP/PD Occupational Therapy,Supplies and Services,344033,Telephones,13-Dec-2017,000006814848653,Amazon UK Marketplace,5942,Telephones general-all costs,6.78,0.00,6.78
Adult and Health Services,Head of Adults,051630,OP/PD Occupational Therapy,Supplies and Services,344033,Telephones,13-Dec-2017,000006814848657,Amazon UK Marketplace,5942,Telephones general-all costs,6.78,0.00,6.78
Adult and Health Services,Head of Adults,051630,OP/PD Occupational Therapy,Supplies and Services,344033,Telephones,13-Dec-2017,000006814848659,Amazon UK Marketplace,5942,Telephones general-all costs,6.80,0.00,6.80
Adult and Health Services,Head of Adults,051630,OP/PD Occupational Therapy,Supplies and Services,344033,Telephones,13-Dec-2017,000006814848663,Amazon UK Marketplace,5942,Telephones general-all costs,6.78,0.00,6.78
Children and Young Peoples Services,Head of Early Help Assessment and Safeguarding,085623,Families First Bishop Auckland,Supplies and Services,304335,Equipment and Materials,13-Dec-2017,000006814848665,WWW.MCSCOM.CO.UK,7372,ICT supplies etc,80.34,13.39,66.95
Children and Young Peoples Services,Head of Early Help Assessment and Safeguarding,085100,Strategic Manager Families First Area South,Supplies and Services,384199,Miscellaneous Expenses,13-Dec-2017,000006814848669,NEWCASTLE CITY COUNCIL,4789,Other hired and contracted services,12.24,0.00,12.24
Regeneration and Local Services,Economic Development and Housing,031576,B& B - Temp Accom,Supplies and Services,364320,Grants to Voluntary Organisations,13-Dec-2017,000006814848687,TRAVELODGE,3615,Accommodation assistance,51.00,8.50,42.50
Regeneration and Local Services,Economic Development and Housing,031576,B& B - Temp Accom,Supplies and Services,364320,Grants to Voluntary Organisations,13-Dec-2017,000006814848691,TRAVELODGE,3615,Accommodation assistance,51.00,8.50,42.50
Regeneration and Local Services,Economic Development and Housing,031576,B& B - Temp Accom,Supplies and Services,364320,Grants to Voluntary Organisations,13-Dec-2017,000006814848693,TRAVELODGE,3615,Accommodation assistance,47.00,7.83,39.17
Regeneration and Local Services,Direct Services,010383,C&G - South Street Cleansing,Supplies and Services,328041,Clothing Uniforms and Laundry,13-Dec-2017,000006814848721,THOMAS OWEN & SONS /N/,5611,Clothing uniforms and laundry,217.96,36.33,181.63
Children and Young Peoples Services,Head of Looked After Provision Permanence and Care Leavers,085957,Secure Management,Supplies and Services,304639,Equipment and Materials,13-Dec-2017,000006814848727,Amazon UK Marketplace,5942,Technicians-supplies,21.25,0.00,21.25
Children and Young Peoples Services,Head of Looked After Provision Permanence and Care Leavers,085962,Durham,Supplies and Services,384999,Miscellaneous Expenses,13-Dec-2017,000006814848731,VIVANTAGE,5999,Other expenses,47.27,7.88,39.39
Children and Young Peoples Services,Head of Looked After Provision Permanence and Care Leavers,085342,9 Cedar Drive Aycliffe,Supplies and Services,324117,Provisions,13-Dec-2017,000006814848733,SAINSBURYS (2303),5411,Catering costs - provisions,13.50,0.00,13.50
Children and Young Peoples Services,Head of Looked After Provision Permanence and Care Leavers,085342,9 Cedar Drive Aycliffe,Supplies and Services,324117,Provisions,13-Dec-2017,000006814848735,SAINSBURYS 2082,5411,Catering costs - provisions,5.30,0.00,5.30
Children and Young Peoples Services,Head of Looked After Provision Permanence and Care Leavers,085342,9 Cedar Drive Aycliffe,Supplies and Services,324117,Provisions,13-Dec-2017,000006814848739,GEORGE BOLAM (FOODS) L,5499,Catering costs - provisions,147.66,0.00,147.66
Children and Young Peoples Services,Head of Looked After Provision Permanence and Care Leavers,085342,9 Cedar Drive Aycliffe,Supplies and Services,384999,Miscellaneous Expenses,13-Dec-2017,000006814848741,BEAUTY BAY LTD,5977,Other expenses,19.00,0.00,19.00
Children and Young Peoples Services,Head of Looked After Provision Permanence and Care Leavers,085342,9 Cedar Drive Aycliffe,Supplies and Services,324117,Provisions,13-Dec-2017,000006814848745,ASDA STORES,5411,Catering costs - provisions,54.16,0.00,54.16
Children and Young Peoples Services,Head of Early Help Assessment and Safeguarding,085515,Community Support Team,Supplies and Services,384871,Miscellaneous Expenses,13-Dec-2017,000006814848789,AMAZON SVCS EU-UK AMAZ,5942,Training-other activities,134.80,0.00,134.80
Regeneration and Local Services,Economic Development and Housing,030737,Durham Works Flexible Fund,Transport,230031,Contract Hire,13-Dec-2017,000006814848793,ARRIVA NORTH EAST,4131,Pupils-transport to play fields etc,15.00,0.00,15.00
Regeneration and Local Services,Economic Development and Housing,030737,Durham Works Flexible Fund,Transport,230031,Contract Hire,13-Dec-2017,000006814848797,ARRIVA NORTH EAST,4131,Pupils-transport to play fields etc,7.00,0.00,7.00
Regeneration and Local Services,Economic Development and Housing,030737,Durham Works Flexible Fund,Supplies and Services,328041,Clothing Uniforms and Laundry,13-Dec-2017,000006814848799,JD SPORTS INTERNET,5941,Clothing uniforms and laundry,53.99,0.00,53.99
Regeneration and Local Services,Direct Services,021242,Catering - County Hall,Supplies and Services,324117,Provisions,13-Dec-2017,000006814848809,JR HOLLAND FOODSERVICE,5422,Catering costs - provisions,130.51,0.00,130.51
Regeneration and Local Services,Direct Services,021242,Catering - County Hall,Supplies and Services,324117,Provisions,13-Dec-2017,000006814848813,JR HOLLAND FOODSERVICE,5422,Catering costs - provisions,60.60,0.00,60.60
Regeneration and Local Services,Direct Services,021242,Catering - County Hall,Supplies and Services,324117,Provisions,13-Dec-2017,000006814848817,JR HOLLAND FOODSERVICE,5422,Catering costs - provisions,30.14,0.00,30.14
Regeneration and Local Services,Direct Services,021242,Catering - County Hall,Supplies and Services,324117,Provisions,13-Dec-2017,000006814848821,JR HOLLAND FOODSERVICE,5422,Catering costs - provisions,6.60,0.00,6.60
Regeneration and Local Services,Culture & Sport,054233,Bishop Auckland Town Hall Library,Supplies and Services,304403,Equipment and Materials,13-Dec-2017,000006814848825,AMAZON EU AMAZON.CO.UK,5999,Other consumables,13.30,0.00,13.30
Regeneration and Local Services,Economic Development and Housing,030544,Rural Employability - Client Engagement,Supplies and Services,304245,Equipment and Materials,13-Dec-2017,000006814848829,SCREWFIX,5211,Materials,3.96,0.66,3.30
Regeneration and Local Services,Economic Development and Housing,030544,Rural Employability - Client Engagement,Supplies and Services,304259,Equipment and Materials,13-Dec-2017,000006814848829 - 1,SCREWFIX,5211,Equipment-purchase and rental,40.02,,40.02
Regeneration and Local Services,Culture & Sport,054812,Gala Theatre - Catering etc,Supplies and Services,324117,Provisions,13-Dec-2017,000006814848833,JR HOLLAND FOODSERVICE,5422,Catering costs - provisions,45.77,0.00,45.77
Regeneration and Local Services,Direct Services,010367,C&G - South Grounds Maintenance,Supplies and Services,304221,Equipment and Materials,13-Dec-2017,000006814848873,AZTEC CHEMICALS LTD,5169,Direct materials,186.91,31.15,155.76
Children and Young Peoples Services,Head of Early Help Assessment and Safeguarding,088037,One Point YEI,Supplies and Services,304403,Equipment and Materials,13-Dec-2017,000006814848903,GRO HM PASSPORT OFFICE,9399,Other consumables,9.25,0.00,9.25
Regeneration and Local Services,Economic Development and Housing,030737,Durham Works Flexible Fund,Transport,235057,Public Transport,13-Dec-2017,000006814848921,WWW.SIMPLYGO.COM,4131,Staff travelling,21.00,0.00,21.00
Children and Young Peoples Services,Head of Looked After Provision Permanence and Care Leavers,085957,Secure Management,Supplies and Services,312011,Newspapers Books and Periodicals,13-Dec-2017,000006814848925,Amazon UK Marketplace,5942,Books-school library,24.69,0.00,24.69
Children and Young Peoples Services,Head of Looked After Provision Permanence and Care Leavers,085957,Secure Management,Supplies and Services,328041,Clothing Uniforms and Laundry,13-Dec-2017,000006814848927,WWW.ARGOS.CO.UK,5310,Clothing uniforms and laundry,43.94,0.00,43.94
Children and Young Peoples Services,Head of Looked After Provision Permanence and Care Leavers,085957,Secure Management,Supplies and Services,324117,Provisions,13-Dec-2017,000006814848929,TESCO STORES 6329,5411,Catering costs - provisions,103.76,0.00,103.76
Children and Young Peoples Services,Head of Looked After Provision Permanence and Care Leavers,085957,Secure Management,Supplies and Services,342033,Computers and Communications,13-Dec-2017,000006814848933,VERY.CO.UK,5964,Computer hardware,133.99,0.00,133.99
Children and Young Peoples Services,Head of Looked After Provision Permanence and Care Leavers,085957,Secure Management,Supplies and Services,304403,Equipment and Materials,13-Dec-2017,000006814848935,AMAZON EU AMAZON.CO.UK,5999,Other consumables,45.64,0.00,45.64
Children and Young Peoples Services,Head of Looked After Provision Permanence and Care Leavers,085957,Secure Management,Supplies and Services,328041,Clothing Uniforms and Laundry,13-Dec-2017,000006814848937,WWW.FOOTLOCKER.EU,5661,Clothing uniforms and laundry,54.96,9.16,45.80
Children and Young Peoples Services,Head of Looked After Provision Permanence and Care Leavers,085957,Secure Management,Supplies and Services,328041,Clothing Uniforms and Laundry,13-Dec-2017,000006814848937 - 1,WWW.FOOTLOCKER.EU,5661,Clothing uniforms and laundry,130.02,,130.02
Regeneration and Local Services,Direct Services,010367,C&G - South Grounds Maintenance,Supplies and Services,384999,Miscellaneous Expenses,13-Dec-2017,000006814848949,WWW.GUSTHARTS.COM,5046,Other expenses,175.66,29.28,146.38
Regeneration and Local Services,Culture & Sport,011060,Hardwick Park Catering,Supplies and Services,324117,Provisions,13-Dec-2017,000006814848965,JR HOLLAND FOODSERVICE,5422,Catering costs - provisions,103.31,0.00,103.31
Regeneration and Local Services,Culture & Sport,011060,Hardwick Park Catering,Supplies and Services,324117,Provisions,13-Dec-2017,000006814848969,JR HOLLAND FOODSERVICE,5422,Catering costs - provisions,32.23,0.00,32.23
Regeneration and Local Services,Culture & Sport,011060,Hardwick Park Catering,Supplies and Services,324117,Provisions,13-Dec-2017,000006814848977,JR HOLLAND FOODSERVICE,5422,Catering costs - provisions,21.23,0.00,21.23
Resources,Digital and Customer Services,065335,School Services - Implementations,Supplies and Services,304639,Equipment and Materials,13-Dec-2017,000006814848983,AMZ replacebase,4816,Technicians-supplies,86.02,0.00,86.02
Regeneration and Local Services,Culture & Sport,054815,Gala Theatre Stage School,Supplies and Services,304259,Equipment and Materials,13-Dec-2017,000006814848985,WILKO DURHAM 426,5722,Equipment-purchase and rental,8.05,0.00,8.05
Regeneration and Local Services,Culture & Sport,054815,Gala Theatre Stage School,Supplies and Services,304999,Equipment and Materials,13-Dec-2017,000006814848989,HOME HARDWARE NORTHEAS,5072,Misc equipment tools and materials,6.00,0.00,6.00
Regeneration and Local Services,Culture & Sport,054815,Gala Theatre Stage School,Supplies and Services,324117,Provisions,13-Dec-2017,000006814848991,TESCO STORES 2371,5411,Catering costs - provisions,46.99,0.00,46.99
Regeneration and Local Services,Direct Services,021234,Catering - Locomotion,Supplies and Services,324117,Provisions,13-Dec-2017,000006814849005,JR HOLLAND FOODSERVICE,5422,Catering costs - provisions,89.56,0.00,89.56
Regeneration and Local Services,Direct Services,010525,Catering - Green Lane,Supplies and Services,324117,Provisions,13-Dec-2017,000006814849015,JR HOLLAND FOODSERVICE,5422,Catering costs - provisions,60.83,0.00,60.83
Children and Young Peoples Services,Head of Looked After Provision Permanence and Care Leavers,085352,Tow Law CU,Supplies and Services,324117,Provisions,13-Dec-2017,000006814849035,TESCO STORES 2371,5411,Catering costs - provisions,116.30,0.00,116.30
Children and Young Peoples Services,Head of Looked After Provision Permanence and Care Leavers,085334,West Rainton Satelite Home,Supplies and Services,312011,Newspapers Books and Periodicals,13-Dec-2017,000006814849051,Amazon UK Marketplace,5942,Books-school library,32.10,0.00,32.10
Children and Young Peoples Services,Head of Looked After Provision Permanence and Care Leavers,085334,West Rainton Satelite Home,Supplies and Services,312011,Newspapers Books and Periodicals,13-Dec-2017,000006814849055,Amazon UK Marketplace,5942,Books-school library,19.99,0.00,19.99
Children and Young Peoples Services,Head of Looked After Provision Permanence and Care Leavers,085334,West Rainton Satelite Home,Supplies and Services,312011,Newspapers Books and Periodicals,13-Dec-2017,000006814849059,Amazon UK Marketplace,5942,Books-school library,19.99,0.00,19.99
Children and Young Peoples Services,Head of Looked After Provision Permanence and Care Leavers,085334,West Rainton Satelite Home,Supplies and Services,312011,Newspapers Books and Periodicals,13-Dec-2017,000006814849061,Amazon UK Marketplace,5942,Books-school library,11.99,0.00,11.99
Children and Young Peoples Services,Head of Looked After Provision Permanence and Care Leavers,085334,West Rainton Satelite Home,Supplies and Services,312011,Newspapers Books and Periodicals,13-Dec-2017,000006814849065,Amazon UK Marketplace,5942,Books-school library,11.99,0.00,11.99
Regeneration and Local Services,Direct Services,010367,C&G - South Grounds Maintenance,Supplies and Services,324117,Provisions,13-Dec-2017,000006814849081,J M RAINE,5399,Catering costs - provisions,50.72,0.00,50.72
Children and Young Peoples Services,Head of Looked After Provision Permanence and Care Leavers,085334,West Rainton Satelite Home,Supplies and Services,312011,Newspapers Books and Periodicals,13-Dec-2017,000006814849103,Amazon UK Marketplace,5942,Books-school library,18.35,0.00,18.35
Regeneration and Local Services,Business Support,010832,Business Support,Supplies and Services,304259,Equipment and Materials,13-Dec-2017,000006814849111,DVLA VEHICLE TAX,9399,Equipment-purchase and rental,242.50,0.00,242.50
Regeneration and Local Services,Business Support,010832,Business Support,Supplies and Services,304259,Equipment and Materials,13-Dec-2017,000006814849117,DVLA VEHICLE TAX,9399,Equipment-purchase and rental,242.50,0.00,242.50
Regeneration and Local Services,Business Support,010832,Business Support,Supplies and Services,304259,Equipment and Materials,13-Dec-2017,000006814849119,DVLA VEHICLE TAX,9399,Equipment-purchase and rental,167.50,0.00,167.50
Regeneration and Local Services,Business Support,010832,Business Support,Supplies and Services,304259,Equipment and Materials,13-Dec-2017,000006814849123,DVLA VEHICLE TAX,9399,Equipment-purchase and rental,242.50,0.00,242.50
Regeneration and Local Services,Business Support,010832,Business Support,Supplies and Services,304259,Equipment and Materials,13-Dec-2017,000006814849127,DVLA VEHICLE TAX,9399,Equipment-purchase and rental,142.50,0.00,142.50
Regeneration and Local Services,Economic Development and Housing,030737,Durham Works Flexible Fund,Transport,235057,Public Transport,13-Dec-2017,000006814849149,WWW.SIMPLYGO.COM,4131,Staff travelling,70.00,0.00,70.00
Regeneration and Local Services,Economic Development and Housing,030737,Durham Works Flexible Fund,Transport,235057,Public Transport,13-Dec-2017,000006814849153,WWW.SIMPLYGO.COM,4131,Staff travelling,62.00,0.00,62.00
Regeneration and Local Services,Spatial Policy Planning Assets & Environment,031200,North Pennines Core,Supplies and Services,324117,Provisions,13-Dec-2017,000006814849157,SCOTMID CO-OP STANHOPE,5411,Catering costs - provisions,2.20,0.00,2.20
Children and Young Peoples Services,Head of Education,078100,Curric and Professional Development,Supplies and Services,324117,Provisions,13-Dec-2017,000006814849193,ASDA STORES,5411,Catering costs - provisions,14.00,0.00,14.00
Regeneration and Local Services,Direct Services,010301,C&G - North Grounds Maintenance,Supplies and Services,304259,Equipment and Materials,13-Dec-2017,000006814849205,HARELAW SAWMILL,5211,Equipment-purchase and rental,364.80,0.00,364.80
Regeneration and Local Services,Culture & Sport,054235,Bishop Auckland Town Hall Cafe,Supplies and Services,324117,Provisions,13-Dec-2017,000006814849261,JR HOLLAND FOODSERVICE,5422,Catering costs - provisions,77.82,0.00,77.82
Regeneration and Local Services,Direct Services,021324,Catering - Meadowfield,Supplies and Services,324117,Provisions,13-Dec-2017,000006814849273,JR HOLLAND FOODSERVICE,5422,Catering costs - provisions,43.13,0.00,43.13
Regeneration and Local Services,Direct Services,021324,Catering - Meadowfield,Supplies and Services,324117,Provisions,13-Dec-2017,000006814849277,JR HOLLAND FOODSERVICE,5422,Catering costs - provisions,19.64,0.00,19.64
Regeneration and Local Services,Direct Services,021324,Catering - Meadowfield,Supplies and Services,324117,Provisions,13-Dec-2017,000006814849279,JR HOLLAND FOODSERVICE,5422,Catering costs - provisions,13.89,0.00,13.89
Adult and Health Services,EnvironmentHealth & Consumer Protection,010809,Env HealthConsumer Protection Manag,Employees,040149,Recruitment Instruction and Training,13-Dec-2017,000006814849283,CIEH,8699,Training-all costs,52.00,0.00,52.00
Children and Young Peoples Services,Head of Looked After Provision Permanence and Care Leavers,085333,Coxhoe Satelite Home,Supplies and Services,384999,Miscellaneous Expenses,13-Dec-2017,000006814849287,Feel_Unique,5977,Other expenses,37.00,0.00,37.00
Children and Young Peoples Services,Head of Looked After Provision Permanence and Care Leavers,085333,Coxhoe Satelite Home,Supplies and Services,324117,Provisions,13-Dec-2017,000006814849291,TESCO STORES 2371,5411,Catering costs - provisions,88.99,0.00,88.99
Adult and Health Services,Head of Adults,055301,Stanley Pathways,Supplies and Services,324117,Provisions,13-Dec-2017,000006814849307,ASDA SUPERSTORE,5411,Catering costs - provisions,21.30,0.00,21.30
Adult and Health Services,Head of Adults,055301,Stanley Pathways,Supplies and Services,324117,Provisions,13-Dec-2017,000006814849313,ASDA SUPERSTORE,5411,Catering costs - provisions,4.77,0.00,4.77
Children and Young Peoples Services,Head of Early Help Assessment and Safeguarding,074000,TTF-Attachment and Results,Supplies and Services,304259,Equipment and Materials,13-Dec-2017,000006814849413,WILKO.COM,5722,Equipment-purchase and rental,-144.00,0.00,-144.00
Transformation and Partnerships,Comms & Information Management,060270,Communications and Marketing,Supplies and Services,336005,Advertising,13-Dec-2017,000006814849417,FACEBK JQ6ZRCE4B2,7311,Advertising other than for staff,500.00,0.00,500.00
Adult and Health Services,Head of Adults,056601,Substance Misuse,Supplies and Services,328041,Clothing Uniforms and Laundry,13-Dec-2017,000006814849421,YOURSCLOTHING.CO.U,5621,Clothing uniforms and laundry,66.97,0.00,66.97
Adult and Health Services,Head of Adults,055306,Spennymoor Pathways,Supplies and Services,324117,Provisions,13-Dec-2017,000006814849425,ASDA SUPERSTORE 4987,5411,Catering costs - provisions,0.49,0.00,0.49
Children and Young Peoples Services,Head of Early Help Assessment and Safeguarding,071404,Laurel Avenue Childrens Centre,Supplies and Services,312011,Newspapers Books and Periodicals,13-Dec-2017,000006814849429,HOME BARGAINS,5251,Books-school library,10.74,0.00,10.74
Regeneration and Local Services,Direct Services,021235,Catering - Wharton Park,Supplies and Services,324117,Provisions,13-Dec-2017,000006814849431,JR HOLLAND FOODSERVICE,5422,Catering costs - provisions,19.69,0.00,19.69
Children and Young Peoples Services,Head of Looked After Provision Permanence and Care Leavers,085363,LAC & Permanence Team 3,Supplies and Services,312011,Newspapers Books and Periodicals,13-Dec-2017,000006814849473,Amazon EU,5969,Books-school library,53.08,0.00,53.08
Children and Young Peoples Services,Head of Early Help Assessment and Safeguarding,071693,Brandon Childrens Centre,Supplies and Services,328041,Clothing Uniforms and Laundry,13-Dec-2017,000006814849495,WWW.ARGOS.CO.UK,5310,Clothing uniforms and laundry,43.93,0.00,43.93
Regeneration and Local Services,Spatial Policy Planning Assets & Environment,031200,North Pennines Core,Supplies and Services,340001,Postages,13-Dec-2017,000006814849505,THE POST OFFICE,9402,Postages,2.90,0.00,2.90
Children and Young Peoples Services,Head of Early Help Assessment and Safeguarding,088037,One Point YEI,Supplies and Services,304259,Equipment and Materials,13-Dec-2017,000006814849513,SUNDERLAND CC,9399,Equipment-purchase and rental,21.00,0.00,21.00
Children and Young Peoples Services,Head of Early Help Assessment and Safeguarding,071446,Seaham One Point Hub,Supplies and Services,324117,Provisions,13-Dec-2017,000006814849517,ASDA GEORGE COM LEEDS,5411,Catering costs - provisions,42.95,0.00,42.95
Regeneration and Local Services,Economic Development and Housing,030737,Durham Works Flexible Fund,Supplies and Services,328041,Clothing Uniforms and Laundry,13-Dec-2017,000006819922613,MATALAN.CO.UK,5691,Clothing uniforms and laundry,47.45,0.00,47.45
Children and Young Peoples Services,Head of Looked After Provision Permanence and Care Leavers,085957,Secure Management,Supplies and Services,304259,Equipment and Materials,13-Dec-2017,000006819922815,SPORTSDIRECT.COM,5941,Equipment-purchase and rental,19.99,0.00,19.99
Children and Young Peoples Services,Head of Looked After Provision Permanence and Care Leavers,085957,Secure Management,Supplies and Services,328041,Clothing Uniforms and Laundry,13-Dec-2017,000006819922831,ARGOS RETAIL GROUP,5310,Clothing uniforms and laundry,-59.99,0.00,-59.99
Regeneration and Local Services,Direct Services,021234,Catering - Locomotion,Supplies and Services,324117,Provisions,13-Dec-2017,000006819922849,BATLEYS PERTH,5300,Catering costs - provisions,-28.50,0.00,-28.50
Regeneration and Local Services,Economic Development and Housing,030737,Durham Works Flexible Fund,Supplies and Services,304259,Equipment and Materials,13-Dec-2017,000006819922947,HALFORDS ON LINE,5940,Equipment-purchase and rental,147.42,24.57,122.85
Regeneration and Local Services,Economic Development and Housing,030737,Durham Works Flexible Fund,Supplies and Services,304259,Equipment and Materials,13-Dec-2017,000006819922947 - 1,HALFORDS ON LINE,5940,Equipment-purchase and rental,15.02,,15.02
Regeneration and Local Services,Economic Development and Housing,030737,Durham Works Flexible Fund,Supplies and Services,328041,Clothing Uniforms and Laundry,13-Dec-2017,000006826004407,MATALAN.CO.UK,5691,Clothing uniforms and laundry,52.00,0.00,52.00
Regeneration and Local Services,Economic Development and Housing,030737,Durham Works Flexible Fund,Supplies and Services,304259,Equipment and Materials,13-Dec-2017,000006826004611,SPORTSDIRECT.COM,5941,Equipment-purchase and rental,151.97,0.00,151.97
Children and Young Peoples Services,Head of Looked After Provision Permanence and Care Leavers,085334,West Rainton Satelite Home,Supplies and Services,312011,Newspapers Books and Periodicals,14-Dec-2017,000006814849069,Amazon UK Marketplace,5942,Books-school library,13.99,0.00,13.99
Dedicated Schools Grant,Dedicated Schools Grant,079040,SENSS-HQ,Supplies and Services,312011,Newspapers Books and Periodicals,14-Dec-2017,000006814849249,Amazon UK Marketplace,5942,Books-school library,21.29,0.00,21.29
Children and Young Peoples Services,Head of Education,071801,Selby Cottage Childcare Centre,Supplies and Services,304259,Equipment and Materials,14-Dec-2017,000006819922527,ITUNES.COM/BILL,5735,Equipment-purchase and rental,1.98,0.00,1.98
Children and Young Peoples Services,Head of Education,071801,Selby Cottage Childcare Centre,Supplies and Services,324117,Provisions,14-Dec-2017,000006819922531,W M MORRISON PLC,5411,Catering costs - provisions,5.32,0.00,5.32
Children and Young Peoples Services,Head of Education,071801,Selby Cottage Childcare Centre,Supplies and Services,304259,Equipment and Materials,14-Dec-2017,000006819922535,WILKO RETAIL LIMIT,5722,Equipment-purchase and rental,5.00,0.00,5.00
Children and Young Peoples Services,Head of Education,071801,Selby Cottage Childcare Centre,Supplies and Services,324117,Provisions,14-Dec-2017,000006819922537,TESCO STORES 2278,5411,Catering costs - provisions,41.05,0.00,41.05
Regeneration and Local Services,Economic Development and Housing,031576,B& B - Temp Accom,Supplies and Services,364320,Grants to Voluntary Organisations,14-Dec-2017,000006819922545,NATIONAL EXPRESS LIMIT,4131,Accommodation assistance,119.00,0.00,119.00
Children and Young Peoples Services,Head of Looked After Provision Permanence and Care Leavers,085957,Secure Management,Supplies and Services,304639,Equipment and Materials,14-Dec-2017,000006819922569,SCREWFIX DIRECT,5211,Technicians-supplies,23.96,3.99,19.97
Children and Young Peoples Services,Head of Looked After Provision Permanence and Care Leavers,085342,9 Cedar Drive Aycliffe,Supplies and Services,384999,Miscellaneous Expenses,14-Dec-2017,000006819922573,ELF COSMETICS,5977,Other expenses,10.00,0.00,10.00
Children and Young Peoples Services,Head of Looked After Provision Permanence and Care Leavers,085342,9 Cedar Drive Aycliffe,Supplies and Services,308011,Furniture,14-Dec-2017,000006819922577,BRIAN VENABLES,5712,Furniture repair and replacement,90.00,0.00,90.00
Children and Young Peoples Services,Head of Looked After Provision Permanence and Care Leavers,085342,9 Cedar Drive Aycliffe,Employees,040149,Recruitment Instruction and Training,14-Dec-2017,000006819922583,PARENTPAY E-COM R,8220,Training-all costs,60.00,0.00,60.00
Regeneration and Local Services,Economic Development and Housing,030737,Durham Works Flexible Fund,Transport,230031,Contract Hire,14-Dec-2017,000006819922617,ARRIVA NORTH EAST,4131,Pupils-transport to play fields etc,7.00,0.00,7.00
Regeneration and Local Services,Economic Development and Housing,030737,Durham Works Flexible Fund,Supplies and Services,328041,Clothing Uniforms and Laundry,14-Dec-2017,000006819922621,ASDA STORES LTD,5411,Clothing uniforms and laundry,36.05,0.00,36.05
Regeneration and Local Services,Economic Development and Housing,030737,Durham Works Flexible Fund,Supplies and Services,384999,Miscellaneous Expenses,14-Dec-2017,000006819922625,ASDA STORES LTD,5411,Other expenses,10.00,0.00,10.00
Regeneration and Local Services,Direct Services,021242,Catering - County Hall,Supplies and Services,324117,Provisions,14-Dec-2017,000006819922627,JR HOLLAND FOODSERVICE,5422,Catering costs - provisions,74.84,0.00,74.84
Regeneration and Local Services,Direct Services,021242,Catering - County Hall,Supplies and Services,324117,Provisions,14-Dec-2017,000006819922633,JR HOLLAND FOODSERVICE,5422,Catering costs - provisions,13.20,0.00,13.20
